Organisation name,Organisation Code,Directorate,Service Category label,Service Category code,Supplier name,Payment date,Transaction number,Net Amount,Purpose of spend,Procurement category name
Southend-on-Sea Borough Council,http://www.opendatacommunities.org/id/unitary-authority/southend,ED Neighbourhoods & Environment,Environmental And Regulatory Services,4506,(G) Rw & Jr Burroughs,01/05/2020,12066808,"5,651.14 ",Private Contractors,Other Agencies
Southend-on-Sea Borough Council,http://www.opendatacommunities.org/id/unitary-authority/southend,ED Finance & Resources,Central Services,9011,(G) Specialist Interior Finishers Ltd,01/05/2020,12066808,"1,536.00 ",Other Expenses,Other Expenses
Southend-on-Sea Borough Council,http://www.opendatacommunities.org/id/unitary-authority/southend,ED Finance & Resources,Central Services,9011,(G) Specialist Interior Finishers Ltd,01/05/2020,12066808,"1,195.00 ",Other Expenses,Other Expenses
Southend-on-Sea Borough Council,http://www.opendatacommunities.org/id/unitary-authority/southend,ED Finance & Resources,Central Services,7140,(N) Coldstar (Uk) Ltd,01/05/2020,12066808,"1,670.40 ",Repairs And Maintenance Contracts,"Repairs, alterations and maintenance of buildings"
Southend-on-Sea Borough Council,http://www.opendatacommunities.org/id/unitary-authority/southend,ED Finance & Resources,Central Services,8605,(N) Sles Global T/A Specialist Lightning & Earthing Services,01/05/2020,12066808,700.00 ,Private Contractors,Other Agencies
Southend-on-Sea Borough Council,http://www.opendatacommunities.org/id/unitary-authority/southend,ED Neighbourhoods & Environment,Cultural and Related Services,7515,1St Containers Uk Limited,01/05/2020,12066808,"3,923.75 ",Tools And Equipment Repair And Maintenance,Equipment Furniture And Materials
Southend-on-Sea Borough Council,http://www.opendatacommunities.org/id/unitary-authority/southend,ED Transformation,Central Services,7096,Able 2 Occupational Therapy Services Limited,01/05/2020,12066808,"2,762.50 ",Medical And Health Services,Services
Southend-on-Sea Borough Council,http://www.opendatacommunities.org/id/unitary-authority/southend,ED Children & Public Health,Children And Education Services,3250,Affinity Fostering Services Ltd,01/05/2020,12066808,"3,304.00 ",Private Contractors,Other Agencies
Southend-on-Sea Borough Council,http://www.opendatacommunities.org/id/unitary-authority/southend,ED Neighbourhoods & Environment,Highways And Transport Services,5021,Armada Training Solutions Ltd T/A Armada,01/05/2020,12066808,745.00 ,Training Expenses,Indirect Employee Expenses
Southend-on-Sea Borough Council,http://www.opendatacommunities.org/id/unitary-authority/southend,ED Children & Public Health,Children And Education Services,3590,Attenti Ltd,01/05/2020,12066808,"1,295.00 ",Agency Staff,Direct Employee Expenses
Southend-on-Sea Borough Council,http://www.opendatacommunities.org/id/unitary-authority/southend,ED Children & Public Health,Children And Education Services,3020,Avenue Playgroup,01/05/2020,12066808,"1,555.83 ",Other Establishments,Other Establishments
Southend-on-Sea Borough Council,http://www.opendatacommunities.org/id/unitary-authority/southend,ED Legal & Democratic Services,Central Services,2210,Bis-Web Ltd T/A Clearview Continuity,01/05/2020,12066808,"2,100.00 ",IT Contracts,Communications And Computing
Southend-on-Sea Borough Council,http://www.opendatacommunities.org/id/unitary-authority/southend,ED Adults & Communities,Cultural And Related Services,4262,Bolinda Uk Ltd,01/05/2020,12066808,"4,674.38 ",Books & education equipment,Printing Stationery And General Office Expenses
Southend-on-Sea Borough Council,http://www.opendatacommunities.org/id/unitary-authority/southend,ED Children & Public Health,Children And Education Services,3250,Brighter Futures Foster Care Ltd,01/05/2020,12066808,785.70 ,Private Contractors,Other Agencies
Southend-on-Sea Borough Council,http://www.opendatacommunities.org/id/unitary-authority/southend,ED Adults & Communities,Adult Social Care,1209,Care & Independence Ltd,01/05/2020,12066808,"1,293.00 ",Tools And Equipment Repair And Maintenance,Equipment Furniture And Materials
Southend-on-Sea Borough Council,http://www.opendatacommunities.org/id/unitary-authority/southend,ED Neighbourhoods & Environment,Cultural and Related Services,7505,Castle Point Motors,01/05/2020,12066808,"1,837.28 ",Vehicle Maintenance,Direct Transport Costs
Southend-on-Sea Borough Council,http://www.opendatacommunities.org/id/unitary-authority/southend,ED Adults & Communities,Adult Social Care,1209,Centrobed Limited,01/05/2020,12066808,"1,020.00 ",Tools And Equipment Purchase,Equipment Furniture And Materials
Southend-on-Sea Borough Council,http://www.opendatacommunities.org/id/unitary-authority/southend,ED Children & Public Health,Children And Education Services,3591,Cf Social Work Ltd,01/05/2020,12066808,"4,995.00 ",Professional Fees,Services
Southend-on-Sea Borough Council,http://www.opendatacommunities.org/id/unitary-authority/southend,ED Children & Public Health,Children And Education Services,3250,Channels & Choices Therapeutic Community,01/05/2020,12066808,"101,576.85 ",Private Contractors,Other Agencies
Southend-on-Sea Borough Council,http://www.opendatacommunities.org/id/unitary-authority/southend,ED Growth & Housing,Planning and Development Services,5641,Clicksend Pty Ltd,01/05/2020,12066808,"3,000.00 ",Communications Telephone Call Charges,Communications And Computing
Southend-on-Sea Borough Council,http://www.opendatacommunities.org/id/unitary-authority/southend,ED Children & Public Health,Children And Education Services,3307,Compass Fostering London Ltd,01/05/2020,12066808,"3,400.04 ",Private Contractors,Other Agencies
Southend-on-Sea Borough Council,http://www.opendatacommunities.org/id/unitary-authority/southend,ED Children & Public Health,Children And Education Services,3250,Compass Fostering London Ltd,01/05/2020,12066808,"3,400.04 ",Private Contractors,Other Agencies
Southend-on-Sea Borough Council,http://www.opendatacommunities.org/id/unitary-authority/southend,ED Transformation,Central Services,8602,Daisy Corporate Services Trading Limited,01/05/2020,12066808,"15,086.49 ",Communications Telephone Rental,Communications And Computing
Southend-on-Sea Borough Council,http://www.opendatacommunities.org/id/unitary-authority/southend,ED Legal & Democratic Services,Central Services,7105,East Anglian Chambers T/A Miss Claire Thorne,01/05/2020,12066808,650.00 ,Barristers fees,Services
Southend-on-Sea Borough Council,http://www.opendatacommunities.org/id/unitary-authority/southend,ED Children & Public Health,Children And Education Services,3592,East Anglian Chambers T/A Mr Craig Tipper,01/05/2020,12066808,550.00 ,Barristers fees,Services
Southend-on-Sea Borough Council,http://www.opendatacommunities.org/id/unitary-authority/southend,ED Legal & Democratic Services,Central Services,7105,East Anglian Chambers T/A Mr Jonathan Hasson,01/05/2020,12066808,750.00 ,Barristers fees,Services
Southend-on-Sea Borough Council,http://www.opendatacommunities.org/id/unitary-authority/southend,ED Transformation,Central Services,7125,Firstcare Ltd,01/05/2020,12066808,"7,092.06 ",Medical And Health Services,Services
Southend-on-Sea Borough Council,http://www.opendatacommunities.org/id/unitary-authority/southend,ED Adults & Communities,Adult Social Care,9010,Frazer-Nash Consultancy Ltd,01/05/2020,12066808,"37,312.00 ",Support Services Fees,Support Services Fees
Southend-on-Sea Borough Council,http://www.opendatacommunities.org/id/unitary-authority/southend,ED Finance & Resources,Central Services,7071,G4S Cash Services Uk Ltd,01/05/2020,12066808,"1,304.93 ",Financial Services,Services
Southend-on-Sea Borough Council,http://www.opendatacommunities.org/id/unitary-authority/southend,ED Finance & Resources,Central Services,7071,G4S Cash Services Uk Ltd,01/05/2020,12066808,839.88 ,Financial Services,Services
Southend-on-Sea Borough Council,http://www.opendatacommunities.org/id/unitary-authority/southend,ED Growth & Housing,Highways and Transport Services,9003,G7 Business Solutions Limited,01/05/2020,12066808,"40,000.00 ",ICT Infrastructure (Network/Security/Business Continuity),ICT Infrastructure (Network/Security/Business Continuity)
Southend-on-Sea Borough Council,http://www.opendatacommunities.org/id/unitary-authority/southend,ED Transformation,Central Services,7133,G7 Business Solutions Limited,01/05/2020,12066808,"1,100.00 ",Corporate IT Applications,Communications And Computing
Southend-on-Sea Borough Council,http://www.opendatacommunities.org/id/unitary-authority/southend,ED Adults & Communities,Adult Social Care,1351,Hays Specialist Recruitment Ltd Receipts Recruitment File Only,01/05/2020,12066808,"1,110.20 ",Agency Staff,Direct Employee Expenses
Southend-on-Sea Borough Council,http://www.opendatacommunities.org/id/unitary-authority/southend,ED Adults & Communities,Adult Social Care,1351,Hays Specialist Recruitment Ltd Receipts Recruitment File Only,01/05/2020,12066808,"1,173.64 ",Agency Staff,Direct Employee Expenses
Southend-on-Sea Borough Council,http://www.opendatacommunities.org/id/unitary-authority/southend,ED Adults & Communities,Adult Social Care,1351,Hays Specialist Recruitment Ltd Receipts Recruitment File Only,01/05/2020,12066808,"1,173.64 ",Agency Staff,Direct Employee Expenses
Southend-on-Sea Borough Council,http://www.opendatacommunities.org/id/unitary-authority/southend,ED Adults & Communities,Adult Social Care,1351,Hays Specialist Recruitment Ltd Receipts Recruitment File Only,01/05/2020,12066808,"1,173.64 ",Agency Staff,Direct Employee Expenses
Southend-on-Sea Borough Council,http://www.opendatacommunities.org/id/unitary-authority/southend,ED Adults & Communities,Adult Social Care,1351,Hays Specialist Recruitment Ltd Receipts Recruitment File Only,01/05/2020,12066808,"1,173.64 ",Agency Staff,Direct Employee Expenses
Southend-on-Sea Borough Council,http://www.opendatacommunities.org/id/unitary-authority/southend,ED Adults & Communities,Adult Social Care,1351,Hays Specialist Recruitment Ltd Receipts Recruitment File Only,01/05/2020,12066808,"1,173.64 ",Agency Staff,Direct Employee Expenses
Southend-on-Sea Borough Council,http://www.opendatacommunities.org/id/unitary-authority/southend,ED Adults & Communities,Adult Social Care,1490,Hays Specialist Recruitment Ltd Receipts Recruitment File Only,01/05/2020,12066808,"2,267.07 ",Agency Staff,Direct Employee Expenses
Southend-on-Sea Borough Council,http://www.opendatacommunities.org/id/unitary-authority/southend,ED Adults & Communities,Adult Social Care,1490,Hays Specialist Recruitment Ltd Receipts Recruitment File Only,01/05/2020,12066808,"1,395.12 ",Agency Staff,Direct Employee Expenses
Southend-on-Sea Borough Council,http://www.opendatacommunities.org/id/unitary-authority/southend,ED Adults & Communities,Adult Social Care,1490,Hays Specialist Recruitment Ltd Receipts Recruitment File Only,01/05/2020,12066808,"2,092.68 ",Agency Staff,Direct Employee Expenses
Southend-on-Sea Borough Council,http://www.opendatacommunities.org/id/unitary-authority/southend,ED Adults & Communities,Adult Social Care,1490,Hays Specialist Recruitment Ltd Receipts Recruitment File Only,01/05/2020,12066808,"1,395.12 ",Agency Staff,Direct Employee Expenses
Southend-on-Sea Borough Council,http://www.opendatacommunities.org/id/unitary-authority/southend,ED Adults & Communities,Adult Social Care,1490,Hays Specialist Recruitment Ltd Receipts Recruitment File Only,01/05/2020,12066808,598.17 ,Agency Staff,Direct Employee Expenses
Southend-on-Sea Borough Council,http://www.opendatacommunities.org/id/unitary-authority/southend,ED Adults & Communities,Adult Social Care,1350,Hays Specialist Recruitment Ltd Receipts Recruitment File Only,01/05/2020,12066808,"1,173.64 ",Agency Staff,Direct Employee Expenses
Southend-on-Sea Borough Council,http://www.opendatacommunities.org/id/unitary-authority/southend,ED Adults & Communities,Adult Social Care,1350,Hays Specialist Recruitment Ltd Receipts Recruitment File Only,01/05/2020,12066808,697.84 ,Agency Staff,Direct Employee Expenses
Southend-on-Sea Borough Council,http://www.opendatacommunities.org/id/unitary-authority/southend,ED Adults & Communities,Adult Social Care,1350,Hays Specialist Recruitment Ltd Receipts Recruitment File Only,01/05/2020,12066808,"1,173.64 ",Agency Staff,Direct Employee Expenses
Southend-on-Sea Borough Council,http://www.opendatacommunities.org/id/unitary-authority/southend,ED Adults & Communities,Adult Social Care,1060,Hays Specialist Recruitment Ltd Receipts Recruitment File Only,01/05/2020,12066808,564.62 ,Agency Staff,Direct Employee Expenses
Southend-on-Sea Borough Council,http://www.opendatacommunities.org/id/unitary-authority/southend,ED Adults & Communities,Adult Social Care,1060,Hays Specialist Recruitment Ltd Receipts Recruitment File Only,01/05/2020,12066808,"1,173.64 ",Agency Staff,Direct Employee Expenses
Southend-on-Sea Borough Council,http://www.opendatacommunities.org/id/unitary-authority/southend,ED Adults & Communities,Adult Social Care,1060,Hays Specialist Recruitment Ltd Receipts Recruitment File Only,01/05/2020,12066808,"1,411.55 ",Agency Staff,Direct Employee Expenses
Southend-on-Sea Borough Council,http://www.opendatacommunities.org/id/unitary-authority/southend,ED Adults & Communities,Adult Social Care,1060,Hays Specialist Recruitment Ltd Receipts Recruitment File Only,01/05/2020,12066808,"1,411.55 ",Agency Staff,Direct Employee Expenses
Southend-on-Sea Borough Council,http://www.opendatacommunities.org/id/unitary-authority/southend,ED Adults & Communities,Adult Social Care,1060,Hays Specialist Recruitment Ltd Receipts Recruitment File Only,01/05/2020,12066808,"1,411.55 ",Agency Staff,Direct Employee Expenses
Southend-on-Sea Borough Council,http://www.opendatacommunities.org/id/unitary-authority/southend,ED Adults & Communities,Adult Social Care,1060,Hays Specialist Recruitment Ltd Receipts Recruitment File Only,01/05/2020,12066808,"1,411.55 ",Agency Staff,Direct Employee Expenses
Southend-on-Sea Borough Council,http://www.opendatacommunities.org/id/unitary-authority/southend,ED Adults & Communities,Adult Social Care,1231,Hays Specialist Recruitment Ltd Receipts Recruitment File Only,01/05/2020,12066808,"1,251.59 ",Agency Staff,Direct Employee Expenses
Southend-on-Sea Borough Council,http://www.opendatacommunities.org/id/unitary-authority/southend,ED Adults & Communities,Adult Social Care,1231,Hays Specialist Recruitment Ltd Receipts Recruitment File Only,01/05/2020,12066808,"1,251.59 ",Agency Staff,Direct Employee Expenses
Southend-on-Sea Borough Council,http://www.opendatacommunities.org/id/unitary-authority/southend,ED Adults & Communities,Adult Social Care,1231,Hays Specialist Recruitment Ltd Receipts Recruitment File Only,01/05/2020,12066808,"1,291.39 ",Agency Staff,Direct Employee Expenses
Southend-on-Sea Borough Council,http://www.opendatacommunities.org/id/unitary-authority/southend,ED Adults & Communities,Adult Social Care,1231,Hays Specialist Recruitment Ltd Receipts Recruitment File Only,01/05/2020,12066808,"1,349.84 ",Agency Staff,Direct Employee Expenses
Southend-on-Sea Borough Council,http://www.opendatacommunities.org/id/unitary-authority/southend,ED Adults & Communities,Adult Social Care,1231,Hays Specialist Recruitment Ltd Receipts Recruitment File Only,01/05/2020,12066808,"1,273.59 ",Agency Staff,Direct Employee Expenses
Southend-on-Sea Borough Council,http://www.opendatacommunities.org/id/unitary-authority/southend,ED Adults & Communities,Adult Social Care,1231,Hays Specialist Recruitment Ltd Receipts Recruitment File Only,01/05/2020,12066808,"1,255.89 ",Agency Staff,Direct Employee Expenses
Southend-on-Sea Borough Council,http://www.opendatacommunities.org/id/unitary-authority/southend,ED Adults & Communities,Adult Social Care,1231,Hays Specialist Recruitment Ltd Receipts Recruitment File Only,01/05/2020,12066808,"1,279.69 ",Agency Staff,Direct Employee Expenses
Southend-on-Sea Borough Council,http://www.opendatacommunities.org/id/unitary-authority/southend,ED Adults & Communities,Adult Social Care,1231,Hays Specialist Recruitment Ltd Receipts Recruitment File Only,01/05/2020,12066808,"1,247.29 ",Agency Staff,Direct Employee Expenses
Southend-on-Sea Borough Council,http://www.opendatacommunities.org/id/unitary-authority/southend,ED Adults & Communities,Adult Social Care,1231,Hays Specialist Recruitment Ltd Receipts Recruitment File Only,01/05/2020,12066808,"1,179.87 ",Agency Staff,Direct Employee Expenses
Southend-on-Sea Borough Council,http://www.opendatacommunities.org/id/unitary-authority/southend,ED Adults & Communities,Adult Social Care,1231,Hays Specialist Recruitment Ltd Receipts Recruitment File Only,01/05/2020,12066808,"1,254.19 ",Agency Staff,Direct Employee Expenses
Southend-on-Sea Borough Council,http://www.opendatacommunities.org/id/unitary-authority/southend,ED Adults & Communities,Adult Social Care,1180,Hays Specialist Recruitment Ltd Receipts Recruitment File Only,01/05/2020,12066808,"1,189.50 ",Agency Staff,Direct Employee Expenses
Southend-on-Sea Borough Council,http://www.opendatacommunities.org/id/unitary-authority/southend,ED Adults & Communities,Adult Social Care,1352,Hays Specialist Recruitment Ltd Receipts Recruitment File Only,01/05/2020,12066808,951.60 ,Agency Staff,Direct Employee Expenses
Southend-on-Sea Borough Council,http://www.opendatacommunities.org/id/unitary-authority/southend,ED Adults & Communities,Adult Social Care,1352,Hays Specialist Recruitment Ltd Receipts Recruitment File Only,01/05/2020,12066808,"1,321.64 ",Agency Staff,Direct Employee Expenses
Southend-on-Sea Borough Council,http://www.opendatacommunities.org/id/unitary-authority/southend,ED Adults & Communities,Adult Social Care,1365,Hays Specialist Recruitment Ltd Receipts Recruitment File Only,01/05/2020,12066808,"1,505.55 ",Agency Staff,Direct Employee Expenses
Southend-on-Sea Borough Council,http://www.opendatacommunities.org/id/unitary-authority/southend,ED Adults & Communities,Adult Social Care,1351,Hays Specialist Recruitment Ltd Receipts Recruitment File Only,01/05/2020,12066808,"1,173.64 ",Agency Staff,Direct Employee Expenses
Southend-on-Sea Borough Council,http://www.opendatacommunities.org/id/unitary-authority/southend,ED Adults & Communities,Adult Social Care,1180,Hays Specialist Recruitment Ltd Receipts Recruitment File Only,01/05/2020,12066808,663.52 ,Agency Staff,Direct Employee Expenses
Southend-on-Sea Borough Council,http://www.opendatacommunities.org/id/unitary-authority/southend,ED Adults & Communities,Adult Social Care,1060,Hays Specialist Recruitment Ltd Receipts Recruitment File Only,01/05/2020,12066808,"1,411.55 ",Agency Staff,Direct Employee Expenses
Southend-on-Sea Borough Council,http://www.opendatacommunities.org/id/unitary-authority/southend,ED Adults & Communities,Adult Social Care,1352,Hays Specialist Recruitment Ltd Receipts Recruitment File Only,01/05/2020,12066808,717.99 ,Agency Staff,Direct Employee Expenses
Southend-on-Sea Borough Council,http://www.opendatacommunities.org/id/unitary-authority/southend,ED Adults & Communities,Adult Social Care,1490,Hays Specialist Recruitment Ltd Receipts Recruitment File Only,01/05/2020,12066808,697.56 ,Agency Staff,Direct Employee Expenses
Southend-on-Sea Borough Council,http://www.opendatacommunities.org/id/unitary-authority/southend,ED Adults & Communities,Adult Social Care,1490,Hays Specialist Recruitment Ltd Receipts Recruitment File Only,01/05/2020,12066808,523.17 ,Agency Staff,Direct Employee Expenses
Southend-on-Sea Borough Council,http://www.opendatacommunities.org/id/unitary-authority/southend,ED Adults & Communities,Cultural And Related Services,4120,Hays Specialist Recruitment Ltd Receipts Recruitment File Only,01/05/2020,12066808,531.10 ,Agency Staff,Direct Employee Expenses
Southend-on-Sea Borough Council,http://www.opendatacommunities.org/id/unitary-authority/southend,ED Adults & Communities,Cultural And Related Services,4120,Hays Specialist Recruitment Ltd Receipts Recruitment File Only,01/05/2020,12066808,756.60 ,Agency Staff,Direct Employee Expenses
Southend-on-Sea Borough Council,http://www.opendatacommunities.org/id/unitary-authority/southend,ED Adults & Communities,Housing Services,6130,Hays Specialist Recruitment Ltd Receipts Recruitment File Only,01/05/2020,12066808,"1,049.32 ",Agency Staff,Direct Employee Expenses
Southend-on-Sea Borough Council,http://www.opendatacommunities.org/id/unitary-authority/southend,ED Children & Public Health,Adult Social Care,1035,Hays Specialist Recruitment Ltd Receipts Recruitment File Only,01/05/2020,12066808,"1,766.29 ",Recruitment,Indirect Employee Expenses
Southend-on-Sea Borough Council,http://www.opendatacommunities.org/id/unitary-authority/southend,ED Children & Public Health,Children And Education Services,3290,Hays Specialist Recruitment Ltd Receipts Recruitment File Only,01/05/2020,12066808,"1,173.64 ",Agency Staff,Direct Employee Expenses
Southend-on-Sea Borough Council,http://www.opendatacommunities.org/id/unitary-authority/southend,ED Children & Public Health,Children And Education Services,3290,Hays Specialist Recruitment Ltd Receipts Recruitment File Only,01/05/2020,12066808,951.60 ,Agency Staff,Direct Employee Expenses
Southend-on-Sea Borough Council,http://www.opendatacommunities.org/id/unitary-authority/southend,ED Children & Public Health,Children And Education Services,3290,Hays Specialist Recruitment Ltd Receipts Recruitment File Only,01/05/2020,12066808,"1,173.64 ",Agency Staff,Direct Employee Expenses
Southend-on-Sea Borough Council,http://www.opendatacommunities.org/id/unitary-authority/southend,ED Children & Public Health,Children And Education Services,3290,Hays Specialist Recruitment Ltd Receipts Recruitment File Only,01/05/2020,12066808,"1,173.64 ",Agency Staff,Direct Employee Expenses
Southend-on-Sea Borough Council,http://www.opendatacommunities.org/id/unitary-authority/southend,ED Children & Public Health,Children And Education Services,3590,Hays Specialist Recruitment Ltd Receipts Recruitment File Only,01/05/2020,12066808,"1,321.64 ",Agency Staff,Direct Employee Expenses
Southend-on-Sea Borough Council,http://www.opendatacommunities.org/id/unitary-authority/southend,ED Children & Public Health,Children And Education Services,3690,Hays Specialist Recruitment Ltd Receipts Recruitment File Only,01/05/2020,12066808,951.32 ,Agency Staff,Direct Employee Expenses
Southend-on-Sea Borough Council,http://www.opendatacommunities.org/id/unitary-authority/southend,ED Children & Public Health,Children And Education Services,3690,Hays Specialist Recruitment Ltd Receipts Recruitment File Only,01/05/2020,12066808,"1,173.29 ",Agency Staff,Direct Employee Expenses
Southend-on-Sea Borough Council,http://www.opendatacommunities.org/id/unitary-authority/southend,ED Children & Public Health,Children And Education Services,3690,Hays Specialist Recruitment Ltd Receipts Recruitment File Only,01/05/2020,12066808,"1,173.29 ",Agency Staff,Direct Employee Expenses
Southend-on-Sea Borough Council,http://www.opendatacommunities.org/id/unitary-authority/southend,ED Children & Public Health,Children And Education Services,3690,Hays Specialist Recruitment Ltd Receipts Recruitment File Only,01/05/2020,12066808,"1,173.29 ",Agency Staff,Direct Employee Expenses
Southend-on-Sea Borough Council,http://www.opendatacommunities.org/id/unitary-authority/southend,ED Children & Public Health,Children And Education Services,3690,Hays Specialist Recruitment Ltd Receipts Recruitment File Only,01/05/2020,12066808,"1,173.29 ",Agency Staff,Direct Employee Expenses
Southend-on-Sea Borough Council,http://www.opendatacommunities.org/id/unitary-authority/southend,ED Children & Public Health,Children And Education Services,3690,Hays Specialist Recruitment Ltd Receipts Recruitment File Only,01/05/2020,12066808,"1,173.29 ",Agency Staff,Direct Employee Expenses
Southend-on-Sea Borough Council,http://www.opendatacommunities.org/id/unitary-authority/southend,ED Children & Public Health,Children And Education Services,3690,Hays Specialist Recruitment Ltd Receipts Recruitment File Only,01/05/2020,12066808,"1,173.29 ",Agency Staff,Direct Employee Expenses
Southend-on-Sea Borough Council,http://www.opendatacommunities.org/id/unitary-authority/southend,ED Children & Public Health,Children And Education Services,3690,Hays Specialist Recruitment Ltd Receipts Recruitment File Only,01/05/2020,12066808,"1,173.29 ",Agency Staff,Direct Employee Expenses
Southend-on-Sea Borough Council,http://www.opendatacommunities.org/id/unitary-authority/southend,ED Children & Public Health,Children And Education Services,3690,Hays Specialist Recruitment Ltd Receipts Recruitment File Only,01/05/2020,12066808,"1,173.29 ",Agency Staff,Direct Employee Expenses
Southend-on-Sea Borough Council,http://www.opendatacommunities.org/id/unitary-authority/southend,ED Children & Public Health,Children And Education Services,3690,Hays Specialist Recruitment Ltd Receipts Recruitment File Only,01/05/2020,12066808,"1,173.29 ",Agency Staff,Direct Employee Expenses
Southend-on-Sea Borough Council,http://www.opendatacommunities.org/id/unitary-authority/southend,ED Children & Public Health,Children And Education Services,3690,Hays Specialist Recruitment Ltd Receipts Recruitment File Only,01/05/2020,12066808,"1,173.29 ",Agency Staff,Direct Employee Expenses
Southend-on-Sea Borough Council,http://www.opendatacommunities.org/id/unitary-authority/southend,ED Children & Public Health,Children And Education Services,3690,Hays Specialist Recruitment Ltd Receipts Recruitment File Only,01/05/2020,12066808,"1,173.29 ",Agency Staff,Direct Employee Expenses
Southend-on-Sea Borough Council,http://www.opendatacommunities.org/id/unitary-authority/southend,ED Children & Public Health,Children And Education Services,3690,Hays Specialist Recruitment Ltd Receipts Recruitment File Only,01/05/2020,12066808,"1,173.29 ",Agency Staff,Direct Employee Expenses
Southend-on-Sea Borough Council,http://www.opendatacommunities.org/id/unitary-authority/southend,ED Children & Public Health,Children And Education Services,3175,Hays Specialist Recruitment Ltd Receipts Recruitment File Only,01/05/2020,12066808,805.98 ,Agency Staff,Direct Employee Expenses
Southend-on-Sea Borough Council,http://www.opendatacommunities.org/id/unitary-authority/southend,ED Children & Public Health,Children And Education Services,3590,Hays Specialist Recruitment Ltd Receipts Recruitment File Only,01/05/2020,12066808,"1,173.64 ",Agency Staff,Direct Employee Expenses
Southend-on-Sea Borough Council,http://www.opendatacommunities.org/id/unitary-authority/southend,ED Children & Public Health,Children And Education Services,3590,Hays Specialist Recruitment Ltd Receipts Recruitment File Only,01/05/2020,12066808,"1,173.64 ",Agency Staff,Direct Employee Expenses
Southend-on-Sea Borough Council,http://www.opendatacommunities.org/id/unitary-authority/southend,ED Children & Public Health,Children And Education Services,3290,Hays Specialist Recruitment Ltd Receipts Recruitment File Only,01/05/2020,12066808,"1,173.64 ",Agency Staff,Direct Employee Expenses
Southend-on-Sea Borough Council,http://www.opendatacommunities.org/id/unitary-authority/southend,ED Children & Public Health,Children And Education Services,3290,Hays Specialist Recruitment Ltd Receipts Recruitment File Only,01/05/2020,12066808,"1,173.64 ",Agency Staff,Direct Employee Expenses
Southend-on-Sea Borough Council,http://www.opendatacommunities.org/id/unitary-authority/southend,ED Children & Public Health,Children And Education Services,3290,Hays Specialist Recruitment Ltd Receipts Recruitment File Only,01/05/2020,12066808,"1,173.64 ",Agency Staff,Direct Employee Expenses
Southend-on-Sea Borough Council,http://www.opendatacommunities.org/id/unitary-authority/southend,ED Children & Public Health,Children And Education Services,3290,Hays Specialist Recruitment Ltd Receipts Recruitment File Only,01/05/2020,12066808,"1,173.64 ",Agency Staff,Direct Employee Expenses
Southend-on-Sea Borough Council,http://www.opendatacommunities.org/id/unitary-authority/southend,ED Children & Public Health,Children And Education Services,3290,Hays Specialist Recruitment Ltd Receipts Recruitment File Only,01/05/2020,12066808,"1,173.64 ",Agency Staff,Direct Employee Expenses
Southend-on-Sea Borough Council,http://www.opendatacommunities.org/id/unitary-authority/southend,ED Children & Public Health,Children And Education Services,3290,Hays Specialist Recruitment Ltd Receipts Recruitment File Only,01/05/2020,12066808,"1,173.64 ",Agency Staff,Direct Employee Expenses
Southend-on-Sea Borough Council,http://www.opendatacommunities.org/id/unitary-authority/southend,ED Children & Public Health,Public Health,8700,Hays Specialist Recruitment Ltd Receipts Recruitment File Only,01/05/2020,12066808,824.80 ,Agency Staff,Direct Employee Expenses
Southend-on-Sea Borough Council,http://www.opendatacommunities.org/id/unitary-authority/southend,ED Children & Public Health,Public Health,8700,Hays Specialist Recruitment Ltd Receipts Recruitment File Only,01/05/2020,12066808,"-2,043.66 ",Agency Staff,Direct Employee Expenses
Southend-on-Sea Borough Council,http://www.opendatacommunities.org/id/unitary-authority/southend,ED Children & Public Health,Public Health,8700,Hays Specialist Recruitment Ltd Receipts Recruitment File Only,01/05/2020,12066808,"-2,043.66 ",Agency Staff,Direct Employee Expenses
Southend-on-Sea Borough Council,http://www.opendatacommunities.org/id/unitary-authority/southend,ED Children & Public Health,Public Health,8700,Hays Specialist Recruitment Ltd Receipts Recruitment File Only,01/05/2020,12066808,"-2,043.66 ",Agency Staff,Direct Employee Expenses
Southend-on-Sea Borough Council,http://www.opendatacommunities.org/id/unitary-authority/southend,ED Children & Public Health,Public Health,8700,Hays Specialist Recruitment Ltd Receipts Recruitment File Only,01/05/2020,12066808,"-2,043.66 ",Agency Staff,Direct Employee Expenses
Southend-on-Sea Borough Council,http://www.opendatacommunities.org/id/unitary-authority/southend,ED Children & Public Health,Public Health,8700,Hays Specialist Recruitment Ltd Receipts Recruitment File Only,01/05/2020,12066808,"-2,046.26 ",Agency Staff,Direct Employee Expenses
Southend-on-Sea Borough Council,http://www.opendatacommunities.org/id/unitary-authority/southend,ED Finance & Resources,Central Services,2156,Hays Specialist Recruitment Ltd Receipts Recruitment File Only,01/05/2020,12066808,"1,028.70 ",Agency Staff,Direct Employee Expenses
Southend-on-Sea Borough Council,http://www.opendatacommunities.org/id/unitary-authority/southend,ED Finance & Resources,Central Services,2156,Hays Specialist Recruitment Ltd Receipts Recruitment File Only,01/05/2020,12066808,"1,109.20 ",Agency Staff,Direct Employee Expenses
Southend-on-Sea Borough Council,http://www.opendatacommunities.org/id/unitary-authority/southend,ED Finance & Resources,Central Services,2156,Hays Specialist Recruitment Ltd Receipts Recruitment File Only,01/05/2020,12066808,"1,005.23 ",Agency Staff,Direct Employee Expenses
Southend-on-Sea Borough Council,http://www.opendatacommunities.org/id/unitary-authority/southend,ED Finance & Resources,Central Services,2156,Hays Specialist Recruitment Ltd Receipts Recruitment File Only,01/05/2020,12066808,922.04 ,Agency Staff,Direct Employee Expenses
Southend-on-Sea Borough Council,http://www.opendatacommunities.org/id/unitary-authority/southend,ED Finance & Resources,Central Services,2156,Hays Specialist Recruitment Ltd Receipts Recruitment File Only,01/05/2020,12066808,"1,525.16 ",Agency Staff,Direct Employee Expenses
Southend-on-Sea Borough Council,http://www.opendatacommunities.org/id/unitary-authority/southend,ED Finance & Resources,Central Services,7070,Hays Specialist Recruitment Ltd Receipts Recruitment File Only,01/05/2020,12066808,"3,387.60 ",Agency Staff,Direct Employee Expenses
Southend-on-Sea Borough Council,http://www.opendatacommunities.org/id/unitary-authority/southend,ED Finance & Resources,Environmental and Regulatory Services,7110,Hays Specialist Recruitment Ltd Receipts Recruitment File Only,01/05/2020,12066808,"1,637.60 ",Agency Staff,Direct Employee Expenses
Southend-on-Sea Borough Council,http://www.opendatacommunities.org/id/unitary-authority/southend,ED Growth & Housing,Planning and Development Services,5520,Hays Specialist Recruitment Ltd Receipts Recruitment File Only,01/05/2020,12066808,"1,344.34 ",Agency Staff,Direct Employee Expenses
Southend-on-Sea Borough Council,http://www.opendatacommunities.org/id/unitary-authority/southend,ED Legal & Democratic Services,Central Services,7105,Hays Specialist Recruitment Ltd Receipts Recruitment File Only,01/05/2020,12066808,535.02 ,Agency Staff,Direct Employee Expenses
Southend-on-Sea Borough Council,http://www.opendatacommunities.org/id/unitary-authority/southend,ED Neighbourhoods & Environment,Environmental And Regulatory Services,7035,Hays Specialist Recruitment Ltd Receipts Recruitment File Only,01/05/2020,12066808,"1,191.60 ",Agency Staff,Direct Employee Expenses
Southend-on-Sea Borough Council,http://www.opendatacommunities.org/id/unitary-authority/southend,ED Neighbourhoods & Environment,Cultural And Related Services,7540,Hays Specialist Recruitment Ltd Receipts Recruitment File Only,01/05/2020,12066808,939.66 ,Agency Staff,Direct Employee Expenses
Southend-on-Sea Borough Council,http://www.opendatacommunities.org/id/unitary-authority/southend,ED Neighbourhoods & Environment,Cultural And Related Services,7540,Hays Specialist Recruitment Ltd Receipts Recruitment File Only,01/05/2020,12066808,504.68 ,Agency Staff,Direct Employee Expenses
Southend-on-Sea Borough Council,http://www.opendatacommunities.org/id/unitary-authority/southend,ED Neighbourhoods & Environment,Cultural And Related Services,7540,Hays Specialist Recruitment Ltd Receipts Recruitment File Only,01/05/2020,12066808,505.42 ,Agency Staff,Direct Employee Expenses
Southend-on-Sea Borough Council,http://www.opendatacommunities.org/id/unitary-authority/southend,ED Neighbourhoods & Environment,Cultural And Related Services,7540,Hays Specialist Recruitment Ltd Receipts Recruitment File Only,01/05/2020,12066808,538.37 ,Agency Staff,Direct Employee Expenses
Southend-on-Sea Borough Council,http://www.opendatacommunities.org/id/unitary-authority/southend,ED Neighbourhoods & Environment,Cultural And Related Services,7540,Hays Specialist Recruitment Ltd Receipts Recruitment File Only,01/05/2020,12066808,538.37 ,Agency Staff,Direct Employee Expenses
Southend-on-Sea Borough Council,http://www.opendatacommunities.org/id/unitary-authority/southend,ED Neighbourhoods & Environment,Highways And Transport Services,5180,Hays Specialist Recruitment Ltd Receipts Recruitment File Only,01/05/2020,12066808,508.23 ,Agency Staff,Direct Employee Expenses
Southend-on-Sea Borough Council,http://www.opendatacommunities.org/id/unitary-authority/southend,ED Neighbourhoods & Environment,Highways And Transport Services,5180,Hays Specialist Recruitment Ltd Receipts Recruitment File Only,01/05/2020,12066808,948.24 ,Agency Staff,Direct Employee Expenses
Southend-on-Sea Borough Council,http://www.opendatacommunities.org/id/unitary-authority/southend,ED Neighbourhoods & Environment,Highways And Transport Services,5180,Hays Specialist Recruitment Ltd Receipts Recruitment File Only,01/05/2020,12066808,959.46 ,Agency Staff,Direct Employee Expenses
Southend-on-Sea Borough Council,http://www.opendatacommunities.org/id/unitary-authority/southend,ED Neighbourhoods & Environment,Highways And Transport Services,5180,Hays Specialist Recruitment Ltd Receipts Recruitment File Only,01/05/2020,12066808,"1,918.92 ",Agency Staff,Direct Employee Expenses
Southend-on-Sea Borough Council,http://www.opendatacommunities.org/id/unitary-authority/southend,ED Neighbourhoods & Environment,Highways And Transport Services,5180,Hays Specialist Recruitment Ltd Receipts Recruitment File Only,01/05/2020,12066808,"2,398.65 ",Agency Staff,Direct Employee Expenses
Southend-on-Sea Borough Council,http://www.opendatacommunities.org/id/unitary-authority/southend,ED Neighbourhoods & Environment,Highways And Transport Services,5180,Hays Specialist Recruitment Ltd Receipts Recruitment File Only,01/05/2020,12066808,"2,398.65 ",Agency Staff,Direct Employee Expenses
Southend-on-Sea Borough Council,http://www.opendatacommunities.org/id/unitary-authority/southend,ED Neighbourhoods & Environment,Highways And Transport Services,5180,Hays Specialist Recruitment Ltd Receipts Recruitment File Only,01/05/2020,12066808,"2,398.65 ",Agency Staff,Direct Employee Expenses
Southend-on-Sea Borough Council,http://www.opendatacommunities.org/id/unitary-authority/southend,ED Neighbourhoods & Environment,Highways And Transport Services,5180,Hays Specialist Recruitment Ltd Receipts Recruitment File Only,01/05/2020,12066808,"2,406.10 ",Agency Staff,Direct Employee Expenses
Southend-on-Sea Borough Council,http://www.opendatacommunities.org/id/unitary-authority/southend,ED Neighbourhoods & Environment,Highways And Transport Services,5180,Hays Specialist Recruitment Ltd Receipts Recruitment File Only,01/05/2020,12066808,"2,406.10 ",Agency Staff,Direct Employee Expenses
Southend-on-Sea Borough Council,http://www.opendatacommunities.org/id/unitary-authority/southend,ED Neighbourhoods & Environment,Highways And Transport Services,5180,Hays Specialist Recruitment Ltd Receipts Recruitment File Only,01/05/2020,12066808,887.04 ,Agency Staff,Direct Employee Expenses
Southend-on-Sea Borough Council,http://www.opendatacommunities.org/id/unitary-authority/southend,ED Neighbourhoods & Environment,Highways And Transport Services,5180,Hays Specialist Recruitment Ltd Receipts Recruitment File Only,01/05/2020,12066808,"2,220.35 ",Agency Staff,Direct Employee Expenses
Southend-on-Sea Borough Council,http://www.opendatacommunities.org/id/unitary-authority/southend,ED Neighbourhoods & Environment,Highways And Transport Services,5180,Hays Specialist Recruitment Ltd Receipts Recruitment File Only,01/05/2020,12066808,"2,398.65 ",Agency Staff,Direct Employee Expenses
Southend-on-Sea Borough Council,http://www.opendatacommunities.org/id/unitary-authority/southend,ED Neighbourhoods & Environment,Highways And Transport Services,5180,Hays Specialist Recruitment Ltd Receipts Recruitment File Only,01/05/2020,12066808,"2,406.10 ",Agency Staff,Direct Employee Expenses
Southend-on-Sea Borough Council,http://www.opendatacommunities.org/id/unitary-authority/southend,ED Neighbourhoods & Environment,Highways And Transport Services,5180,Hays Specialist Recruitment Ltd Receipts Recruitment File Only,01/05/2020,12066808,582.57 ,Agency Staff,Direct Employee Expenses
Southend-on-Sea Borough Council,http://www.opendatacommunities.org/id/unitary-authority/southend,ED Neighbourhoods & Environment,Highways And Transport Services,5180,Hays Specialist Recruitment Ltd Receipts Recruitment File Only,01/05/2020,12066808,582.57 ,Agency Staff,Direct Employee Expenses
Southend-on-Sea Borough Council,http://www.opendatacommunities.org/id/unitary-authority/southend,ED Neighbourhoods & Environment,Highways And Transport Services,5180,Hays Specialist Recruitment Ltd Receipts Recruitment File Only,01/05/2020,12066808,"1,165.14 ",Agency Staff,Direct Employee Expenses
Southend-on-Sea Borough Council,http://www.opendatacommunities.org/id/unitary-authority/southend,ED Neighbourhoods & Environment,Highways And Transport Services,5180,Hays Specialist Recruitment Ltd Receipts Recruitment File Only,01/05/2020,12066808,"1,402.60 ",Agency Staff,Direct Employee Expenses
Southend-on-Sea Borough Council,http://www.opendatacommunities.org/id/unitary-authority/southend,ED Neighbourhoods & Environment,Highways And Transport Services,5180,Hays Specialist Recruitment Ltd Receipts Recruitment File Only,01/05/2020,12066808,"1,377.40 ",Agency Staff,Direct Employee Expenses
Southend-on-Sea Borough Council,http://www.opendatacommunities.org/id/unitary-authority/southend,ED Neighbourhoods & Environment,Housing Services,6045,Hays Specialist Recruitment Ltd Receipts Recruitment File Only,01/05/2020,12066808,"1,303.00 ",Recruitment,Indirect Employee Expenses
Southend-on-Sea Borough Council,http://www.opendatacommunities.org/id/unitary-authority/southend,ED Transformation,Central Services,7130,Hays Specialist Recruitment Ltd Receipts Recruitment File Only,01/05/2020,12066808,"1,176.50 ",Agency Staff,Direct Employee Expenses
Southend-on-Sea Borough Council,http://www.opendatacommunities.org/id/unitary-authority/southend,ED Transformation,Central Services,7130,Hays Specialist Recruitment Ltd Receipts Recruitment File Only,01/05/2020,12066808,"2,100.35 ",Agency Staff,Direct Employee Expenses
Southend-on-Sea Borough Council,http://www.opendatacommunities.org/id/unitary-authority/southend,ED Transformation,Central Services,7130,Hays Specialist Recruitment Ltd Receipts Recruitment File Only,01/05/2020,12066808,"2,100.35 ",Agency Staff,Direct Employee Expenses
Southend-on-Sea Borough Council,http://www.opendatacommunities.org/id/unitary-authority/southend,ED Transformation,Central Services,7125,Hays Specialist Recruitment Ltd Receipts Recruitment File Only,01/05/2020,12066808,640.17 ,Agency Staff,Direct Employee Expenses
Southend-on-Sea Borough Council,http://www.opendatacommunities.org/id/unitary-authority/southend,ED Transformation,Central Services,7130,Hays Specialist Recruitment Ltd Receipts Recruitment File Only,01/05/2020,12066808,"2,641.35 ",Agency Staff,Direct Employee Expenses
Southend-on-Sea Borough Council,http://www.opendatacommunities.org/id/unitary-authority/southend,ED Transformation,Central Services,7125,Hays Specialist Recruitment Ltd Receipts Recruitment File Only,01/05/2020,12066808,548.72 ,Agency Staff,Direct Employee Expenses
Southend-on-Sea Borough Council,http://www.opendatacommunities.org/id/unitary-authority/southend,ED Transformation,Central Services,7125,Hays Specialist Recruitment Ltd Receipts Recruitment File Only,01/05/2020,12066808,640.17 ,Agency Staff,Direct Employee Expenses
Southend-on-Sea Borough Council,http://www.opendatacommunities.org/id/unitary-authority/southend,ED Transformation,Central Services,7125,Hays Specialist Recruitment Ltd Receipts Recruitment File Only,01/05/2020,12066808,640.17 ,Agency Staff,Direct Employee Expenses
Southend-on-Sea Borough Council,http://www.opendatacommunities.org/id/unitary-authority/southend,ED Transformation,Central Services,7130,Hays Specialist Recruitment Ltd Receipts Recruitment File Only,01/05/2020,12066808,"1,424.10 ",Agency Staff,Direct Employee Expenses
Southend-on-Sea Borough Council,http://www.opendatacommunities.org/id/unitary-authority/southend,ED Transformation,Central Services,7130,Hays Specialist Recruitment Ltd Receipts Recruitment File Only,01/05/2020,12066808,569.64 ,Agency Staff,Direct Employee Expenses
Southend-on-Sea Borough Council,http://www.opendatacommunities.org/id/unitary-authority/southend,ED Transformation,Central Services,7130,Hays Specialist Recruitment Ltd Receipts Recruitment File Only,01/05/2020,12066808,"1,192.92 ",Agency Staff,Direct Employee Expenses
Southend-on-Sea Borough Council,http://www.opendatacommunities.org/id/unitary-authority/southend,ED Transformation,Central Services,7130,Hays Specialist Recruitment Ltd Receipts Recruitment File Only,01/05/2020,12066808,"2,072.35 ",Agency Staff,Direct Employee Expenses
Southend-on-Sea Borough Council,http://www.opendatacommunities.org/id/unitary-authority/southend,ED Transformation,Central Services,7134,Hays Specialist Recruitment Ltd Receipts Recruitment File Only,01/05/2020,12066808,997.64 ,Agency Staff,Direct Employee Expenses
Southend-on-Sea Borough Council,http://www.opendatacommunities.org/id/unitary-authority/southend,ED Transformation,Central Services,7134,Hays Specialist Recruitment Ltd Receipts Recruitment File Only,01/05/2020,12066808,"2,992.92 ",Agency Staff,Direct Employee Expenses
Southend-on-Sea Borough Council,http://www.opendatacommunities.org/id/unitary-authority/southend,ED Transformation,Central Services,7134,Hays Specialist Recruitment Ltd Receipts Recruitment File Only,01/05/2020,12066808,"2,007.44 ",Agency Staff,Direct Employee Expenses
Southend-on-Sea Borough Council,http://www.opendatacommunities.org/id/unitary-authority/southend,ED Transformation,Central Services,7134,Hays Specialist Recruitment Ltd Receipts Recruitment File Only,01/05/2020,12066808,"2,007.44 ",Agency Staff,Direct Employee Expenses
Southend-on-Sea Borough Council,http://www.opendatacommunities.org/id/unitary-authority/southend,ED Transformation,Central Services,7134,Hays Specialist Recruitment Ltd Receipts Recruitment File Only,01/05/2020,12066808,"1,003.72 ",Agency Staff,Direct Employee Expenses
Southend-on-Sea Borough Council,http://www.opendatacommunities.org/id/unitary-authority/southend,ED Transformation,Central Services,7134,Hays Specialist Recruitment Ltd Receipts Recruitment File Only,01/05/2020,12066808,"2,509.30 ",Agency Staff,Direct Employee Expenses
Southend-on-Sea Borough Council,http://www.opendatacommunities.org/id/unitary-authority/southend,ED Transformation,Central Services,7134,Hays Specialist Recruitment Ltd Receipts Recruitment File Only,01/05/2020,12066808,"2,509.30 ",Agency Staff,Direct Employee Expenses
Southend-on-Sea Borough Council,http://www.opendatacommunities.org/id/unitary-authority/southend,ED Transformation,Central Services,7134,Hays Specialist Recruitment Ltd Receipts Recruitment File Only,01/05/2020,12066808,"2,509.30 ",Agency Staff,Direct Employee Expenses
Southend-on-Sea Borough Council,http://www.opendatacommunities.org/id/unitary-authority/southend,ED Transformation,Central Services,7134,Hays Specialist Recruitment Ltd Receipts Recruitment File Only,01/05/2020,12066808,"2,007.44 ",Agency Staff,Direct Employee Expenses
Southend-on-Sea Borough Council,http://www.opendatacommunities.org/id/unitary-authority/southend,ED Transformation,Central Services,7134,Hays Specialist Recruitment Ltd Receipts Recruitment File Only,01/05/2020,12066808,"2,362.85 ",Agency Staff,Direct Employee Expenses
Southend-on-Sea Borough Council,http://www.opendatacommunities.org/id/unitary-authority/southend,ED Transformation,Central Services,7134,Hays Specialist Recruitment Ltd Receipts Recruitment File Only,01/05/2020,12066808,"1,417.71 ",Agency Staff,Direct Employee Expenses
Southend-on-Sea Borough Council,http://www.opendatacommunities.org/id/unitary-authority/southend,ED Transformation,Central Services,7134,Hays Specialist Recruitment Ltd Receipts Recruitment File Only,01/05/2020,12066808,"2,362.85 ",Agency Staff,Direct Employee Expenses
Southend-on-Sea Borough Council,http://www.opendatacommunities.org/id/unitary-authority/southend,ED Transformation,Central Services,7134,Hays Specialist Recruitment Ltd Receipts Recruitment File Only,01/05/2020,12066808,"2,362.85 ",Agency Staff,Direct Employee Expenses
Southend-on-Sea Borough Council,http://www.opendatacommunities.org/id/unitary-authority/southend,ED Transformation,Central Services,7134,Hays Specialist Recruitment Ltd Receipts Recruitment File Only,01/05/2020,12066808,"2,494.10 ",Agency Staff,Direct Employee Expenses
Southend-on-Sea Borough Council,http://www.opendatacommunities.org/id/unitary-authority/southend,ED Transformation,Central Services,7134,Hays Specialist Recruitment Ltd Receipts Recruitment File Only,01/05/2020,12066808,"2,494.10 ",Agency Staff,Direct Employee Expenses
Southend-on-Sea Borough Council,http://www.opendatacommunities.org/id/unitary-authority/southend,ED Transformation,Central Services,7134,Hays Specialist Recruitment Ltd Receipts Recruitment File Only,01/05/2020,12066808,"1,890.28 ",Agency Staff,Direct Employee Expenses
Southend-on-Sea Borough Council,http://www.opendatacommunities.org/id/unitary-authority/southend,ED Transformation,Central Services,7134,Hays Specialist Recruitment Ltd Receipts Recruitment File Only,01/05/2020,12066808,"2,007.44 ",Agency Staff,Direct Employee Expenses
Southend-on-Sea Borough Council,http://www.opendatacommunities.org/id/unitary-authority/southend,ED Transformation,Central Services,7134,Hays Specialist Recruitment Ltd Receipts Recruitment File Only,01/05/2020,12066808,"2,007.44 ",Agency Staff,Direct Employee Expenses
Southend-on-Sea Borough Council,http://www.opendatacommunities.org/id/unitary-authority/southend,ED Transformation,Central Services,7134,Hays Specialist Recruitment Ltd Receipts Recruitment File Only,01/05/2020,12066808,"2,007.44 ",Agency Staff,Direct Employee Expenses
Southend-on-Sea Borough Council,http://www.opendatacommunities.org/id/unitary-authority/southend,ED Transformation,Central Services,7134,Hays Specialist Recruitment Ltd Receipts Recruitment File Only,01/05/2020,12066808,"2,509.30 ",Agency Staff,Direct Employee Expenses
Southend-on-Sea Borough Council,http://www.opendatacommunities.org/id/unitary-authority/southend,ED Transformation,Central Services,7134,Hays Specialist Recruitment Ltd Receipts Recruitment File Only,01/05/2020,12066808,"3,011.16 ",Agency Staff,Direct Employee Expenses
Southend-on-Sea Borough Council,http://www.opendatacommunities.org/id/unitary-authority/southend,ED Transformation,Central Services,7134,Hays Specialist Recruitment Ltd Receipts Recruitment File Only,01/05/2020,12066808,"2,007.44 ",Agency Staff,Direct Employee Expenses
Southend-on-Sea Borough Council,http://www.opendatacommunities.org/id/unitary-authority/southend,ED Transformation,Central Services,7134,Hays Specialist Recruitment Ltd Receipts Recruitment File Only,01/05/2020,12066808,"2,007.44 ",Agency Staff,Direct Employee Expenses
Southend-on-Sea Borough Council,http://www.opendatacommunities.org/id/unitary-authority/southend,ED Growth & Housing,Planning and Development Services,5545,Jdi Solutions Ltd,01/05/2020,12066808,738.00 ,IT Software,Communications And Computing
Southend-on-Sea Borough Council,http://www.opendatacommunities.org/id/unitary-authority/southend,ED Finance & Resources,Central Services,8610,Jlt Specialty Ltd,01/05/2020,12066808,"66,055.81 ",Professional Fees,Services
Southend-on-Sea Borough Council,http://www.opendatacommunities.org/id/unitary-authority/southend,ED Finance & Resources,Central Services,8610,Jlt Specialty Ltd,01/05/2020,12066808,"7,369.60 ",Professional Fees,Services
Southend-on-Sea Borough Council,http://www.opendatacommunities.org/id/unitary-authority/southend,ED Finance & Resources,Central Services,8610,Jlt Specialty Ltd,01/05/2020,12066808,"10,505.60 ",Professional Fees,Services
Southend-on-Sea Borough Council,http://www.opendatacommunities.org/id/unitary-authority/southend,ED Finance & Resources,Central Services,8610,Jlt Specialty Ltd,01/05/2020,12066808,"32,183.20 ",Professional Fees,Services
Southend-on-Sea Borough Council,http://www.opendatacommunities.org/id/unitary-authority/southend,ED Neighbourhoods & Environment,Environmental And Regulatory Services,4625,Kenyon Block Consultants Ltd,01/05/2020,12066808,"1,400.00 ",Consultancy Services,Services
Southend-on-Sea Borough Council,http://www.opendatacommunities.org/id/unitary-authority/southend,ED Children & Public Health,Children And Education Services,3491,Lorraine Pilime T/A Penina Social Work Services Ltd,01/05/2020,12066808,"4,490.00 ",Professional Fees,Services
Southend-on-Sea Borough Council,http://www.opendatacommunities.org/id/unitary-authority/southend,ED Growth & Housing,Housing Services,9005,Mark Beaver Surveying,01/05/2020,12066808,"4,120.00 ",Main Contractor,Main Contractor
Southend-on-Sea Borough Council,http://www.opendatacommunities.org/id/unitary-authority/southend,ED Neighbourhoods & Environment,Highways And Transport Services,5123,Mr D Lizzimore & Associates,01/05/2020,12066808,"1,200.00 ",Materials,Equipment Furniture And Materials
Southend-on-Sea Borough Council,http://www.opendatacommunities.org/id/unitary-authority/southend,ED Children & Public Health,Children And Education Services,3167,National Governors Association,01/05/2020,12066808,"1,395.00 ",Subscriptions,Grants And Subscriptions
Southend-on-Sea Borough Council,http://www.opendatacommunities.org/id/unitary-authority/southend,ED Growth & Housing,Planning and Development Services,5520,Newsquest Media Group Ltd,01/05/2020,12066808,548.57 ,Non Staff Advertising,Services
Southend-on-Sea Borough Council,http://www.opendatacommunities.org/id/unitary-authority/southend,ED Growth & Housing,Planning and Development Services,5520,Newsquest Media Group Ltd,01/05/2020,12066808,987.42 ,Non Staff Advertising,Services
Southend-on-Sea Borough Council,http://www.opendatacommunities.org/id/unitary-authority/southend,ED Growth & Housing,Planning and Development Services,5520,Newsquest Media Group Ltd,01/05/2020,12066808,658.28 ,Non Staff Advertising,Services
Southend-on-Sea Borough Council,http://www.opendatacommunities.org/id/unitary-authority/southend,ED Children & Public Health,Children And Education Services,3290,Placement Support Ltd,01/05/2020,12066808,"1,260.00 ",Professional Fees,Services
Southend-on-Sea Borough Council,http://www.opendatacommunities.org/id/unitary-authority/southend,ED Finance & Resources,Central Services,7075,Pricewaterhousecoopers,01/05/2020,12066808,"5,992.00 ",Contractor - Programmed Works,Other Agencies
Southend-on-Sea Borough Council,http://www.opendatacommunities.org/id/unitary-authority/southend,ED Finance & Resources,Central Services,7075,Pricewaterhousecoopers,01/05/2020,12066808,"5,992.00 ",Contractor - Programmed Works,Other Agencies
Southend-on-Sea Borough Council,http://www.opendatacommunities.org/id/unitary-authority/southend,ED Finance & Resources,Central Services,7075,Pricewaterhousecoopers,01/05/2020,12066808,"7,425.00 ",Contractor - Programmed Works,Other Agencies
Southend-on-Sea Borough Council,http://www.opendatacommunities.org/id/unitary-authority/southend,ED Finance & Resources,Central Services,7075,Pricewaterhousecoopers,01/05/2020,12066808,"3,960.00 ",Contractor - Programmed Works,Other Agencies
Southend-on-Sea Borough Council,http://www.opendatacommunities.org/id/unitary-authority/southend,ED Finance & Resources,Central Services,7075,Pricewaterhousecoopers,01/05/2020,12066808,"7,425.00 ",Contractor - Programmed Works,Other Agencies
Southend-on-Sea Borough Council,http://www.opendatacommunities.org/id/unitary-authority/southend,ED Neighbourhoods & Environment,Environmental And Regulatory Services,4575,Public Analyst Scientific Services Ltd,01/05/2020,12066808,"4,950.00 ",Scientific And Analytical Services,Services
Southend-on-Sea Borough Council,http://www.opendatacommunities.org/id/unitary-authority/southend,ED Children & Public Health,Children And Education Services,3290,REDACTED PERSONAL DATA,01/05/2020,12066808,"1,660.00 ",Private Contractors,Other Agencies
Southend-on-Sea Borough Council,http://www.opendatacommunities.org/id/unitary-authority/southend,ED Adults & Communities,Public Health,7705,REDACTED PERSONAL DATA,01/05/2020,12066808,607.50 ,Health Authorities,Health Authorities
Southend-on-Sea Borough Council,http://www.opendatacommunities.org/id/unitary-authority/southend,ED Growth & Housing,Planning and Development Services,5505,Resolution Data Management Ltd,01/05/2020,12066808,"2,464.00 ",Internet,Communications And Computing
Southend-on-Sea Borough Council,http://www.opendatacommunities.org/id/unitary-authority/southend,ED Finance & Resources,Central Services,7071,Result Software Ltd,01/05/2020,12066808,500.00 ,Corporate IT Applications,Communications And Computing
Southend-on-Sea Borough Council,http://www.opendatacommunities.org/id/unitary-authority/southend,ED Finance & Resources,Central Services,7111,Royal Mail,01/05/2020,12066808,"2,365.93 ",Mail Services� Postage,Communications And Computing
Southend-on-Sea Borough Council,http://www.opendatacommunities.org/id/unitary-authority/southend,ED Finance & Resources,Housing Services,6165,Sale Appliances,01/05/2020,12066808,591.47 ,Materials,Equipment Furniture And Materials
Southend-on-Sea Borough Council,http://www.opendatacommunities.org/id/unitary-authority/southend,ED Children & Public Health,Children And Education Services,3290,Sanctuary Housing Association,01/05/2020,12066808,"1,457.83 ",Accomodation Payment,Services
Southend-on-Sea Borough Council,http://www.opendatacommunities.org/id/unitary-authority/southend,ED Finance & Resources,Housing Services,6167,Serco Limited,01/05/2020,12066808,"5,511.20 ",Contractor - Variation Work,Other Agencies
Southend-on-Sea Borough Council,http://www.opendatacommunities.org/id/unitary-authority/southend,ED Adults & Communities,Adult Social Care,9010,South Essex Property Services,01/05/2020,12066808,"1,143.76 ",Main Contractor,Main Contractor
Southend-on-Sea Borough Council,http://www.opendatacommunities.org/id/unitary-authority/southend,ED Neighbourhoods & Environment,Environmental And Regulatory Services,4537,Stambridge Security Services Ltd,01/05/2020,12066808,540.00 ,Security,"Repairs, alterations and maintenance of buildings"
Southend-on-Sea Borough Council,http://www.opendatacommunities.org/id/unitary-authority/southend,ED Neighbourhoods & Environment,Environmental And Regulatory Services,4537,Stambridge Security Services Ltd,01/05/2020,12066808,"7,081.20 ",Security,"Repairs, alterations and maintenance of buildings"
Southend-on-Sea Borough Council,http://www.opendatacommunities.org/id/unitary-authority/southend,ED Finance & Resources,Central Services,7140,Stand-By Fire Protection,01/05/2020,12066808,"5,492.10 ",Repairs And Maintenance Contracts,"Repairs, alterations and maintenance of buildings"
Southend-on-Sea Borough Council,http://www.opendatacommunities.org/id/unitary-authority/southend,ED Children & Public Health,Children And Education Services,3491,Stef And Philips Clients Accounts,01/05/2020,12066808,841.00 ,Accomodation Payment,Services
Southend-on-Sea Borough Council,http://www.opendatacommunities.org/id/unitary-authority/southend,ED Neighbourhoods & Environment,Housing Services,9008,Streetwise Services Limited,01/05/2020,12066808,"41,680.00 ",Contractors General,Contractors General
Southend-on-Sea Borough Council,http://www.opendatacommunities.org/id/unitary-authority/southend,ED Adults & Communities,Adult Social Care,9002,Studiome Ltd,01/05/2020,12066808,"1,820.00 ",Main Contractor,Main Contractor
Southend-on-Sea Borough Council,http://www.opendatacommunities.org/id/unitary-authority/southend,ED Transformation,Central Services,9012,Support Uk Limited,01/05/2020,12066808,"21,600.00 ",Main Contractor,Main Contractor
Southend-on-Sea Borough Council,http://www.opendatacommunities.org/id/unitary-authority/southend,ED Transformation,Central Services,9012,Support Uk Limited,01/05/2020,12066808,"10,600.00 ","Equipment, Furniture Fitting","Equipment, Furniture Fitting"
Southend-on-Sea Borough Council,http://www.opendatacommunities.org/id/unitary-authority/southend,ED Children & Public Health,Children And Education Services,3250,Surecare Residential Ltd,01/05/2020,12066808,"17,827.88 ",Private Contractors,Other Agencies
Southend-on-Sea Borough Council,http://www.opendatacommunities.org/id/unitary-authority/southend,ED Neighbourhoods & Environment,Environmental And Regulatory Services,7035,Tameside Mbc,01/05/2020,12066808,"1,600.00 ",Subscriptions,Grants And Subscriptions
Southend-on-Sea Borough Council,http://www.opendatacommunities.org/id/unitary-authority/southend,ED Children & Public Health,Children And Education Services,3491,The Cobham Hotel,01/05/2020,12066808,595.00 ,Accommodation Costs,Expenses
Southend-on-Sea Borough Council,http://www.opendatacommunities.org/id/unitary-authority/southend,ED Adults & Communities,Central Services,8601,The Re-Use Partnership,01/05/2020,12066808,"20,000.00 ",Materials,Equipment Furniture And Materials
Southend-on-Sea Borough Council,http://www.opendatacommunities.org/id/unitary-authority/southend,ED Adults & Communities,Adult Social Care,9010,The Woodley Coles Llp,01/05/2020,12066808,"48,796.00 ",Main Contractor,Main Contractor
Southend-on-Sea Borough Council,http://www.opendatacommunities.org/id/unitary-authority/southend,ED Transformation,Central Services,8603,Tuskerdirect Ltd,01/05/2020,12066808,"14,634.22 ",Contract Hire Of Vehicles Not Taxis Plant Or Buses,Contract Hire And Operating Leases
Southend-on-Sea Borough Council,http://www.opendatacommunities.org/id/unitary-authority/southend,ED Children & Public Health,Children And Education Services,3217,University Of Hertfordshire,01/05/2020,12066808,"1,400.00 ",Training Expenses,Indirect Employee Expenses
Southend-on-Sea Borough Council,http://www.opendatacommunities.org/id/unitary-authority/southend,ED Neighbourhoods & Environment,Environmental And Regulatory Services,4660,Veolia Environmental Services,01/05/2020,12066808,"8,918.02 ",Private Contractors,Other Agencies
Southend-on-Sea Borough Council,http://www.opendatacommunities.org/id/unitary-authority/southend,ED Neighbourhoods & Environment,Environmental And Regulatory Services,4661,Veolia Environmental Services,01/05/2020,12066808,"35,420.05 ",Private Contractors,Other Agencies
Southend-on-Sea Borough Council,http://www.opendatacommunities.org/id/unitary-authority/southend,ED Transformation,Central Services,7125,Vine Hr Ltd Main Account,01/05/2020,12066808,"3,000.00 ",Subscriptions,Grants And Subscriptions
Southend-on-Sea Borough Council,http://www.opendatacommunities.org/id/unitary-authority/southend,ED Adults & Communities,Cultural And Related Services,4262,W F Howes Ltd,01/05/2020,12066808,"5,250.00 ",Books & education equipment,Printing Stationery And General Office Expenses
Southend-on-Sea Borough Council,http://www.opendatacommunities.org/id/unitary-authority/southend,ED Adults & Communities,Cultural And Related Services,4262,W F Howes Ltd,01/05/2020,12066808,"6,549.00 ",Books & education equipment,Printing Stationery And General Office Expenses
Southend-on-Sea Borough Council,http://www.opendatacommunities.org/id/unitary-authority/southend,ED Adults & Communities,Housing Services,6130,York Lodge Limited,01/05/2020,12066808,595.00 ,Accommodation Costs,Expenses
Southend-on-Sea Borough Council,http://www.opendatacommunities.org/id/unitary-authority/southend,ED Children & Public Health,Children And Education Services,3250,Young People At Heart Limited,01/05/2020,12066808,"8,064.00 ",Private Contractors,Other Agencies
Southend-on-Sea Borough Council,http://www.opendatacommunities.org/id/unitary-authority/southend,ED Transformation,Central Services,7132,(G) Cityfibre Limited,04/05/2020,12066828,"1,080.00 ",Internet,Communications And Computing
Southend-on-Sea Borough Council,http://www.opendatacommunities.org/id/unitary-authority/southend,ED Finance & Resources,Central Services,7140,(G) R & A Mechanical Services Ltd,04/05/2020,12066828,870.00 ,Repairs And Maintenance Contracts,"Repairs, alterations and maintenance of buildings"
Southend-on-Sea Borough Council,http://www.opendatacommunities.org/id/unitary-authority/southend,ED Neighbourhoods & Environment,Cultural And Related Services,4200,(G) R & A Mechanical Services Ltd,04/05/2020,12066828,745.00 ,Repairs And Maintenance Contracts,"Repairs, alterations and maintenance of buildings"
Southend-on-Sea Borough Council,http://www.opendatacommunities.org/id/unitary-authority/southend,ED Neighbourhoods & Environment,Cultural And Related Services,4201,(G) Sutcliffe Play Ltd,04/05/2020,12066828,"2,458.75 ",Materials,Equipment Furniture And Materials
Southend-on-Sea Borough Council,http://www.opendatacommunities.org/id/unitary-authority/southend,ED Finance & Resources,Central Services,7140,(N) Coldstar (Uk) Ltd,04/05/2020,12066828,"1,670.40 ",Repairs And Maintenance Contracts,"Repairs, alterations and maintenance of buildings"
Southend-on-Sea Borough Council,http://www.opendatacommunities.org/id/unitary-authority/southend,ED Adults & Communities,Adult Social Care,1083,Adalah Residential Home,04/05/2020,12066828,515.06 ,Private Contractors,Other Agencies
Southend-on-Sea Borough Council,http://www.opendatacommunities.org/id/unitary-authority/southend,ED Adults & Communities,Adult Social Care,1083,"Akhtar Latif, Ncs Solution T/A Kimberley Grace Care Home",04/05/2020,12066828,"1,053.78 ",Private Contractors,Other Agencies
Southend-on-Sea Borough Council,http://www.opendatacommunities.org/id/unitary-authority/southend,ED Adults & Communities,Adult Social Care,1083,"Akhtar Latif, Ncs Solution T/A Kimberley Grace Care Home",04/05/2020,12066828,"1,030.12 ",Private Contractors,Other Agencies
Southend-on-Sea Borough Council,http://www.opendatacommunities.org/id/unitary-authority/southend,ED Children & Public Health,Children And Education Services,3092,Alleyn Court (Preparatory) Westcliff Ltd,04/05/2020,12066828,"1,806.00 ",Services On Behalf Of Pupils,Services
Southend-on-Sea Borough Council,http://www.opendatacommunities.org/id/unitary-authority/southend,ED Adults & Communities,Adult Social Care,1105,Angel Solutions Community Care,04/05/2020,12066828,533.40 ,COVID-19 Response,Other Agencies
Southend-on-Sea Borough Council,http://www.opendatacommunities.org/id/unitary-authority/southend,ED Adults & Communities,Adult Social Care,1105,Angel Solutions Community Care,04/05/2020,12066828,500.85 ,Private Contractors,Other Agencies
Southend-on-Sea Borough Council,http://www.opendatacommunities.org/id/unitary-authority/southend,ED Adults & Communities,Adult Social Care,1205,Angel Solutions Community Care,04/05/2020,12066828,516.75 ,Private Contractors,Other Agencies
Southend-on-Sea Borough Council,http://www.opendatacommunities.org/id/unitary-authority/southend,ED Adults & Communities,Adult Social Care,1105,Ashley Community Care Services Ltd T/A Ashley Care,04/05/2020,12066828,"2,704.10 ",COVID-19 Response,Other Agencies
Southend-on-Sea Borough Council,http://www.opendatacommunities.org/id/unitary-authority/southend,ED Adults & Communities,Adult Social Care,1105,Ashley Community Care Services Ltd T/A Ashley Care,04/05/2020,12066828,"2,423.41 ",COVID-19 Response,Other Agencies
Southend-on-Sea Borough Council,http://www.opendatacommunities.org/id/unitary-authority/southend,ED Adults & Communities,Adult Social Care,1115,Astral Lodge Ltd,04/05/2020,12066828,"6,695.78 ",Contractor - Programmed Works,Other Agencies
Southend-on-Sea Borough Council,http://www.opendatacommunities.org/id/unitary-authority/southend,ED Adults & Communities,Adult Social Care,1115,Astral Lodge Ltd,04/05/2020,12066828,"1,545.18 ",Contractor - Variation Work,Other Agencies
Southend-on-Sea Borough Council,http://www.opendatacommunities.org/id/unitary-authority/southend,ED Children & Public Health,Children And Education Services,3791,Bold Moves Limited,04/05/2020,12066828,"2,620.00 ",3rd party Payments - Contract supervision,Other Agencies
Southend-on-Sea Borough Council,http://www.opendatacommunities.org/id/unitary-authority/southend,ED Adults & Communities,Adult Social Care,1083,Brambles Rest Home Limited,04/05/2020,12066828,526.89 ,Private Contractors,Other Agencies
Southend-on-Sea Borough Council,http://www.opendatacommunities.org/id/unitary-authority/southend,ED Children & Public Health,Children And Education Services,3307,By The Bridge Ltd,04/05/2020,12066828,"4,284.00 ",Private Contractors,Other Agencies
Southend-on-Sea Borough Council,http://www.opendatacommunities.org/id/unitary-authority/southend,ED Children & Public Health,Children And Education Services,3250,By The Bridge Ltd,04/05/2020,12066828,"4,284.00 ",Private Contractors,Other Agencies
Southend-on-Sea Borough Council,http://www.opendatacommunities.org/id/unitary-authority/southend,ED Children & Public Health,Children And Education Services,3396,Capita Business Services Division,04/05/2020,12066828,"2,747.88 ",Training Expenses,Indirect Employee Expenses
Southend-on-Sea Borough Council,http://www.opendatacommunities.org/id/unitary-authority/southend,ED Children & Public Health,Children And Education Services,3396,Capita Business Services Division,04/05/2020,12066828,"2,747.88 ",Training Expenses,Indirect Employee Expenses
Southend-on-Sea Borough Council,http://www.opendatacommunities.org/id/unitary-authority/southend,ED Adults & Communities,Adult Social Care,1105,Choices Healthcare Ltd,04/05/2020,12066828,"9,973.81 ",Private Contractors,Other Agencies
Southend-on-Sea Borough Council,http://www.opendatacommunities.org/id/unitary-authority/southend,ED Adults & Communities,Adult Social Care,1108,Choices Healthcare Ltd,04/05/2020,12066828,784.87 ,Private Contractors,Other Agencies
Southend-on-Sea Borough Council,http://www.opendatacommunities.org/id/unitary-authority/southend,ED Adults & Communities,Cultural And Related Services,4045,Edf Energy,04/05/2020,12066828,"2,605.33 ",Energy Cost Electricity,Energy Costs
Southend-on-Sea Borough Council,http://www.opendatacommunities.org/id/unitary-authority/southend,ED Adults & Communities,Cultural And Related Services,4115,Edf Energy,04/05/2020,12066828,"2,262.43 ",Energy Cost Electricity,Energy Costs
Southend-on-Sea Borough Council,http://www.opendatacommunities.org/id/unitary-authority/southend,ED Adults & Communities,Cultural And Related Services,4120,Edf Energy,04/05/2020,12066828,"8,827.96 ",Energy Cost Electricity,Energy Costs
Southend-on-Sea Borough Council,http://www.opendatacommunities.org/id/unitary-authority/southend,ED Adults & Communities,Cultural And Related Services,4256,Edf Energy,04/05/2020,12066828,"11,675.08 ",Energy Cost Electricity,Energy Costs
Southend-on-Sea Borough Council,http://www.opendatacommunities.org/id/unitary-authority/southend,ED Children & Public Health,Children And Education Services,3471,Edf Energy,04/05/2020,12066828,"1,199.47 ",Energy Cost Electricity,Energy Costs
Southend-on-Sea Borough Council,http://www.opendatacommunities.org/id/unitary-authority/southend,ED Finance & Resources,Central Services,7120,Edf Energy,04/05/2020,12066828,"2,536.14 ",Energy Cost Electricity,Energy Costs
Southend-on-Sea Borough Council,http://www.opendatacommunities.org/id/unitary-authority/southend,ED Finance & Resources,Central Services,7140,Edf Energy,04/05/2020,12066828,"35,535.22 ",Energy Cost Electricity,Energy Costs
Southend-on-Sea Borough Council,http://www.opendatacommunities.org/id/unitary-authority/southend,ED Neighbourhoods & Environment,Cultural And Related Services,4200,Edf Energy,04/05/2020,12066828,"-1,952.73 ",Energy Cost Electricity,Energy Costs
Southend-on-Sea Borough Council,http://www.opendatacommunities.org/id/unitary-authority/southend,ED Neighbourhoods & Environment,Environmental And Regulatory Services,4505,Edf Energy,04/05/2020,12066828,"1,256.24 ",Energy Cost Electricity,Energy Costs
Southend-on-Sea Borough Council,http://www.opendatacommunities.org/id/unitary-authority/southend,ED Neighbourhoods & Environment,Highways And Transport Services,5035,Edf Energy,04/05/2020,12066828,"1,347.78 ",Energy Cost Electricity,Energy Costs
Southend-on-Sea Borough Council,http://www.opendatacommunities.org/id/unitary-authority/southend,ED Neighbourhoods & Environment,Highways And Transport Services,5170,Edf Energy,04/05/2020,12066828,"46,166.67 ",Energy Cost Electricity,Energy Costs
Southend-on-Sea Borough Council,http://www.opendatacommunities.org/id/unitary-authority/southend,ED Neighbourhoods & Environment,Highways And Transport Services,5225,Edf Energy,04/05/2020,12066828,923.96 ,Energy Cost Electricity,Energy Costs
Southend-on-Sea Borough Council,http://www.opendatacommunities.org/id/unitary-authority/southend,ED Children & Public Health,Children And Education Services,3250,Fusion Fostering Ltd,04/05/2020,12066828,"4,096.43 ",Private Contractors,Other Agencies
Southend-on-Sea Borough Council,http://www.opendatacommunities.org/id/unitary-authority/southend,ED Adults & Communities,Adult Social Care,1105,Golden Keys Care Agency Limited,04/05/2020,12066828,746.76 ,Private Contractors,Other Agencies
Southend-on-Sea Borough Council,http://www.opendatacommunities.org/id/unitary-authority/southend,ED Adults & Communities,Adult Social Care,1105,Golden Keys Care Agency Limited,04/05/2020,12066828,"1,066.80 ",Private Contractors,Other Agencies
Southend-on-Sea Borough Council,http://www.opendatacommunities.org/id/unitary-authority/southend,ED Adults & Communities,Adult Social Care,1105,Golden Keys Care Agency Limited,04/05/2020,12066828,"1,173.48 ",Private Contractors,Other Agencies
Southend-on-Sea Borough Council,http://www.opendatacommunities.org/id/unitary-authority/southend,ED Children & Public Health,Children And Education Services,3307,Great Future Support Ltd,04/05/2020,12066828,"3,400.00 ",Accomodation Payment,Services
Southend-on-Sea Borough Council,http://www.opendatacommunities.org/id/unitary-authority/southend,ED Children & Public Health,Children And Education Services,3307,Great Future Support Ltd,04/05/2020,12066828,"3,800.00 ",Accomodation Payment,Services
Southend-on-Sea Borough Council,http://www.opendatacommunities.org/id/unitary-authority/southend,ED Finance & Resources,Central Services,8610,Jlt Specialty Ltd,04/05/2020,12066828,"238,940.80 ",Professional Fees,Services
Southend-on-Sea Borough Council,http://www.opendatacommunities.org/id/unitary-authority/southend,ED Children & Public Health,Children And Education Services,3290,Leighview House Ltd,04/05/2020,12066828,"2,946.25 ",Accomodation Payment,Services
Southend-on-Sea Borough Council,http://www.opendatacommunities.org/id/unitary-authority/southend,ED Adults & Communities,Housing Services,6011,Our Lady And St Helen Svp Westcliff T/A St Vincent De Paul Society,04/05/2020,12066828,"1,016.59 ",COVID-19 Response,Other Agencies
Southend-on-Sea Borough Council,http://www.opendatacommunities.org/id/unitary-authority/southend,ED Children & Public Health,Children And Education Services,3250,Pathways Care Group Limited,04/05/2020,12066828,"16,728.04 ",Private Contractors,Other Agencies
Southend-on-Sea Borough Council,http://www.opendatacommunities.org/id/unitary-authority/southend,ED Children & Public Health,Children And Education Services,3250,Pathways Care Group Limited,04/05/2020,12066828,"16,728.04 ",Private Contractors,Other Agencies
Southend-on-Sea Borough Council,http://www.opendatacommunities.org/id/unitary-authority/southend,ED Children & Public Health,Children And Education Services,3250,Peterborough City Council,04/05/2020,12066828,"30,660.00 ",Private Contractors,Other Agencies
Southend-on-Sea Borough Council,http://www.opendatacommunities.org/id/unitary-authority/southend,ED Children & Public Health,Children And Education Services,3385,Queensway House,04/05/2020,12066828,812.73 ,Conveyance of Clients,Contract Hire And Operating Leases
Southend-on-Sea Borough Council,http://www.opendatacommunities.org/id/unitary-authority/southend,ED Adults & Communities,Housing Services,6130,REDACTED PERSONAL DATA,04/05/2020,12066828,840.00 ,Loans,Services
Southend-on-Sea Borough Council,http://www.opendatacommunities.org/id/unitary-authority/southend,ED Children & Public Health,Children And Education Services,3005,REDACTED PERSONAL DATA,04/05/2020,12066828,"1,000.08 ",Grants,Grants And Subscriptions
Southend-on-Sea Borough Council,http://www.opendatacommunities.org/id/unitary-authority/southend,ED Adults & Communities,Adult Social Care,1105,Redspot Care Ltd,04/05/2020,12066828,599.44 ,COVID-19 Response,Other Agencies
Southend-on-Sea Borough Council,http://www.opendatacommunities.org/id/unitary-authority/southend,ED Adults & Communities,Housing Services,6130,Rentguarantor Ltd,04/05/2020,12066828,920.00 ,Loans,Services
Southend-on-Sea Borough Council,http://www.opendatacommunities.org/id/unitary-authority/southend,ED Transformation,Central Services,7096,Rol Solutions Ltd,04/05/2020,12066828,"12,500.00 ",Corporate IT Applications,Communications And Computing
Southend-on-Sea Borough Council,http://www.opendatacommunities.org/id/unitary-authority/southend,ED Adults & Communities,Adult Social Care,1105,Secaplus Limited T/A Seccare+,04/05/2020,12066828,746.19 ,Private Contractors,Other Agencies
Southend-on-Sea Borough Council,http://www.opendatacommunities.org/id/unitary-authority/southend,ED Adults & Communities,Adult Social Care,1105,Secaplus Limited T/A Seccare+,04/05/2020,12066828,"1,084.31 ",Private Contractors,Other Agencies
Southend-on-Sea Borough Council,http://www.opendatacommunities.org/id/unitary-authority/southend,ED Adults & Communities,Adult Social Care,1105,Secaplus Limited T/A Seccare+,04/05/2020,12066828,545.18 ,Private Contractors,Other Agencies
Southend-on-Sea Borough Council,http://www.opendatacommunities.org/id/unitary-authority/southend,ED Adults & Communities,Adult Social Care,1105,Secaplus Limited T/A Seccare+,04/05/2020,12066828,973.29 ,Private Contractors,Other Agencies
Southend-on-Sea Borough Council,http://www.opendatacommunities.org/id/unitary-authority/southend,ED Adults & Communities,Adult Social Care,1105,Secaplus Limited T/A Seccare+,04/05/2020,12066828,762.93 ,Private Contractors,Other Agencies
Southend-on-Sea Borough Council,http://www.opendatacommunities.org/id/unitary-authority/southend,ED Adults & Communities,Adult Social Care,1105,Secaplus Limited T/A Seccare+,04/05/2020,12066828,762.93 ,Private Contractors,Other Agencies
Southend-on-Sea Borough Council,http://www.opendatacommunities.org/id/unitary-authority/southend,ED Adults & Communities,Adult Social Care,1105,Secaplus Limited T/A Seccare+,04/05/2020,12066828,777.57 ,Private Contractors,Other Agencies
Southend-on-Sea Borough Council,http://www.opendatacommunities.org/id/unitary-authority/southend,ED Adults & Communities,Housing Services,6011,Southend Adult Community College,04/05/2020,12066828,"2,193.92 ",COVID-19 Response,Other Agencies
Southend-on-Sea Borough Council,http://www.opendatacommunities.org/id/unitary-authority/southend,ED Adults & Communities,Housing Services,6130,Southend Central Hotel Ltd,04/05/2020,12066828,"4,500.00 ",Accommodation Costs,Expenses
Southend-on-Sea Borough Council,http://www.opendatacommunities.org/id/unitary-authority/southend,ED Adults & Communities,Housing Services,6011,Southend Guest House,04/05/2020,12066828,"4,590.00 ",COVID-19 Response,Other Agencies
Southend-on-Sea Borough Council,http://www.opendatacommunities.org/id/unitary-authority/southend,ED Adults & Communities,Housing Services,6130,Southend Guest House,04/05/2020,12066828,"1,650.00 ",Accommodation Costs,Expenses
Southend-on-Sea Borough Council,http://www.opendatacommunities.org/id/unitary-authority/southend,ED Adults & Communities,Housing Services,6130,Southend Guest House,04/05/2020,12066828,"2,550.00 ",Accommodation Costs,Expenses
Southend-on-Sea Borough Council,http://www.opendatacommunities.org/id/unitary-authority/southend,ED Adults & Communities,Adult Social Care,1105,Spdns Nurse Care Cic.,04/05/2020,12066828,849.63 ,COVID-19 Response,Other Agencies
Southend-on-Sea Borough Council,http://www.opendatacommunities.org/id/unitary-authority/southend,ED Transformation,Central Services,7096,Stor-A-File Limited,04/05/2020,12066828,955.37 ,Document Archive,Services
Southend-on-Sea Borough Council,http://www.opendatacommunities.org/id/unitary-authority/southend,ED Growth & Housing,Highways And Transport Services,5703,The Cycle Division Ltd,04/05/2020,12066828,-648.45 ,Tools And Equipment Purchase,Equipment Furniture And Materials
Southend-on-Sea Borough Council,http://www.opendatacommunities.org/id/unitary-authority/southend,ED Neighbourhoods & Environment,Cultural And Related Services,4201,The Woodwork Dust Control Co Ltd,04/05/2020,12066828,581.00 ,Private Contractors,Other Agencies
Southend-on-Sea Borough Council,http://www.opendatacommunities.org/id/unitary-authority/southend,ED Neighbourhoods & Environment,Cultural and Related Services,7505,Tlm Management Ltd,04/05/2020,12066828,969.60 ,Private Contractors,Other Agencies
Southend-on-Sea Borough Council,http://www.opendatacommunities.org/id/unitary-authority/southend,ED Neighbourhoods & Environment,Highways And Transport Services,5170,Uk Power Networks,04/05/2020,12066828,"1,049.00 ",Private Contractors,Other Agencies
Southend-on-Sea Borough Council,http://www.opendatacommunities.org/id/unitary-authority/southend,ED Children & Public Health,Children And Education Services,3250,Windows For Children,04/05/2020,12066828,"12,308.24 ",Private Contractors,Other Agencies
Southend-on-Sea Borough Council,http://www.opendatacommunities.org/id/unitary-authority/southend,ED Children & Public Health,Children And Education Services,3250,Young People At Heart Limited,04/05/2020,12066828,"8,064.00 ",Private Contractors,Other Agencies
Southend-on-Sea Borough Council,http://www.opendatacommunities.org/id/unitary-authority/southend,ED Adults & Communities,Adult Social Care,9010,(G) Advanced Building & Maintenance Services Ltd,05/05/2020,12066840,"16,500.00 ",Grants Paid,Grants Paid
Southend-on-Sea Borough Council,http://www.opendatacommunities.org/id/unitary-authority/southend,ED Adults & Communities,Adult Social Care,9010,(G) Advanced Building & Maintenance Services Ltd,05/05/2020,12066840,"17,660.00 ",Grants Paid,Grants Paid
Southend-on-Sea Borough Council,http://www.opendatacommunities.org/id/unitary-authority/southend,ED Adults & Communities,Adult Social Care,9010,(G) Gracelands Cms Ltd,05/05/2020,12066840,"18,690.72 ",Grants Paid,Grants Paid
Southend-on-Sea Borough Council,http://www.opendatacommunities.org/id/unitary-authority/southend,ED Adults & Communities,Adult Social Care,9010,(G) Mde Power Ltd,05/05/2020,12066840,"11,275.64 ",Main Contractor,Main Contractor
Southend-on-Sea Borough Council,http://www.opendatacommunities.org/id/unitary-authority/southend,ED Adults & Communities,Adult Social Care,9010,(N) Hoist Uk Limited,05/05/2020,12066840,"39,384.00 ",Main Contractor,Main Contractor
Southend-on-Sea Borough Council,http://www.opendatacommunities.org/id/unitary-authority/southend,ED Adults & Communities,Adult Social Care,1105,Ashley Community Care Services Ltd T/A Ashley Care,05/05/2020,12066840,560.00 ,Private Contractors,Other Agencies
Southend-on-Sea Borough Council,http://www.opendatacommunities.org/id/unitary-authority/southend,ED Adults & Communities,Adult Social Care,1170,Ashley Community Care Services Ltd T/A Ashley Care,05/05/2020,12066840,"3,640.00 ",Social Care Services,Services
Southend-on-Sea Borough Council,http://www.opendatacommunities.org/id/unitary-authority/southend,ED Children & Public Health,Children And Education Services,3307,Avance Ltd,05/05/2020,12066840,"2,250.00 ",Accomodation Payment,Services
Southend-on-Sea Borough Council,http://www.opendatacommunities.org/id/unitary-authority/southend,ED Children & Public Health,Children And Education Services,3307,Canary House Care Limited,05/05/2020,12066840,"1,350.00 ",Accomodation Payment,Services
Southend-on-Sea Borough Council,http://www.opendatacommunities.org/id/unitary-authority/southend,ED Adults & Communities,Adult Social Care,9999,Canary House Care Limited,05/05/2020,12066840,"1,800.00 ",Error Account,Error Account
Southend-on-Sea Borough Council,http://www.opendatacommunities.org/id/unitary-authority/southend,ED Children & Public Health,Children And Education Services,3250,Care In Mind Residential,05/05/2020,12066840,"18,954.33 ",Private Contractors,Other Agencies
Southend-on-Sea Borough Council,http://www.opendatacommunities.org/id/unitary-authority/southend,ED Finance & Resources,Central Services,8600,Corporate Travel Management (North) Limited,05/05/2020,12066840,"2,055.67 ",Travel Expenses,Car Allowances
Southend-on-Sea Borough Council,http://www.opendatacommunities.org/id/unitary-authority/southend,ED Children & Public Health,Children And Education Services,3290,Creative Support Solutions Ltd,05/05/2020,12066840,"2,098.57 ",Accomodation Payment,Services
Southend-on-Sea Borough Council,http://www.opendatacommunities.org/id/unitary-authority/southend,ED Children & Public Health,Children And Education Services,3692,Forensis Ltd,05/05/2020,12066840,595.93 ,Professional Fees,Services
Southend-on-Sea Borough Council,http://www.opendatacommunities.org/id/unitary-authority/southend,ED Children & Public Health,Children And Education Services,3250,Futures For Children,05/05/2020,12066840,"3,180.24 ",Private Contractors,Other Agencies
Southend-on-Sea Borough Council,http://www.opendatacommunities.org/id/unitary-authority/southend,ED Children & Public Health,Children And Education Services,3250,Futures For Children,05/05/2020,12066840,"3,180.24 ",Private Contractors,Other Agencies
Southend-on-Sea Borough Council,http://www.opendatacommunities.org/id/unitary-authority/southend,ED Children & Public Health,Children And Education Services,3250,Futures For Children,05/05/2020,12066840,"3,148.60 ",Private Contractors,Other Agencies
Southend-on-Sea Borough Council,http://www.opendatacommunities.org/id/unitary-authority/southend,ED Children & Public Health,Children And Education Services,3250,Futures For Children,05/05/2020,12066840,"3,180.24 ",Private Contractors,Other Agencies
Southend-on-Sea Borough Council,http://www.opendatacommunities.org/id/unitary-authority/southend,ED Children & Public Health,Children And Education Services,3250,Futures For Children,05/05/2020,12066840,"3,180.24 ",Private Contractors,Other Agencies
Southend-on-Sea Borough Council,http://www.opendatacommunities.org/id/unitary-authority/southend,ED Children & Public Health,Children And Education Services,3250,Futures For Children,05/05/2020,12066840,"3,148.60 ",Private Contractors,Other Agencies
Southend-on-Sea Borough Council,http://www.opendatacommunities.org/id/unitary-authority/southend,ED Adults & Communities,Adult Social Care,1105,Golden Keys Care Agency Limited,05/05/2020,12066840,765.81 ,Private Contractors,Other Agencies
Southend-on-Sea Borough Council,http://www.opendatacommunities.org/id/unitary-authority/southend,ED Adults & Communities,Adult Social Care,1105,Golden Keys Care Agency Limited,05/05/2020,12066840,"1,238.25 ",Private Contractors,Other Agencies
Southend-on-Sea Borough Council,http://www.opendatacommunities.org/id/unitary-authority/southend,ED Adults & Communities,Adult Social Care,1105,Golden Keys Care Agency Limited,05/05/2020,12066840,"1,028.70 ",Private Contractors,Other Agencies
Southend-on-Sea Borough Council,http://www.opendatacommunities.org/id/unitary-authority/southend,ED Adults & Communities,Adult Social Care,1205,Golden Keys Care Agency Limited,05/05/2020,12066840,891.54 ,Private Contractors,Other Agencies
Southend-on-Sea Borough Council,http://www.opendatacommunities.org/id/unitary-authority/southend,ED Children & Public Health,Children And Education Services,3290,Griha Care And Support Limited,05/05/2020,12066840,"7,425.00 ",Accomodation Payment,Services
Southend-on-Sea Borough Council,http://www.opendatacommunities.org/id/unitary-authority/southend,ED Children & Public Health,Children And Education Services,3307,Griha Care And Support Limited,05/05/2020,12066840,"3,746.43 ",Accomodation Payment,Services
Southend-on-Sea Borough Council,http://www.opendatacommunities.org/id/unitary-authority/southend,ED Children & Public Health,Children And Education Services,3308,Griha Care And Support Limited,05/05/2020,12066840,"1,798.57 ",Accomodation Payment,Services
Southend-on-Sea Borough Council,http://www.opendatacommunities.org/id/unitary-authority/southend,ED Neighbourhoods & Environment,Highways And Transport Services,5170,It Architecture Europe,05/05/2020,12066840,"3,602.22 ",Private Contractors,Other Agencies
Southend-on-Sea Borough Council,http://www.opendatacommunities.org/id/unitary-authority/southend,ED Children & Public Health,Children And Education Services,3310,Learn Solutions Ltd T/A Tlc Live,05/05/2020,12066840,912.00 ,Education Services,Services
Southend-on-Sea Borough Council,http://www.opendatacommunities.org/id/unitary-authority/southend,ED Children & Public Health,Children And Education Services,3310,Learn Solutions Ltd T/A Tlc Live,05/05/2020,12066840,532.00 ,Education Services,Services
Southend-on-Sea Borough Council,http://www.opendatacommunities.org/id/unitary-authority/southend,ED Children & Public Health,Children And Education Services,3310,Learn Solutions Ltd T/A Tlc Live,05/05/2020,12066840,"1,672.00 ",Education Services,Services
Southend-on-Sea Borough Council,http://www.opendatacommunities.org/id/unitary-authority/southend,ED Children & Public Health,Children And Education Services,3692,Lorraine Pilime T/A Penina Social Work Services Ltd,05/05/2020,12066840,604.60 ,Professional Fees,Services
Southend-on-Sea Borough Council,http://www.opendatacommunities.org/id/unitary-authority/southend,ED Finance & Resources,Cultural And Related Services,5606,Lsh Prop Man Income General Client Acc T/A Lambert Smith Hampton - Nottingham Branch,05/05/2020,12066840,"15,000.00 ",Service Charges,Rents
Southend-on-Sea Borough Council,http://www.opendatacommunities.org/id/unitary-authority/southend,ED Adults & Communities,Adult Social Care,9010,Mobility Solutions (South) Ltd,05/05/2020,12066840,"8,108.00 ",Grants Paid,Grants Paid
Southend-on-Sea Borough Council,http://www.opendatacommunities.org/id/unitary-authority/southend,ED Adults & Communities,Adult Social Care,9010,Mobility Solutions (South) Ltd,05/05/2020,12066840,"9,920.00 ",Grants Paid,Grants Paid
Southend-on-Sea Borough Council,http://www.opendatacommunities.org/id/unitary-authority/southend,ED Children & Public Health,Children And Education Services,3250,New Forest Care Ltd,05/05/2020,12066840,"22,080.00 ",Private Contractors,Other Agencies
Southend-on-Sea Borough Council,http://www.opendatacommunities.org/id/unitary-authority/southend,ED Children & Public Health,Children And Education Services,3265,Ofsted,05/05/2020,12066840,"3,216.00 ",Subscriptions,Grants And Subscriptions
Southend-on-Sea Borough Council,http://www.opendatacommunities.org/id/unitary-authority/southend,ED Adults & Communities,Cultural And Related Services,4012,Ppl Prs Ltd,05/05/2020,12066840,"1,195.97 ",Professional Fees,Services
Southend-on-Sea Borough Council,http://www.opendatacommunities.org/id/unitary-authority/southend,ED Adults & Communities,Adult Social Care,9010,Premier Plants Uk Ltd,05/05/2020,12066840,"2,151.60 ",Main Contractor,Main Contractor
Southend-on-Sea Borough Council,http://www.opendatacommunities.org/id/unitary-authority/southend,ED Children & Public Health,Children And Education Services,3265,REDACTED PERSONAL DATA,05/05/2020,12066840,917.10 ,Conveyance of Clients,Contract Hire And Operating Leases
Southend-on-Sea Borough Council,http://www.opendatacommunities.org/id/unitary-authority/southend,ED Children & Public Health,Children And Education Services,3265,REDACTED PERSONAL DATA,05/05/2020,12066840,592.34 ,Foster Carer Allowance,Other Agencies
Southend-on-Sea Borough Council,http://www.opendatacommunities.org/id/unitary-authority/southend,ED Children & Public Health,Children And Education Services,3265,REDACTED PERSONAL DATA,05/05/2020,12066840,676.20 ,Foster Carer Allowance,Other Agencies
Southend-on-Sea Borough Council,http://www.opendatacommunities.org/id/unitary-authority/southend,ED Children & Public Health,Children And Education Services,3265,REDACTED PERSONAL DATA,05/05/2020,12066840,625.03 ,Foster Carer Allowance,Other Agencies
Southend-on-Sea Borough Council,http://www.opendatacommunities.org/id/unitary-authority/southend,ED Children & Public Health,Children And Education Services,3265,REDACTED PERSONAL DATA,05/05/2020,12066840,572.95 ,Foster Carer Allowance,Other Agencies
Southend-on-Sea Borough Council,http://www.opendatacommunities.org/id/unitary-authority/southend,ED Children & Public Health,Children And Education Services,3265,REDACTED PERSONAL DATA,05/05/2020,12066840,536.55 ,Foster Carer Fee Paid,Other Agencies
Southend-on-Sea Borough Council,http://www.opendatacommunities.org/id/unitary-authority/southend,ED Children & Public Health,Children And Education Services,3265,REDACTED PERSONAL DATA,05/05/2020,12066840,954.68 ,Specialist foster carer allowance,Other Agencies
Southend-on-Sea Borough Council,http://www.opendatacommunities.org/id/unitary-authority/southend,ED Children & Public Health,Children And Education Services,3265,REDACTED PERSONAL DATA,05/05/2020,12066840,536.55 ,Foster Carer Specialist,Other Agencies
Southend-on-Sea Borough Council,http://www.opendatacommunities.org/id/unitary-authority/southend,ED Children & Public Health,Children And Education Services,3265,REDACTED PERSONAL DATA,05/05/2020,12066840,636.23 ,Specialist foster carer allowance,Other Agencies
Southend-on-Sea Borough Council,http://www.opendatacommunities.org/id/unitary-authority/southend,ED Children & Public Health,Children And Education Services,3265,REDACTED PERSONAL DATA,05/05/2020,12066840,536.55 ,Foster Carer Specialist,Other Agencies
Southend-on-Sea Borough Council,http://www.opendatacommunities.org/id/unitary-authority/southend,ED Children & Public Health,Children And Education Services,3265,REDACTED PERSONAL DATA,05/05/2020,12066840,676.20 ,Foster Carer Allowance,Other Agencies
Southend-on-Sea Borough Council,http://www.opendatacommunities.org/id/unitary-authority/southend,ED Children & Public Health,Children And Education Services,3265,REDACTED PERSONAL DATA,05/05/2020,12066840,763.14 ,Foster Carer Allowance,Other Agencies
Southend-on-Sea Borough Council,http://www.opendatacommunities.org/id/unitary-authority/southend,ED Children & Public Health,Children And Education Services,3265,REDACTED PERSONAL DATA,05/05/2020,12066840,536.55 ,Foster Carer Specialist,Other Agencies
Southend-on-Sea Borough Council,http://www.opendatacommunities.org/id/unitary-authority/southend,ED Children & Public Health,Children And Education Services,3265,REDACTED PERSONAL DATA,05/05/2020,12066840,763.14 ,Foster Carer Allowance,Other Agencies
Southend-on-Sea Borough Council,http://www.opendatacommunities.org/id/unitary-authority/southend,ED Children & Public Health,Children And Education Services,3265,REDACTED PERSONAL DATA,05/05/2020,12066840,665.00 ,Foster Carer Allowance,Other Agencies
Southend-on-Sea Borough Council,http://www.opendatacommunities.org/id/unitary-authority/southend,ED Children & Public Health,Children And Education Services,3265,REDACTED PERSONAL DATA,05/05/2020,12066840,536.55 ,Foster Carer Fee Paid,Other Agencies
Southend-on-Sea Borough Council,http://www.opendatacommunities.org/id/unitary-authority/southend,ED Children & Public Health,Children And Education Services,3265,REDACTED PERSONAL DATA,05/05/2020,12066840,536.55 ,Foster Carer Fee Paid,Other Agencies
Southend-on-Sea Borough Council,http://www.opendatacommunities.org/id/unitary-authority/southend,ED Children & Public Health,Children And Education Services,3265,REDACTED PERSONAL DATA,05/05/2020,12066840,557.48 ,Foster Carer Allowance,Other Agencies
Southend-on-Sea Borough Council,http://www.opendatacommunities.org/id/unitary-authority/southend,ED Children & Public Health,Children And Education Services,3265,REDACTED PERSONAL DATA,05/05/2020,12066840,536.55 ,Foster Carer Fee Paid,Other Agencies
Southend-on-Sea Borough Council,http://www.opendatacommunities.org/id/unitary-authority/southend,ED Children & Public Health,Children And Education Services,3265,REDACTED PERSONAL DATA,05/05/2020,12066840,"1,278.88 ",Foster Carer Fee Paid,Other Agencies
Southend-on-Sea Borough Council,http://www.opendatacommunities.org/id/unitary-authority/southend,ED Children & Public Health,Children And Education Services,3265,REDACTED PERSONAL DATA,05/05/2020,12066840,676.20 ,Foster Carer Allowance,Other Agencies
Southend-on-Sea Borough Council,http://www.opendatacommunities.org/id/unitary-authority/southend,ED Children & Public Health,Children And Education Services,3265,REDACTED PERSONAL DATA,05/05/2020,12066840,720.09 ,Specialist foster carer allowance,Other Agencies
Southend-on-Sea Borough Council,http://www.opendatacommunities.org/id/unitary-authority/southend,ED Children & Public Health,Children And Education Services,3265,REDACTED PERSONAL DATA,05/05/2020,12066840,536.55 ,Foster Carer Specialist,Other Agencies
Southend-on-Sea Borough Council,http://www.opendatacommunities.org/id/unitary-authority/southend,ED Children & Public Health,Children And Education Services,3265,REDACTED PERSONAL DATA,05/05/2020,12066840,536.55 ,Foster Carer Fee Paid,Other Agencies
Southend-on-Sea Borough Council,http://www.opendatacommunities.org/id/unitary-authority/southend,ED Children & Public Health,Children And Education Services,3265,REDACTED PERSONAL DATA,05/05/2020,12066840,552.37 ,Foster Carer Allowance,Other Agencies
Southend-on-Sea Borough Council,http://www.opendatacommunities.org/id/unitary-authority/southend,ED Children & Public Health,Children And Education Services,3265,REDACTED PERSONAL DATA,05/05/2020,12066840,536.55 ,Foster Carer Fee Paid,Other Agencies
Southend-on-Sea Borough Council,http://www.opendatacommunities.org/id/unitary-authority/southend,ED Children & Public Health,Children And Education Services,3290,Safe Haven Services Ltd,05/05/2020,12066840,"1,910.00 ",Accomodation Payment,Services
Southend-on-Sea Borough Council,http://www.opendatacommunities.org/id/unitary-authority/southend,ED Children & Public Health,Children And Education Services,3307,Safe Haven Services Ltd,05/05/2020,12066840,750.00 ,Accomodation Payment,Services
Southend-on-Sea Borough Council,http://www.opendatacommunities.org/id/unitary-authority/southend,ED Children & Public Health,Children And Education Services,3308,Safe Haven Services Ltd,05/05/2020,12066840,787.50 ,Accomodation Payment,Services
Southend-on-Sea Borough Council,http://www.opendatacommunities.org/id/unitary-authority/southend,ED Neighbourhoods & Environment,Highways And Transport Services,5225,Sagoss Limited,05/05/2020,12066840,"1,426.59 ",Tools And Equipment Purchase,Equipment Furniture And Materials
Southend-on-Sea Borough Council,http://www.opendatacommunities.org/id/unitary-authority/southend,ED Children & Public Health,Children And Education Services,3591,Sanctuary Housing Association,05/05/2020,12066840,"1,100.16 ",Accomodation Payment,Services
Southend-on-Sea Borough Council,http://www.opendatacommunities.org/id/unitary-authority/southend,ED Finance & Resources,Central Services,2119,Savs,05/05/2020,12066840,"1,053.99 ",Contributions,Grants And Subscriptions
Southend-on-Sea Borough Council,http://www.opendatacommunities.org/id/unitary-authority/southend,ED Adults & Communities,Housing Services,6011,Southend Central Hotel Ltd,05/05/2020,12066840,"8,145.00 ",COVID-19 Response,Other Agencies
Southend-on-Sea Borough Council,http://www.opendatacommunities.org/id/unitary-authority/southend,ED Adults & Communities,Housing Services,6011,Southend Central Hotel Ltd,05/05/2020,12066840,"-8,145.00 ",COVID-19 Response,Other Agencies
Southend-on-Sea Borough Council,http://www.opendatacommunities.org/id/unitary-authority/southend,ED Adults & Communities,Housing Services,6011,Southend Central Hotel Ltd,05/05/2020,12066840,"8,730.00 ",COVID-19 Response,Other Agencies
Southend-on-Sea Borough Council,http://www.opendatacommunities.org/id/unitary-authority/southend,ED Adults & Communities,Housing Services,6011,Southend Inn Hotel Ltd,05/05/2020,12066840,"14,895.00 ",COVID-19 Response,Other Agencies
Southend-on-Sea Borough Council,http://www.opendatacommunities.org/id/unitary-authority/southend,ED Children & Public Health,Children And Education Services,3308,Southend On Sea Ymca,05/05/2020,12066840,"5,070.00 ",Accomodation Payment,Services
Southend-on-Sea Borough Council,http://www.opendatacommunities.org/id/unitary-authority/southend,ED Children & Public Health,Children And Education Services,3308,Southend On Sea Ymca,05/05/2020,12066840,"5,070.00 ",Accomodation Payment,Services
Southend-on-Sea Borough Council,http://www.opendatacommunities.org/id/unitary-authority/southend,ED Transformation,Central Services,7096,Stor-A-File Limited,05/05/2020,12066840,"2,254.06 ",Document Archive,Services
Southend-on-Sea Borough Council,http://www.opendatacommunities.org/id/unitary-authority/southend,ED Transformation,Central Services,7096,Stor-A-File Limited,05/05/2020,12066840,821.51 ,Document Archive,Services
Southend-on-Sea Borough Council,http://www.opendatacommunities.org/id/unitary-authority/southend,ED Adults & Communities,Adult Social Care,1083,The Strathmore Care Group,05/05/2020,12066840,"5,665.66 ",Private Contractors,Other Agencies
Southend-on-Sea Borough Council,http://www.opendatacommunities.org/id/unitary-authority/southend,ED Adults & Communities,Adult Social Care,1083,The Strathmore Care Group,05/05/2020,12066840,"4,414.80 ",Private Contractors,Other Agencies
Southend-on-Sea Borough Council,http://www.opendatacommunities.org/id/unitary-authority/southend,ED Children & Public Health,Adult Social Care,1035,University Of Essex,05/05/2020,12066840,"2,391.00 ",Consultancy Services,Services
Southend-on-Sea Borough Council,http://www.opendatacommunities.org/id/unitary-authority/southend,ED Finance & Resources,Central Services,7140,(G) Precision Lift Services Ltd,06/05/2020,12066849,938.88 ,Repairs And Maintenance Contracts,"Repairs, alterations and maintenance of buildings"
Southend-on-Sea Borough Council,http://www.opendatacommunities.org/id/unitary-authority/southend,ED Adults & Communities,Adult Social Care,9010,(G) R & A Mechanical Services Ltd,06/05/2020,12066849,"23,934.00 ",Main Contractor,Main Contractor
Southend-on-Sea Borough Council,http://www.opendatacommunities.org/id/unitary-authority/southend,ED Neighbourhoods & Environment,Cultural And Related Services,4201,(G) Wicksteed Leisure Ltd T/A Wicksteed Playscapes,06/05/2020,12066849,"3,044.12 ",Private Contractors,Other Agencies
Southend-on-Sea Borough Council,http://www.opendatacommunities.org/id/unitary-authority/southend,ED Finance & Resources,Environmental and Regulatory Services,7535,(N) Coldstar (Uk) Ltd,06/05/2020,12066849,"3,789.10 ",Repairs And Maintenance Contracts,"Repairs, alterations and maintenance of buildings"
Southend-on-Sea Borough Council,http://www.opendatacommunities.org/id/unitary-authority/southend,ED Neighbourhoods & Environment,Cultural and Related Services,7505,Agrovista Uk Ltd,06/05/2020,12066849,"2,787.53 ",Materials,Equipment Furniture And Materials
Southend-on-Sea Borough Council,http://www.opendatacommunities.org/id/unitary-authority/southend,ED Adults & Communities,Adult Social Care,1105,Ashley Community Care Services Ltd T/A Ashley Care,06/05/2020,12066849,"16,822.81 ",Private Contractors,Other Agencies
Southend-on-Sea Borough Council,http://www.opendatacommunities.org/id/unitary-authority/southend,ED Adults & Communities,Adult Social Care,1108,Ashley Community Care Services Ltd T/A Ashley Care,06/05/2020,12066849,890.74 ,Private Contractors,Other Agencies
Southend-on-Sea Borough Council,http://www.opendatacommunities.org/id/unitary-authority/southend,ED Adults & Communities,Adult Social Care,1205,Ashley Community Care Services Ltd T/A Ashley Care,06/05/2020,12066849,"2,144.55 ",Private Contractors,Other Agencies
Southend-on-Sea Borough Council,http://www.opendatacommunities.org/id/unitary-authority/southend,ED Adults & Communities,Adult Social Care,1115,Ashley Community Care Services Ltd T/A Ashley Care,06/05/2020,12066849,"2,335.33 ",Contractor - Programmed Works,Other Agencies
Southend-on-Sea Borough Council,http://www.opendatacommunities.org/id/unitary-authority/southend,ED Children & Public Health,Children And Education Services,3250,Barnardos Midlands,06/05/2020,12066849,"3,753.72 ",Private Contractors,Other Agencies
Southend-on-Sea Borough Council,http://www.opendatacommunities.org/id/unitary-authority/southend,ED Growth & Housing,Planning and Development Services,5520,Bnp Paribas Real Estate Advisory & Property Management Uk Ltd,06/05/2020,12066849,"3,470.00 ",Consultancy Services,Services
Southend-on-Sea Borough Council,http://www.opendatacommunities.org/id/unitary-authority/southend,ED Neighbourhoods & Environment,Housing Services,9008,Capital Tmp T/A Capital Traffic Management & Parking Ltd,06/05/2020,12066849,"11,000.00 ",Main Contractor,Main Contractor
Southend-on-Sea Borough Council,http://www.opendatacommunities.org/id/unitary-authority/southend,ED Adults & Communities,Adult Social Care,1105,Choices Healthcare Ltd,06/05/2020,12066849,"10,420.61 ",Private Contractors,Other Agencies
Southend-on-Sea Borough Council,http://www.opendatacommunities.org/id/unitary-authority/southend,ED Adults & Communities,Adult Social Care,1108,Choices Healthcare Ltd,06/05/2020,12066849,777.24 ,Private Contractors,Other Agencies
Southend-on-Sea Borough Council,http://www.opendatacommunities.org/id/unitary-authority/southend,ED Adults & Communities,Adult Social Care,1205,Choices Healthcare Ltd,06/05/2020,12066849,643.89 ,Private Contractors,Other Agencies
Southend-on-Sea Borough Council,http://www.opendatacommunities.org/id/unitary-authority/southend,ED Adults & Communities,Adult Social Care,1105,De Vere Care Partnership Ltd,06/05/2020,12066849,"10,503.16 ",Private Contractors,Other Agencies
Southend-on-Sea Borough Council,http://www.opendatacommunities.org/id/unitary-authority/southend,ED Adults & Communities,Adult Social Care,1205,De Vere Care Partnership Ltd,06/05/2020,12066849,"1,485.90 ",Private Contractors,Other Agencies
Southend-on-Sea Borough Council,http://www.opendatacommunities.org/id/unitary-authority/southend,ED Children & Public Health,Children And Education Services,3175,Dillex Solicitors,06/05/2020,12066849,"12,500.00 ",Court Costs And Legal Fees,Services
Southend-on-Sea Borough Council,http://www.opendatacommunities.org/id/unitary-authority/southend,ED Children & Public Health,Children And Education Services,3389,E J C Associates Ltd,06/05/2020,12066849,"4,800.00 ",Professional Fees,Services
Southend-on-Sea Borough Council,http://www.opendatacommunities.org/id/unitary-authority/southend,ED Children & Public Health,Children And Education Services,3389,E J C Associates Ltd,06/05/2020,12066849,"4,800.00 ",Professional Fees,Services
Southend-on-Sea Borough Council,http://www.opendatacommunities.org/id/unitary-authority/southend,ED Children & Public Health,Children And Education Services,3156,Edufocus Ltd,06/05/2020,12066849,"4,999.00 ",Services Fees And Charges,Services
Southend-on-Sea Borough Council,http://www.opendatacommunities.org/id/unitary-authority/southend,ED Growth & Housing,Highways And Transport Services,5703,Essex County Council,06/05/2020,12066849,"4,465.15 ",Other Local Authorities,Other Local Authorities
Southend-on-Sea Borough Council,http://www.opendatacommunities.org/id/unitary-authority/southend,ED Growth & Housing,Highways And Transport Services,5704,Essex County Council,06/05/2020,12066849,"1,440.00 ",Other Local Authorities,Other Local Authorities
Southend-on-Sea Borough Council,http://www.opendatacommunities.org/id/unitary-authority/southend,ED Legal & Democratic Services,Central Services,7105,Essex County Council,06/05/2020,12066849,"2,120.00 ",Subscriptions,Grants And Subscriptions
Southend-on-Sea Borough Council,http://www.opendatacommunities.org/id/unitary-authority/southend,ED Transformation,Central Services,7125,Essex County Council,06/05/2020,12066849,"34,714.00 ",Professional Fees,Services
Southend-on-Sea Borough Council,http://www.opendatacommunities.org/id/unitary-authority/southend,ED Adults & Communities,Adult Social Care,1105,Golden Keys Care Agency Limited,06/05/2020,12066849,"1,920.24 ",Private Contractors,Other Agencies
Southend-on-Sea Borough Council,http://www.opendatacommunities.org/id/unitary-authority/southend,ED Adults & Communities,Adult Social Care,1105,Golden Keys Care Agency Limited,06/05/2020,12066849,853.44 ,Private Contractors,Other Agencies
Southend-on-Sea Borough Council,http://www.opendatacommunities.org/id/unitary-authority/southend,ED Adults & Communities,Adult Social Care,9010,Hemsley Orrell Partnership,06/05/2020,12066849,928.00 ,Main Contractor,Main Contractor
Southend-on-Sea Borough Council,http://www.opendatacommunities.org/id/unitary-authority/southend,ED Neighbourhoods & Environment,Highways And Transport Services,5245,Itso Ltd,06/05/2020,12066849,"1,350.00 ",Services Fees And Charges,Services
Southend-on-Sea Borough Council,http://www.opendatacommunities.org/id/unitary-authority/southend,ED Finance & Resources,Central Services,8610,Jlt Specialty Ltd,06/05/2020,12066849,"46,424.00 ",Professional Fees,Services
Southend-on-Sea Borough Council,http://www.opendatacommunities.org/id/unitary-authority/southend,ED Adults & Communities,Cultural And Related Services,4045,London Art Workshop Ltd,06/05/2020,12066849,681.00 ,Cultural And Entertainment Services,Services
Southend-on-Sea Borough Council,http://www.opendatacommunities.org/id/unitary-authority/southend,ED Adults & Communities,Cultural And Related Services,4134,"Miss Burns-Donaldson T/A Southend Combat Academy For Schools, Charity & Community",06/05/2020,12066849,"2,000.00 ",Private Contractors,Other Agencies
Southend-on-Sea Borough Council,http://www.opendatacommunities.org/id/unitary-authority/southend,ED Growth & Housing,Planning and Development Services,5550,Mott Macdonald,06/05/2020,12066849,"4,489.10 ",Consultancy Services,Services
Southend-on-Sea Borough Council,http://www.opendatacommunities.org/id/unitary-authority/southend,ED Adults & Communities,Housing Services,6130,Regis Group T/A Lifespace,06/05/2020,12066849,"2,365.38 ",Loans,Services
Southend-on-Sea Borough Council,http://www.opendatacommunities.org/id/unitary-authority/southend,ED Finance & Resources,Housing Services,6167,Serco Limited,06/05/2020,12066849,"8,881.00 ",Contractor - Variation Work,Other Agencies
Southend-on-Sea Borough Council,http://www.opendatacommunities.org/id/unitary-authority/southend,ED Children & Public Health,Public Health,7713,Skyguard Limited,06/05/2020,12066849,"3,643.40 ",Tools And Equipment Purchase,Equipment Furniture And Materials
Southend-on-Sea Borough Council,http://www.opendatacommunities.org/id/unitary-authority/southend,ED Children & Public Health,Children And Education Services,3791,Southend Guest House,06/05/2020,12066849,"2,850.00 ",Accomodation Payment,Services
Southend-on-Sea Borough Council,http://www.opendatacommunities.org/id/unitary-authority/southend,ED Adults & Communities,Housing Services,6210,Southend On Sea Ymca,06/05/2020,12066849,"36,463.20 ",Social Care Services,Services
Southend-on-Sea Borough Council,http://www.opendatacommunities.org/id/unitary-authority/southend,ED Adults & Communities,Adult Social Care,1083,The Strathmore Care Group,06/05/2020,12066849,882.96 ,Private Contractors,Other Agencies
Southend-on-Sea Borough Council,http://www.opendatacommunities.org/id/unitary-authority/southend,ED Adults & Communities,Housing Services,6130,Timeplan Investments Limited,06/05/2020,12066849,"1,200.00 ",Loans,Services
Southend-on-Sea Borough Council,http://www.opendatacommunities.org/id/unitary-authority/southend,ED Growth & Housing,Housing Services,9005,Tracy Clarke Tree Consultancy Ltd,06/05/2020,12066849,"3,360.00 ",Main Contractor,Main Contractor
Southend-on-Sea Borough Council,http://www.opendatacommunities.org/id/unitary-authority/southend,ED Growth & Housing,Housing Services,9005,(G) Advanced Building & Maintenance Services Ltd,07/05/2020,12066862,"3,800.00 ",Contractors General,Contractors General
Southend-on-Sea Borough Council,http://www.opendatacommunities.org/id/unitary-authority/southend,ED Finance & Resources,Central Services,9011,(G) Blake Contractors Limited,07/05/2020,12066862,595.00 ,Main Contractor,Main Contractor
Southend-on-Sea Borough Council,http://www.opendatacommunities.org/id/unitary-authority/southend,ED Adults & Communities,Adult Social Care,1209,(G) Blake Contractors Limited,07/05/2020,12066862,695.00 ,Tools And Equipment Purchase,Equipment Furniture And Materials
Southend-on-Sea Borough Council,http://www.opendatacommunities.org/id/unitary-authority/southend,ED Transformation,Central Services,7132,(G) Cityfibre Limited,07/05/2020,12066862,"82,500.00 ",Internet,Communications And Computing
Southend-on-Sea Borough Council,http://www.opendatacommunities.org/id/unitary-authority/southend,ED Adults & Communities,Adult Social Care,9010,(G) R & A Mechanical Services Ltd,07/05/2020,12066862,"46,880.00 ",Main Contractor,Main Contractor
Southend-on-Sea Borough Council,http://www.opendatacommunities.org/id/unitary-authority/southend,ED Adults & Communities,Adult Social Care,9010,(G) Sfs Fire Services Ltd T/A Hall & Kay Fire Engineering,07/05/2020,12066862,"8,193.16 ",Main Contractor,Main Contractor
Southend-on-Sea Borough Council,http://www.opendatacommunities.org/id/unitary-authority/southend,ED Finance & Resources,Central Services,9011,(G) Specialist Interior Finishers Ltd,07/05/2020,12066862,"5,500.00 ",Other Expenses,Other Expenses
Southend-on-Sea Borough Council,http://www.opendatacommunities.org/id/unitary-authority/southend,ED Finance & Resources,Central Services,9011,(G) Specialist Interior Finishers Ltd,07/05/2020,12066862,"1,580.00 ",Other Expenses,Other Expenses
Southend-on-Sea Borough Council,http://www.opendatacommunities.org/id/unitary-authority/southend,ED Adults & Communities,Cultural And Related Services,4115,(N) Ccr Property Services Ltd,07/05/2020,12066862,"6,724.00 ",Repairs And Maintenance Contracts,"Repairs, alterations and maintenance of buildings"
Southend-on-Sea Borough Council,http://www.opendatacommunities.org/id/unitary-authority/southend,ED Growth & Housing,Housing Services,9005,(N) Ghyllside Ltd,07/05/2020,12066862,"33,944.00 ",Contractors General,Contractors General
Southend-on-Sea Borough Council,http://www.opendatacommunities.org/id/unitary-authority/southend,ED Adults & Communities,Adult Social Care,1209,Accora Ltd,07/05/2020,12066862,"1,002.00 ",Tools And Equipment Repair And Maintenance,Equipment Furniture And Materials
Southend-on-Sea Borough Council,http://www.opendatacommunities.org/id/unitary-authority/southend,ED Neighbourhoods & Environment,Cultural and Related Services,7505,Agrovista Uk Ltd,07/05/2020,12066862,"1,102.01 ",Materials,Equipment Furniture And Materials
Southend-on-Sea Borough Council,http://www.opendatacommunities.org/id/unitary-authority/southend,ED Neighbourhoods & Environment,Cultural And Related Services,7540,Agrovista Uk Ltd,07/05/2020,12066862,673.68 ,Materials,Equipment Furniture And Materials
Southend-on-Sea Borough Council,http://www.opendatacommunities.org/id/unitary-authority/southend,ED Children & Public Health,Children And Education Services,3590,Attenti Ltd,07/05/2020,12066862,"1,295.00 ",Agency Staff,Direct Employee Expenses
Southend-on-Sea Borough Council,http://www.opendatacommunities.org/id/unitary-authority/southend,ED Children & Public Health,Public Health,7665,Bionical Solutions Limited,07/05/2020,12066862,"6,150.00 ",IT Contracts,Communications And Computing
Southend-on-Sea Borough Council,http://www.opendatacommunities.org/id/unitary-authority/southend,ED Children & Public Health,Children And Education Services,3692,Cf Social Work Ltd,07/05/2020,12066862,"2,126.46 ",Professional Fees,Services
Southend-on-Sea Borough Council,http://www.opendatacommunities.org/id/unitary-authority/southend,ED Children & Public Health,Children And Education Services,3692,Cf Social Work Ltd,07/05/2020,12066862,"8,990.00 ",Professional Fees,Services
Southend-on-Sea Borough Council,http://www.opendatacommunities.org/id/unitary-authority/southend,ED Children & Public Health,Children And Education Services,3692,Cf Social Work Ltd,07/05/2020,12066862,"3,150.00 ",Professional Fees,Services
Southend-on-Sea Borough Council,http://www.opendatacommunities.org/id/unitary-authority/southend,ED Children & Public Health,Children And Education Services,3692,Cf Social Work Ltd,07/05/2020,12066862,"3,150.00 ",Professional Fees,Services
Southend-on-Sea Borough Council,http://www.opendatacommunities.org/id/unitary-authority/southend,ED Children & Public Health,Children And Education Services,3692,Cf Social Work Ltd,07/05/2020,12066862,"7,145.00 ",Professional Fees,Services
Southend-on-Sea Borough Council,http://www.opendatacommunities.org/id/unitary-authority/southend,ED Children & Public Health,Children And Education Services,3250,Durham County Council,07/05/2020,12066862,"31,806.00 ",Private Contractors,Other Agencies
Southend-on-Sea Borough Council,http://www.opendatacommunities.org/id/unitary-authority/southend,ED Neighbourhoods & Environment,Highways And Transport Services,5130,Dynniq Uk Ltd,07/05/2020,12066862,"9,300.84 ",Private Contractors,Other Agencies
Southend-on-Sea Borough Council,http://www.opendatacommunities.org/id/unitary-authority/southend,ED Children & Public Health,Children And Education Services,3492,East Anglian Chambers T/A Miss Alison Underhill,07/05/2020,12066862,550.00 ,Barristers fees,Services
Southend-on-Sea Borough Council,http://www.opendatacommunities.org/id/unitary-authority/southend,ED Children & Public Health,Children And Education Services,3692,East Anglian Chambers T/A Miss Claire Thorne,07/05/2020,12066862,850.00 ,Court Costs And Legal Fees,Services
Southend-on-Sea Borough Council,http://www.opendatacommunities.org/id/unitary-authority/southend,ED Neighbourhoods & Environment,Cultural and Related Services,7505,Ernest Doe And Sons Ltd,07/05/2020,12066862,580.50 ,Tools And Equipment Lease,Equipment Furniture And Materials
Southend-on-Sea Borough Council,http://www.opendatacommunities.org/id/unitary-authority/southend,ED Neighbourhoods & Environment,Cultural and Related Services,7510,Ernest Doe And Sons Ltd,07/05/2020,12066862,580.50 ,Tools And Equipment Lease,Equipment Furniture And Materials
Southend-on-Sea Borough Council,http://www.opendatacommunities.org/id/unitary-authority/southend,ED Neighbourhoods & Environment,Cultural and Related Services,7520,Ernest Doe And Sons Ltd,07/05/2020,12066862,530.00 ,Tools And Equipment Lease,Equipment Furniture And Materials
Southend-on-Sea Borough Council,http://www.opendatacommunities.org/id/unitary-authority/southend,ED Neighbourhoods & Environment,Cultural and Related Services,7510,Ernest Doe And Sons Ltd,07/05/2020,12066862,"2,170.00 ",Tools And Equipment Lease,Equipment Furniture And Materials
Southend-on-Sea Borough Council,http://www.opendatacommunities.org/id/unitary-authority/southend,ED Neighbourhoods & Environment,Environmental And Regulatory Services,4506,Ernest Doe And Sons Ltd,07/05/2020,12066862,"1,960.00 ",Tools And Equipment Lease,Equipment Furniture And Materials
Southend-on-Sea Borough Council,http://www.opendatacommunities.org/id/unitary-authority/southend,ED Neighbourhoods & Environment,Cultural And Related Services,7540,Ernest Doe And Sons Ltd,07/05/2020,12066862,580.50 ,Tools And Equipment Lease,Equipment Furniture And Materials
Southend-on-Sea Borough Council,http://www.opendatacommunities.org/id/unitary-authority/southend,ED Neighbourhoods & Environment,Environmental And Regulatory Services,4506,For The F A Bartlett Tree Expert Co Ltd T/A Sthrn,07/05/2020,12066862,"7,800.00 ",Private Contractors,Other Agencies
Southend-on-Sea Borough Council,http://www.opendatacommunities.org/id/unitary-authority/southend,ED Adults & Communities,Adult Social Care,1209,Fuel Card Services Ltd,07/05/2020,12066862,558.97 ,Petrol Diesel Or Liquid Petroleum Gas,Direct Transport Costs
Southend-on-Sea Borough Council,http://www.opendatacommunities.org/id/unitary-authority/southend,ED Neighbourhoods & Environment,Cultural and Related Services,7505,Fuel Card Services Ltd,07/05/2020,12066862,532.61 ,Petrol Diesel Or Liquid Petroleum Gas,Direct Transport Costs
Southend-on-Sea Borough Council,http://www.opendatacommunities.org/id/unitary-authority/southend,ED Neighbourhoods & Environment,Cultural and Related Services,7520,Fuel Card Services Ltd,07/05/2020,12066862,608.76 ,Petrol Diesel Or Liquid Petroleum Gas,Direct Transport Costs
Southend-on-Sea Borough Council,http://www.opendatacommunities.org/id/unitary-authority/southend,ED Neighbourhoods & Environment,Cultural And Related Services,7540,Fuel Card Services Ltd,07/05/2020,12066862,692.62 ,Petrol Diesel Or Liquid Petroleum Gas,Direct Transport Costs
Southend-on-Sea Borough Council,http://www.opendatacommunities.org/id/unitary-authority/southend,ED Finance & Resources,Central Services,2119,Fusion Lifestyle,07/05/2020,12066862,"28,100.00 ",Private Contractors,Other Agencies
Southend-on-Sea Borough Council,http://www.opendatacommunities.org/id/unitary-authority/southend,ED Finance & Resources,Central Services,2119,Fusion Lifestyle,07/05/2020,12066862,"43,800.00 ",Private Contractors,Other Agencies
Southend-on-Sea Borough Council,http://www.opendatacommunities.org/id/unitary-authority/southend,ED Transformation,Central Services,8602,Gamma Business Communication Limited,07/05/2020,12066862,"1,063.91 ",Communications Telephone Rental,Communications And Computing
Southend-on-Sea Borough Council,http://www.opendatacommunities.org/id/unitary-authority/southend,ED Adults & Communities,Adult Social Care,1025,Hays Specialist Recruitment Ltd Receipts Recruitment File Only,07/05/2020,12066862,"2,300.00 ",Recruitment,Indirect Employee Expenses
Southend-on-Sea Borough Council,http://www.opendatacommunities.org/id/unitary-authority/southend,ED Adults & Communities,Adult Social Care,1180,Hays Specialist Recruitment Ltd Receipts Recruitment File Only,07/05/2020,12066862,663.52 ,Agency Staff,Direct Employee Expenses
Southend-on-Sea Borough Council,http://www.opendatacommunities.org/id/unitary-authority/southend,ED Adults & Communities,Adult Social Care,1351,Hays Specialist Recruitment Ltd Receipts Recruitment File Only,07/05/2020,12066862,"1,173.64 ",Agency Staff,Direct Employee Expenses
Southend-on-Sea Borough Council,http://www.opendatacommunities.org/id/unitary-authority/southend,ED Adults & Communities,Adult Social Care,1231,Hays Specialist Recruitment Ltd Receipts Recruitment File Only,07/05/2020,12066862,"1,269.32 ",Agency Staff,Direct Employee Expenses
Southend-on-Sea Borough Council,http://www.opendatacommunities.org/id/unitary-authority/southend,ED Adults & Communities,Adult Social Care,1351,Hays Specialist Recruitment Ltd Receipts Recruitment File Only,07/05/2020,12066862,689.28 ,Agency Staff,Direct Employee Expenses
Southend-on-Sea Borough Council,http://www.opendatacommunities.org/id/unitary-authority/southend,ED Adults & Communities,Adult Social Care,1350,Hays Specialist Recruitment Ltd Receipts Recruitment File Only,07/05/2020,12066862,"1,173.64 ",Agency Staff,Direct Employee Expenses
Southend-on-Sea Borough Council,http://www.opendatacommunities.org/id/unitary-authority/southend,ED Adults & Communities,Adult Social Care,1351,Hays Specialist Recruitment Ltd Receipts Recruitment File Only,07/05/2020,12066862,"1,173.64 ",Agency Staff,Direct Employee Expenses
Southend-on-Sea Borough Council,http://www.opendatacommunities.org/id/unitary-authority/southend,ED Adults & Communities,Adult Social Care,1060,Hays Specialist Recruitment Ltd Receipts Recruitment File Only,07/05/2020,12066862,"1,422.65 ",Agency Staff,Direct Employee Expenses
Southend-on-Sea Borough Council,http://www.opendatacommunities.org/id/unitary-authority/southend,ED Adults & Communities,Adult Social Care,1352,Hays Specialist Recruitment Ltd Receipts Recruitment File Only,07/05/2020,12066862,"1,173.64 ",Agency Staff,Direct Employee Expenses
Southend-on-Sea Borough Council,http://www.opendatacommunities.org/id/unitary-authority/southend,ED Adults & Communities,Housing Services,6190,Hays Specialist Recruitment Ltd Receipts Recruitment File Only,07/05/2020,12066862,"1,656.10 ",Agency Staff,Direct Employee Expenses
Southend-on-Sea Borough Council,http://www.opendatacommunities.org/id/unitary-authority/southend,ED Children & Public Health,Children And Education Services,3290,Hays Specialist Recruitment Ltd Receipts Recruitment File Only,07/05/2020,12066862,"1,173.64 ",Agency Staff,Direct Employee Expenses
Southend-on-Sea Borough Council,http://www.opendatacommunities.org/id/unitary-authority/southend,ED Children & Public Health,Children And Education Services,3590,Hays Specialist Recruitment Ltd Receipts Recruitment File Only,07/05/2020,12066862,"1,173.64 ",Agency Staff,Direct Employee Expenses
Southend-on-Sea Borough Council,http://www.opendatacommunities.org/id/unitary-authority/southend,ED Children & Public Health,Children And Education Services,3231,Hays Specialist Recruitment Ltd Receipts Recruitment File Only,07/05/2020,12066862,"1,102.71 ",Agency Staff,Direct Employee Expenses
Southend-on-Sea Borough Council,http://www.opendatacommunities.org/id/unitary-authority/southend,ED Children & Public Health,Children And Education Services,3231,Hays Specialist Recruitment Ltd Receipts Recruitment File Only,07/05/2020,12066862,"1,286.50 ",Agency Staff,Direct Employee Expenses
Southend-on-Sea Borough Council,http://www.opendatacommunities.org/id/unitary-authority/southend,ED Children & Public Health,Children And Education Services,3231,Hays Specialist Recruitment Ltd Receipts Recruitment File Only,07/05/2020,12066862,918.93 ,Agency Staff,Direct Employee Expenses
Southend-on-Sea Borough Council,http://www.opendatacommunities.org/id/unitary-authority/southend,ED Children & Public Health,Children And Education Services,3231,Hays Specialist Recruitment Ltd Receipts Recruitment File Only,07/05/2020,12066862,"1,102.71 ",Agency Staff,Direct Employee Expenses
Southend-on-Sea Borough Council,http://www.opendatacommunities.org/id/unitary-authority/southend,ED Children & Public Health,Children And Education Services,3231,Hays Specialist Recruitment Ltd Receipts Recruitment File Only,07/05/2020,12066862,"1,102.71 ",Agency Staff,Direct Employee Expenses
Southend-on-Sea Borough Council,http://www.opendatacommunities.org/id/unitary-authority/southend,ED Children & Public Health,Children And Education Services,3231,Hays Specialist Recruitment Ltd Receipts Recruitment File Only,07/05/2020,12066862,"1,102.71 ",Agency Staff,Direct Employee Expenses
Southend-on-Sea Borough Council,http://www.opendatacommunities.org/id/unitary-authority/southend,ED Children & Public Health,Children And Education Services,3165,Hays Specialist Recruitment Ltd Receipts Recruitment File Only,07/05/2020,12066862,669.26 ,Agency Staff,Direct Employee Expenses
Southend-on-Sea Borough Council,http://www.opendatacommunities.org/id/unitary-authority/southend,ED Children & Public Health,Children And Education Services,3165,Hays Specialist Recruitment Ltd Receipts Recruitment File Only,07/05/2020,12066862,524.26 ,Agency Staff,Direct Employee Expenses
Southend-on-Sea Borough Council,http://www.opendatacommunities.org/id/unitary-authority/southend,ED Children & Public Health,Children And Education Services,3165,Hays Specialist Recruitment Ltd Receipts Recruitment File Only,07/05/2020,12066862,524.26 ,Agency Staff,Direct Employee Expenses
Southend-on-Sea Borough Council,http://www.opendatacommunities.org/id/unitary-authority/southend,ED Children & Public Health,Children And Education Services,3480,Hays Specialist Recruitment Ltd Receipts Recruitment File Only,07/05/2020,12066862,935.74 ,Agency Staff,Direct Employee Expenses
Southend-on-Sea Borough Council,http://www.opendatacommunities.org/id/unitary-authority/southend,ED Children & Public Health,Children And Education Services,3480,Hays Specialist Recruitment Ltd Receipts Recruitment File Only,07/05/2020,12066862,"1,173.64 ",Agency Staff,Direct Employee Expenses
Southend-on-Sea Borough Council,http://www.opendatacommunities.org/id/unitary-authority/southend,ED Children & Public Health,Children And Education Services,3480,Hays Specialist Recruitment Ltd Receipts Recruitment File Only,07/05/2020,12066862,"1,173.64 ",Agency Staff,Direct Employee Expenses
Southend-on-Sea Borough Council,http://www.opendatacommunities.org/id/unitary-authority/southend,ED Children & Public Health,Children And Education Services,3165,Hays Specialist Recruitment Ltd Receipts Recruitment File Only,07/05/2020,12066862,524.26 ,Agency Staff,Direct Employee Expenses
Southend-on-Sea Borough Council,http://www.opendatacommunities.org/id/unitary-authority/southend,ED Children & Public Health,Children And Education Services,3175,Hays Specialist Recruitment Ltd Receipts Recruitment File Only,07/05/2020,12066862,805.98 ,Agency Staff,Direct Employee Expenses
Southend-on-Sea Borough Council,http://www.opendatacommunities.org/id/unitary-authority/southend,ED Children & Public Health,Children And Education Services,3791,Hays Specialist Recruitment Ltd Receipts Recruitment File Only,07/05/2020,12066862,-651.65 ,Recruitment,Indirect Employee Expenses
Southend-on-Sea Borough Council,http://www.opendatacommunities.org/id/unitary-authority/southend,ED Children & Public Health,Children And Education Services,3480,Hays Specialist Recruitment Ltd Receipts Recruitment File Only,07/05/2020,12066862,"1,173.64 ",Agency Staff,Direct Employee Expenses
Southend-on-Sea Borough Council,http://www.opendatacommunities.org/id/unitary-authority/southend,ED Children & Public Health,Children And Education Services,3231,Hays Specialist Recruitment Ltd Receipts Recruitment File Only,07/05/2020,12066862,"1,611.60 ",Agency Staff,Direct Employee Expenses
Southend-on-Sea Borough Council,http://www.opendatacommunities.org/id/unitary-authority/southend,ED Children & Public Health,Children And Education Services,3590,Hays Specialist Recruitment Ltd Receipts Recruitment File Only,07/05/2020,12066862,"1,173.64 ",Agency Staff,Direct Employee Expenses
Southend-on-Sea Borough Council,http://www.opendatacommunities.org/id/unitary-authority/southend,ED Children & Public Health,Children And Education Services,3131,Hays Specialist Recruitment Ltd Receipts Recruitment File Only,07/05/2020,12066862,"16,459.00 ",Recruitment,Indirect Employee Expenses
Southend-on-Sea Borough Council,http://www.opendatacommunities.org/id/unitary-authority/southend,ED Children & Public Health,Children And Education Services,3131,Hays Specialist Recruitment Ltd Receipts Recruitment File Only,07/05/2020,12066862,"2,300.00 ",Recruitment,Indirect Employee Expenses
Southend-on-Sea Borough Council,http://www.opendatacommunities.org/id/unitary-authority/southend,ED Children & Public Health,Public Health,8700,Hays Specialist Recruitment Ltd Receipts Recruitment File Only,07/05/2020,12066862,"16,379.00 ",Recruitment,Indirect Employee Expenses
Southend-on-Sea Borough Council,http://www.opendatacommunities.org/id/unitary-authority/southend,ED Children & Public Health,Public Health,8700,Hays Specialist Recruitment Ltd Receipts Recruitment File Only,07/05/2020,12066862,"5,100.00 ",Recruitment,Indirect Employee Expenses
Southend-on-Sea Borough Council,http://www.opendatacommunities.org/id/unitary-authority/southend,ED Children & Public Health,Public Health,8700,Hays Specialist Recruitment Ltd Receipts Recruitment File Only,07/05/2020,12066862,"3,150.00 ",Recruitment,Indirect Employee Expenses
Southend-on-Sea Borough Council,http://www.opendatacommunities.org/id/unitary-authority/southend,ED Children & Public Health,Public Health,8700,Hays Specialist Recruitment Ltd Receipts Recruitment File Only,07/05/2020,12066862,"2,894.81 ",Recruitment,Indirect Employee Expenses
Southend-on-Sea Borough Council,http://www.opendatacommunities.org/id/unitary-authority/southend,ED Finance & Resources,Environmental and Regulatory Services,7110,Hays Specialist Recruitment Ltd Receipts Recruitment File Only,07/05/2020,12066862,"1,637.60 ",Agency Staff,Direct Employee Expenses
Southend-on-Sea Borough Council,http://www.opendatacommunities.org/id/unitary-authority/southend,ED Finance & Resources,Environmental and Regulatory Services,7110,Hays Specialist Recruitment Ltd Receipts Recruitment File Only,07/05/2020,12066862,"1,637.60 ",Agency Staff,Direct Employee Expenses
Southend-on-Sea Borough Council,http://www.opendatacommunities.org/id/unitary-authority/southend,ED Growth & Housing,Cultural and Related Services,2135,Hays Specialist Recruitment Ltd Receipts Recruitment File Only,07/05/2020,12066862,"2,300.00 ",Recruitment,Indirect Employee Expenses
Southend-on-Sea Borough Council,http://www.opendatacommunities.org/id/unitary-authority/southend,ED Growth & Housing,Planning and Development Services,5520,Hays Specialist Recruitment Ltd Receipts Recruitment File Only,07/05/2020,12066862,"1,459.87 ",Agency Staff,Direct Employee Expenses
Southend-on-Sea Borough Council,http://www.opendatacommunities.org/id/unitary-authority/southend,ED Growth & Housing,Central Services,2075,Hays Specialist Recruitment Ltd Receipts Recruitment File Only,07/05/2020,12066862,"6,000.00 ",Recruitment,Indirect Employee Expenses
Southend-on-Sea Borough Council,http://www.opendatacommunities.org/id/unitary-authority/southend,ED Growth & Housing,Central Services,2075,Hays Specialist Recruitment Ltd Receipts Recruitment File Only,07/05/2020,12066862,"5,250.00 ",Recruitment,Indirect Employee Expenses
Southend-on-Sea Borough Council,http://www.opendatacommunities.org/id/unitary-authority/southend,ED Growth & Housing,Central Services,2075,Hays Specialist Recruitment Ltd Receipts Recruitment File Only,07/05/2020,12066862,"6,000.00 ",Recruitment,Indirect Employee Expenses
Southend-on-Sea Borough Council,http://www.opendatacommunities.org/id/unitary-authority/southend,ED Neighbourhoods & Environment,Environmental And Regulatory Services,7035,Hays Specialist Recruitment Ltd Receipts Recruitment File Only,07/05/2020,12066862,"1,191.60 ",Agency Staff,Direct Employee Expenses
Southend-on-Sea Borough Council,http://www.opendatacommunities.org/id/unitary-authority/southend,ED Neighbourhoods & Environment,Highways And Transport Services,5180,Hays Specialist Recruitment Ltd Receipts Recruitment File Only,07/05/2020,12066862,519.37 ,Agency Staff,Direct Employee Expenses
Southend-on-Sea Borough Council,http://www.opendatacommunities.org/id/unitary-authority/southend,ED Neighbourhoods & Environment,Highways And Transport Services,5180,Hays Specialist Recruitment Ltd Receipts Recruitment File Only,07/05/2020,12066862,"2,406.10 ",Agency Staff,Direct Employee Expenses
Southend-on-Sea Borough Council,http://www.opendatacommunities.org/id/unitary-authority/southend,ED Transformation,Central Services,7130,Hays Specialist Recruitment Ltd Receipts Recruitment File Only,07/05/2020,12066862,994.10 ,Agency Staff,Direct Employee Expenses
Southend-on-Sea Borough Council,http://www.opendatacommunities.org/id/unitary-authority/southend,ED Transformation,Central Services,7130,Hays Specialist Recruitment Ltd Receipts Recruitment File Only,07/05/2020,12066862,"2,072.35 ",Agency Staff,Direct Employee Expenses
Southend-on-Sea Borough Council,http://www.opendatacommunities.org/id/unitary-authority/southend,ED Adults & Communities,Adult Social Care,9010,Instakil Pest Control Services,07/05/2020,12066862,"2,000.00 ",Main Contractor,Main Contractor
Southend-on-Sea Borough Council,http://www.opendatacommunities.org/id/unitary-authority/southend,ED Growth & Housing,Planning and Development Services,5637,Kent County Council,07/05/2020,12066862,"20,185.79 ",Grants,Grants And Subscriptions
Southend-on-Sea Borough Council,http://www.opendatacommunities.org/id/unitary-authority/southend,ED Growth & Housing,Planning and Development Services,5637,Kent County Council,07/05/2020,12066862,"21,959.54 ",Grants,Grants And Subscriptions
Southend-on-Sea Borough Council,http://www.opendatacommunities.org/id/unitary-authority/southend,ED Growth & Housing,Planning and Development Services,5637,Kent County Council,07/05/2020,12066862,"-20,185.79 ",Grants,Grants And Subscriptions
Southend-on-Sea Borough Council,http://www.opendatacommunities.org/id/unitary-authority/southend,ED Neighbourhoods & Environment,Environmental And Regulatory Services,4625,Kenyon Block Consultants Ltd,07/05/2020,12066862,"1,400.00 ",Consultancy Services,Services
Southend-on-Sea Borough Council,http://www.opendatacommunities.org/id/unitary-authority/southend,ED Neighbourhoods & Environment,Cultural and Related Services,7515,Kernock Park Plants Ltd,07/05/2020,12066862,"1,847.01 ",Materials,Equipment Furniture And Materials
Southend-on-Sea Borough Council,http://www.opendatacommunities.org/id/unitary-authority/southend,ED Neighbourhoods & Environment,Cultural and Related Services,7515,Kernock Park Plants Ltd,07/05/2020,12066862,"1,450.00 ",Materials,Equipment Furniture And Materials
Southend-on-Sea Borough Council,http://www.opendatacommunities.org/id/unitary-authority/southend,ED Children & Public Health,Children And Education Services,3310,Lancashire County Council,07/05/2020,12066862,500.00 ,Private Contractors,Other Agencies
Southend-on-Sea Borough Council,http://www.opendatacommunities.org/id/unitary-authority/southend,ED Finance & Resources,Central Services,2070,Local Government Association,07/05/2020,12066862,"33,752.49 ",Subscriptions,Grants And Subscriptions
Southend-on-Sea Borough Council,http://www.opendatacommunities.org/id/unitary-authority/southend,ED Finance & Resources,Housing Services,6167,Locta Limited,07/05/2020,12066862,"5,088.00 ",Corporate IT Applications,Communications And Computing
Southend-on-Sea Borough Council,http://www.opendatacommunities.org/id/unitary-authority/southend,ED Adults & Communities,Housing Services,6011,London Borough Of Barking & Dagenham,07/05/2020,12066862,"7,044.99 ",Other Local Authorities,Other Local Authorities
Southend-on-Sea Borough Council,http://www.opendatacommunities.org/id/unitary-authority/southend,ED Neighbourhoods & Environment,Housing Services,9008,Mott Macdonald,07/05/2020,12066862,"26,481.00 ",Main Contractor,Main Contractor
Southend-on-Sea Borough Council,http://www.opendatacommunities.org/id/unitary-authority/southend,ED Neighbourhoods & Environment,Environmental And Regulatory Services,4545,Mott Macdonald,07/05/2020,12066862,"12,398.51 ",Consultancy Services,Services
Southend-on-Sea Borough Council,http://www.opendatacommunities.org/id/unitary-authority/southend,ED Neighbourhoods & Environment,Environmental And Regulatory Services,4545,Mott Macdonald,07/05/2020,12066862,"2,165.50 ",Consultancy Services,Services
Southend-on-Sea Borough Council,http://www.opendatacommunities.org/id/unitary-authority/southend,ED Adults & Communities,Housing Services,6011,Mr & Mrs G Cetnik T/A Pavilion Hotel,07/05/2020,12066862,"3,150.00 ",COVID-19 Response,Other Agencies
Southend-on-Sea Borough Council,http://www.opendatacommunities.org/id/unitary-authority/southend,ED Children & Public Health,Children And Education Services,3790,Nonstop Recruitment Ltd (Temps),07/05/2020,12066862,790.65 ,Agency Staff,Direct Employee Expenses
Southend-on-Sea Borough Council,http://www.opendatacommunities.org/id/unitary-authority/southend,ED Transformation,Central Services,9012,Ntt United Kingdom Limited,07/05/2020,12066862,"4,412.80 ",ICT Infrastructure (Network/Security/Business Continuity),ICT Infrastructure (Network/Security/Business Continuity)
Southend-on-Sea Borough Council,http://www.opendatacommunities.org/id/unitary-authority/southend,ED Transformation,Central Services,9012,Ntt United Kingdom Limited,07/05/2020,12066862,"4,585.12 ",Software License,Software License
Southend-on-Sea Borough Council,http://www.opendatacommunities.org/id/unitary-authority/southend,ED Finance & Resources,Central Services,8591,Nwg Business Limited,07/05/2020,12066862,946.19 ,Water Services,Water Services
Southend-on-Sea Borough Council,http://www.opendatacommunities.org/id/unitary-authority/southend,ED Finance & Resources,Central Services,8591,Nwg Business Limited,07/05/2020,12066862,"-4,517.87 ",Water Services,Water Services
Southend-on-Sea Borough Council,http://www.opendatacommunities.org/id/unitary-authority/southend,ED Adults & Communities,Adult Social Care,1325,Nwg Business Limited,07/05/2020,12066862,658.69 ,Water Services,Water Services
Southend-on-Sea Borough Council,http://www.opendatacommunities.org/id/unitary-authority/southend,ED Adults & Communities,Adult Social Care,1321,Nwg Business Limited,07/05/2020,12066862,919.37 ,Water Services,Water Services
Southend-on-Sea Borough Council,http://www.opendatacommunities.org/id/unitary-authority/southend,ED Adults & Communities,Cultural And Related Services,4115,Nwg Business Limited,07/05/2020,12066862,"-1,212.20 ",Water Services,Water Services
Southend-on-Sea Borough Council,http://www.opendatacommunities.org/id/unitary-authority/southend,ED Adults & Communities,Cultural And Related Services,4045,Nwg Business Limited,07/05/2020,12066862,876.28 ,Water Services,Water Services
Southend-on-Sea Borough Council,http://www.opendatacommunities.org/id/unitary-authority/southend,ED Adults & Communities,Cultural And Related Services,4115,Nwg Business Limited,07/05/2020,12066862,"1,227.86 ",Water Services,Water Services
Southend-on-Sea Borough Council,http://www.opendatacommunities.org/id/unitary-authority/southend,ED Adults & Communities,Cultural And Related Services,4140,Nwg Business Limited,07/05/2020,12066862,"1,129.16 ",Water Services,Water Services
Southend-on-Sea Borough Council,http://www.opendatacommunities.org/id/unitary-authority/southend,ED Children & Public Health,Children And Education Services,3471,Nwg Business Limited,07/05/2020,12066862,"4,221.04 ",Water Services,Water Services
Southend-on-Sea Borough Council,http://www.opendatacommunities.org/id/unitary-authority/southend,ED Finance & Resources,Central Services,7140,Nwg Business Limited,07/05/2020,12066862,"-4,509.50 ",Water Services,Water Services
Southend-on-Sea Borough Council,http://www.opendatacommunities.org/id/unitary-authority/southend,ED Finance & Resources,Central Services,7120,Nwg Business Limited,07/05/2020,12066862,"2,235.27 ",Water Services,Water Services
Southend-on-Sea Borough Council,http://www.opendatacommunities.org/id/unitary-authority/southend,ED Neighbourhoods & Environment,Cultural and Related Services,7515,Nwg Business Limited,07/05/2020,12066862,"-3,635.91 ",Water Services,Water Services
Southend-on-Sea Borough Council,http://www.opendatacommunities.org/id/unitary-authority/southend,ED Neighbourhoods & Environment,Cultural And Related Services,4200,Nwg Business Limited,07/05/2020,12066862,"2,562.62 ",Water Services,Water Services
Southend-on-Sea Borough Council,http://www.opendatacommunities.org/id/unitary-authority/southend,ED Neighbourhoods & Environment,Environmental And Regulatory Services,4505,Nwg Business Limited,07/05/2020,12066862,"2,453.16 ",Water Services,Water Services
Southend-on-Sea Borough Council,http://www.opendatacommunities.org/id/unitary-authority/southend,ED Neighbourhoods & Environment,Environmental And Regulatory Services,4506,Nwg Business Limited,07/05/2020,12066862,"16,038.41 ",Water Services,Water Services
Southend-on-Sea Borough Council,http://www.opendatacommunities.org/id/unitary-authority/southend,ED Neighbourhoods & Environment,Environmental And Regulatory Services,4605,Nwg Business Limited,07/05/2020,12066862,"11,114.39 ",Water Services,Water Services
Southend-on-Sea Borough Council,http://www.opendatacommunities.org/id/unitary-authority/southend,ED Neighbourhoods & Environment,Environmental And Regulatory Services,4605,Nwg Business Limited,07/05/2020,12066862,"-2,679.10 ",Water Services,Water Services
Southend-on-Sea Borough Council,http://www.opendatacommunities.org/id/unitary-authority/southend,ED Neighbourhoods & Environment,Highways And Transport Services,5035,Nwg Business Limited,07/05/2020,12066862,865.01 ,Water Services,Water Services
Southend-on-Sea Borough Council,http://www.opendatacommunities.org/id/unitary-authority/southend,ED Children & Public Health,Children And Education Services,3491,Potton Kare Services Ltd T/A Pks Social Care Agency,07/05/2020,12066862,909.90 ,Private Contractors,Other Agencies
Southend-on-Sea Borough Council,http://www.opendatacommunities.org/id/unitary-authority/southend,ED Adults & Communities,Adult Social Care,1342,Pricewaterhousecoopers,07/05/2020,12066862,"15,000.00 ",Audit Costs,Services
Southend-on-Sea Borough Council,http://www.opendatacommunities.org/id/unitary-authority/southend,ED Legal & Democratic Services,Central Services,7105,REDACTED PERSONAL DATA,07/05/2020,12066862,"1,025.00 ",Barristers fees,Services
Southend-on-Sea Borough Council,http://www.opendatacommunities.org/id/unitary-authority/southend,ED Finance & Resources,Central Services,7111,Ricoh Uk Limited,07/05/2020,12066862,"27,617.12 ",Printing,Printing Stationery And General Office Expenses
Southend-on-Sea Borough Council,http://www.opendatacommunities.org/id/unitary-authority/southend,ED Adults & Communities,Adult Social Care,1105,Seven Day Care (Uk) Ltd T/A Surecare Southend,07/05/2020,12066862,"12,979.61 ",Private Contractors,Other Agencies
Southend-on-Sea Borough Council,http://www.opendatacommunities.org/id/unitary-authority/southend,ED Adults & Communities,Adult Social Care,1108,Seven Day Care (Uk) Ltd T/A Surecare Southend,07/05/2020,12066862,513.17 ,Private Contractors,Other Agencies
Southend-on-Sea Borough Council,http://www.opendatacommunities.org/id/unitary-authority/southend,ED Adults & Communities,Adult Social Care,1205,Seven Day Care (Uk) Ltd T/A Surecare Southend,07/05/2020,12066862,993.77 ,Private Contractors,Other Agencies
Southend-on-Sea Borough Council,http://www.opendatacommunities.org/id/unitary-authority/southend,ED Adults & Communities,Adult Social Care,1115,Seven Day Care (Uk) Ltd T/A Surecare Southend,07/05/2020,12066862,"1,351.97 ",Contractor - Programmed Works,Other Agencies
Southend-on-Sea Borough Council,http://www.opendatacommunities.org/id/unitary-authority/southend,ED Adults & Communities,Adult Social Care,1205,Seven Day Care (Uk) Ltd T/A Surecare Southend,07/05/2020,12066862,"-15,800.00 ",Private Contractors,Other Agencies
Southend-on-Sea Borough Council,http://www.opendatacommunities.org/id/unitary-authority/southend,ED Adults & Communities,Housing Services,6011,Southend Central Hotel Ltd,07/05/2020,12066862,"7,050.00 ",COVID-19 Response,Other Agencies
Southend-on-Sea Borough Council,http://www.opendatacommunities.org/id/unitary-authority/southend,ED Adults & Communities,Housing Services,6011,Southend Guest House,07/05/2020,12066862,"1,350.00 ",COVID-19 Response,Other Agencies
Southend-on-Sea Borough Council,http://www.opendatacommunities.org/id/unitary-authority/southend,ED Growth & Housing,Highways And Transport Services,5703,The Cycle Division Ltd,07/05/2020,12066862,"1,338.13 ",Tools And Equipment Purchase,Equipment Furniture And Materials
Southend-on-Sea Borough Council,http://www.opendatacommunities.org/id/unitary-authority/southend,ED Children & Public Health,Children And Education Services,3061,The National Autistic Society,07/05/2020,12066862,935.00 ,Private Contractors,Other Agencies
Southend-on-Sea Borough Council,http://www.opendatacommunities.org/id/unitary-authority/southend,ED Neighbourhoods & Environment,Cultural and Related Services,7505,Upson Mowers Ltd,07/05/2020,12066862,"2,576.44 ",Private Contractors,Other Agencies
Southend-on-Sea Borough Council,http://www.opendatacommunities.org/id/unitary-authority/southend,ED Neighbourhoods & Environment,Cultural and Related Services,7520,Upson Mowers Ltd,07/05/2020,12066862,"1,451.94 ",Private Contractors,Other Agencies
Southend-on-Sea Borough Council,http://www.opendatacommunities.org/id/unitary-authority/southend,ED Neighbourhoods & Environment,Cultural and Related Services,7505,Upson Mowers Ltd,07/05/2020,12066862,927.75 ,Private Contractors,Other Agencies
Southend-on-Sea Borough Council,http://www.opendatacommunities.org/id/unitary-authority/southend,ED Neighbourhoods & Environment,Cultural and Related Services,7510,Upson Mowers Ltd,07/05/2020,12066862,927.75 ,Private Contractors,Other Agencies
Southend-on-Sea Borough Council,http://www.opendatacommunities.org/id/unitary-authority/southend,ED Neighbourhoods & Environment,Cultural and Related Services,7520,Upson Mowers Ltd,07/05/2020,12066862,927.75 ,Private Contractors,Other Agencies
Southend-on-Sea Borough Council,http://www.opendatacommunities.org/id/unitary-authority/southend,ED Neighbourhoods & Environment,Cultural and Related Services,7505,Upson Mowers Ltd,07/05/2020,12066862,872.85 ,Tools And Equipment Purchase,Equipment Furniture And Materials
Southend-on-Sea Borough Council,http://www.opendatacommunities.org/id/unitary-authority/southend,ED Neighbourhoods & Environment,Cultural and Related Services,7510,Upson Mowers Ltd,07/05/2020,12066862,872.84 ,Tools And Equipment Purchase,Equipment Furniture And Materials
Southend-on-Sea Borough Council,http://www.opendatacommunities.org/id/unitary-authority/southend,ED Neighbourhoods & Environment,Cultural and Related Services,7520,Upson Mowers Ltd,07/05/2020,12066862,872.84 ,Tools And Equipment Purchase,Equipment Furniture And Materials
Southend-on-Sea Borough Council,http://www.opendatacommunities.org/id/unitary-authority/southend,ED Neighbourhoods & Environment,Environmental And Regulatory Services,4505,Upson Mowers Ltd,07/05/2020,12066862,"2,146.25 ",Private Contractors,Other Agencies
Southend-on-Sea Borough Council,http://www.opendatacommunities.org/id/unitary-authority/southend,ED Neighbourhoods & Environment,Cultural And Related Services,7540,Upson Mowers Ltd,07/05/2020,12066862,927.75 ,Private Contractors,Other Agencies
Southend-on-Sea Borough Council,http://www.opendatacommunities.org/id/unitary-authority/southend,ED Neighbourhoods & Environment,Cultural And Related Services,7540,Upson Mowers Ltd,07/05/2020,12066862,872.84 ,Tools And Equipment Purchase,Equipment Furniture And Materials
Southend-on-Sea Borough Council,http://www.opendatacommunities.org/id/unitary-authority/southend,ED Growth & Housing,Planning and Development Services,5641,Women Into Construction Cic,07/05/2020,12066862,"10,517.76 ",Professional Fees,Services
Southend-on-Sea Borough Council,http://www.opendatacommunities.org/id/unitary-authority/southend,ED Children & Public Health,Public Health,7650,Wrs Group T/A Health Edco & Childbirth Graphics,07/05/2020,12066862,707.00 ,Tools And Equipment Purchase,Equipment Furniture And Materials
Southend-on-Sea Borough Council,http://www.opendatacommunities.org/id/unitary-authority/southend,ED Neighbourhoods & Environment,Environmental And Regulatory Services,4716,Z/Yen Group Ltd,07/05/2020,12066862,"4,308.21 ",Consultancy Services,Services
Southend-on-Sea Borough Council,http://www.opendatacommunities.org/id/unitary-authority/southend,ED Finance & Resources,Environmental and Regulatory Services,7535,(G) Amalgamated Lifts Limited,11/05/2020,12066869,"7,060.00 ",Repairs And Maintenance Lifts,"Repairs, alterations and maintenance of buildings"
Southend-on-Sea Borough Council,http://www.opendatacommunities.org/id/unitary-authority/southend,ED Finance & Resources,Environmental and Regulatory Services,7535,(G) Amalgamated Lifts Limited,11/05/2020,12066869,"6,278.00 ",Repairs And Maintenance Lifts,"Repairs, alterations and maintenance of buildings"
Southend-on-Sea Borough Council,http://www.opendatacommunities.org/id/unitary-authority/southend,ED Adults & Communities,Adult Social Care,9010,(G) Blake Contractors Limited,11/05/2020,12066869,"1,573.28 ",Main Contractor,Main Contractor
Southend-on-Sea Borough Council,http://www.opendatacommunities.org/id/unitary-authority/southend,ED Neighbourhoods & Environment,Environmental And Regulatory Services,4535,(G) Eurovia Infrastructure Limited,11/05/2020,12066869,"3,194.48 ",Tools And Equipment Repair And Maintenance,Equipment Furniture And Materials
Southend-on-Sea Borough Council,http://www.opendatacommunities.org/id/unitary-authority/southend,ED Neighbourhoods & Environment,Environmental And Regulatory Services,4535,(G) Eurovia Infrastructure Limited,11/05/2020,12066869,"3,194.48 ",Tools And Equipment Repair And Maintenance,Equipment Furniture And Materials
Southend-on-Sea Borough Council,http://www.opendatacommunities.org/id/unitary-authority/southend,ED Adults & Communities,Adult Social Care,1083,A H Care Home Ltd,11/05/2020,12066869,"1,053.78 ",Private Contractors,Other Agencies
Southend-on-Sea Borough Council,http://www.opendatacommunities.org/id/unitary-authority/southend,ED Adults & Communities,Adult Social Care,1083,A H Care Home Ltd,11/05/2020,12066869,"1,274.52 ",Private Contractors,Other Agencies
Southend-on-Sea Borough Council,http://www.opendatacommunities.org/id/unitary-authority/southend,ED Adults & Communities,Adult Social Care,1083,A H Care Home Ltd,11/05/2020,12066869,"2,083.90 ",Private Contractors,Other Agencies
Southend-on-Sea Borough Council,http://www.opendatacommunities.org/id/unitary-authority/southend,ED Adults & Communities,Adult Social Care,1205,Alpha Health And Care Services Ltd,11/05/2020,12066869,965.01 ,Private Contractors,Other Agencies
Southend-on-Sea Borough Council,http://www.opendatacommunities.org/id/unitary-authority/southend,ED Adults & Communities,Adult Social Care,1105,Alpha Health And Care Services Ltd,11/05/2020,12066869,"1,394.01 ",Private Contractors,Other Agencies
Southend-on-Sea Borough Council,http://www.opendatacommunities.org/id/unitary-authority/southend,ED Adults & Communities,Adult Social Care,1105,Alpha Health And Care Services Ltd,11/05/2020,12066869,692.21 ,Private Contractors,Other Agencies
Southend-on-Sea Borough Council,http://www.opendatacommunities.org/id/unitary-authority/southend,ED Adults & Communities,Adult Social Care,1105,Alpha Health And Care Services Ltd,11/05/2020,12066869,848.40 ,Private Contractors,Other Agencies
Southend-on-Sea Borough Council,http://www.opendatacommunities.org/id/unitary-authority/southend,ED Adults & Communities,Adult Social Care,1105,Angel Solutions Community Care,11/05/2020,12066869,500.85 ,Private Contractors,Other Agencies
Southend-on-Sea Borough Council,http://www.opendatacommunities.org/id/unitary-authority/southend,ED Adults & Communities,Adult Social Care,1205,Angel Solutions Community Care,11/05/2020,12066869,516.75 ,Private Contractors,Other Agencies
Southend-on-Sea Borough Council,http://www.opendatacommunities.org/id/unitary-authority/southend,ED Children & Public Health,Children And Education Services,3307,Be My Family Fostering Agency Ltd,11/05/2020,12066869,"3,652.04 ",Private Contractors,Other Agencies
Southend-on-Sea Borough Council,http://www.opendatacommunities.org/id/unitary-authority/southend,ED Children & Public Health,Children And Education Services,3250,Brighter Futures Foster Care Ltd,11/05/2020,12066869,"3,440.08 ",Private Contractors,Other Agencies
Southend-on-Sea Borough Council,http://www.opendatacommunities.org/id/unitary-authority/southend,ED Children & Public Health,Children And Education Services,3250,Brighter Futures Foster Care Ltd,11/05/2020,12066869,"2,735.88 ",Private Contractors,Other Agencies
Southend-on-Sea Borough Council,http://www.opendatacommunities.org/id/unitary-authority/southend,ED Children & Public Health,Children And Education Services,3250,Brighter Futures Foster Care Ltd,11/05/2020,12066869,"4,000.08 ",Private Contractors,Other Agencies
Southend-on-Sea Borough Council,http://www.opendatacommunities.org/id/unitary-authority/southend,ED Children & Public Health,Children And Education Services,3591,Cast Communities And Sanctuary Seekers Together,11/05/2020,12066869,808.00 ,Accomodation Payment,Services
Southend-on-Sea Borough Council,http://www.opendatacommunities.org/id/unitary-authority/southend,ED Neighbourhoods & Environment,Cultural and Related Services,7510,Castle Point Motors,11/05/2020,12066869,"1,260.57 ",Vehicle Maintenance,Direct Transport Costs
Southend-on-Sea Borough Council,http://www.opendatacommunities.org/id/unitary-authority/southend,ED Adults & Communities,Adult Social Care,1105,De Vere Care Partnership Ltd,11/05/2020,12066869,"1,349.25 ",Private Contractors,Other Agencies
Southend-on-Sea Borough Council,http://www.opendatacommunities.org/id/unitary-authority/southend,ED Adults & Communities,Adult Social Care,1115,De Vere Care Partnership Ltd,11/05/2020,12066869,502.41 ,Contractor - Programmed Works,Other Agencies
Southend-on-Sea Borough Council,http://www.opendatacommunities.org/id/unitary-authority/southend,ED Children & Public Health,Children And Education Services,3152,Dr G Horrigan,11/05/2020,12066869,"2,227.50 ",Private Contractors,Other Agencies
Southend-on-Sea Borough Council,http://www.opendatacommunities.org/id/unitary-authority/southend,ED Adults & Communities,Adult Social Care,1105,Erbil Gulhan T/A Palm2Palm Care And Reablement Services,11/05/2020,12066869,937.26 ,Private Contractors,Other Agencies
Southend-on-Sea Borough Council,http://www.opendatacommunities.org/id/unitary-authority/southend,ED Adults & Communities,Adult Social Care,1105,Erbil Gulhan T/A Palm2Palm Care And Reablement Services,11/05/2020,12066869,506.73 ,Private Contractors,Other Agencies
Southend-on-Sea Borough Council,http://www.opendatacommunities.org/id/unitary-authority/southend,ED Children & Public Health,Children And Education Services,3250,Foster Care Uk,11/05/2020,12066869,"5,115.00 ",Private Contractors,Other Agencies
Southend-on-Sea Borough Council,http://www.opendatacommunities.org/id/unitary-authority/southend,ED Adults & Communities,Adult Social Care,1105,Golden Keys Care Agency Limited,11/05/2020,12066869,853.44 ,Private Contractors,Other Agencies
Southend-on-Sea Borough Council,http://www.opendatacommunities.org/id/unitary-authority/southend,ED Adults & Communities,Adult Social Care,1105,Golden Keys Care Agency Limited,11/05/2020,12066869,640.08 ,Private Contractors,Other Agencies
Southend-on-Sea Borough Council,http://www.opendatacommunities.org/id/unitary-authority/southend,ED Adults & Communities,Adult Social Care,1205,Golden Keys Care Agency Limited,11/05/2020,12066869,853.44 ,Private Contractors,Other Agencies
Southend-on-Sea Borough Council,http://www.opendatacommunities.org/id/unitary-authority/southend,ED Adults & Communities,Adult Social Care,1105,Golden Keys Care Agency Limited,11/05/2020,12066869,601.98 ,Private Contractors,Other Agencies
Southend-on-Sea Borough Council,http://www.opendatacommunities.org/id/unitary-authority/southend,ED Adults & Communities,Adult Social Care,1105,Golden Keys Care Agency Limited,11/05/2020,12066869,960.12 ,Private Contractors,Other Agencies
Southend-on-Sea Borough Council,http://www.opendatacommunities.org/id/unitary-authority/southend,ED Adults & Communities,Adult Social Care,1105,Golden Keys Care Agency Limited,11/05/2020,12066869,937.26 ,Private Contractors,Other Agencies
Southend-on-Sea Borough Council,http://www.opendatacommunities.org/id/unitary-authority/southend,ED Adults & Communities,Adult Social Care,1105,Golden Keys Care Agency Limited,11/05/2020,12066869,"1,310.64 ",Private Contractors,Other Agencies
Southend-on-Sea Borough Council,http://www.opendatacommunities.org/id/unitary-authority/southend,ED Adults & Communities,Adult Social Care,1105,Golden Keys Care Agency Limited,11/05/2020,12066869,609.60 ,Private Contractors,Other Agencies
Southend-on-Sea Borough Council,http://www.opendatacommunities.org/id/unitary-authority/southend,ED Adults & Communities,Adult Social Care,1105,Golden Keys Care Agency Limited,11/05/2020,12066869,"1,150.62 ",Private Contractors,Other Agencies
Southend-on-Sea Borough Council,http://www.opendatacommunities.org/id/unitary-authority/southend,ED Adults & Communities,Adult Social Care,1105,Golden Keys Care Agency Limited,11/05/2020,12066869,967.74 ,Private Contractors,Other Agencies
Southend-on-Sea Borough Council,http://www.opendatacommunities.org/id/unitary-authority/southend,ED Finance & Resources,Central Services,8605,Kennedys Law Llp Office A/C,11/05/2020,12066869,"2,250.00 ",Professional Fees,Services
Southend-on-Sea Borough Council,http://www.opendatacommunities.org/id/unitary-authority/southend,ED Children & Public Health,Children And Education Services,3290,Leighview House Ltd,11/05/2020,12066869,"2,657.01 ",Accomodation Payment,Services
Southend-on-Sea Borough Council,http://www.opendatacommunities.org/id/unitary-authority/southend,ED Children & Public Health,Children And Education Services,3290,Leighview House Ltd,11/05/2020,12066869,"1,660.67 ",Accomodation Payment,Services
Southend-on-Sea Borough Council,http://www.opendatacommunities.org/id/unitary-authority/southend,ED Children & Public Health,Children And Education Services,3290,Leighview House Ltd,11/05/2020,12066869,"3,653.35 ",Accomodation Payment,Services
Southend-on-Sea Borough Council,http://www.opendatacommunities.org/id/unitary-authority/southend,ED Adults & Communities,Housing Services,6011,Malvern Lodge Guest House Ltd,11/05/2020,12066869,"15,370.00 ",COVID-19 Response,Other Agencies
Southend-on-Sea Borough Council,http://www.opendatacommunities.org/id/unitary-authority/southend,ED Children & Public Health,Children And Education Services,3310,Morganwhite Ltd T/A Teach Agency,11/05/2020,12066869,555.00 ,Education Services,Services
Southend-on-Sea Borough Council,http://www.opendatacommunities.org/id/unitary-authority/southend,ED Adults & Communities,Housing Services,6011,Mrs D D Grattan T/A Elizabeth Guest House,11/05/2020,12066869,"1,870.00 ",COVID-19 Response,Other Agencies
Southend-on-Sea Borough Council,http://www.opendatacommunities.org/id/unitary-authority/southend,ED Children & Public Health,Children And Education Services,3385,Queensway House,11/05/2020,12066869,"2,036.70 ",Conveyance of Clients,Contract Hire And Operating Leases
Southend-on-Sea Borough Council,http://www.opendatacommunities.org/id/unitary-authority/southend,ED Neighbourhoods & Environment,Environmental And Regulatory Services,4716,Quorus Ltd,11/05/2020,12066869,"4,237.30 ",Consultancy Services,Services
Southend-on-Sea Borough Council,http://www.opendatacommunities.org/id/unitary-authority/southend,ED Adults & Communities,Adult Social Care,1083,R G Care Ltd T/As Lifstan Way Ltd,11/05/2020,12066869,"5,627.51 ",Private Contractors,Other Agencies
Southend-on-Sea Borough Council,http://www.opendatacommunities.org/id/unitary-authority/southend,ED Adults & Communities,Adult Social Care,1266,REDACTED PERSONAL DATA,11/05/2020,12066869,"3,064.32 ",Private Contractors,Other Agencies
Southend-on-Sea Borough Council,http://www.opendatacommunities.org/id/unitary-authority/southend,ED Finance & Resources,Environmental and Regulatory Services,7535,South Essex Property Services,11/05/2020,12066869,"31,441.50 ",Repairs And Maintenance Contracts,"Repairs, alterations and maintenance of buildings"
Southend-on-Sea Borough Council,http://www.opendatacommunities.org/id/unitary-authority/southend,ED Adults & Communities,Adult Social Care,1105,Spdns Nurse Care Cic.,11/05/2020,12066869,"10,105.90 ",Private Contractors,Other Agencies
Southend-on-Sea Borough Council,http://www.opendatacommunities.org/id/unitary-authority/southend,ED Adults & Communities,Adult Social Care,1205,Spdns Nurse Care Cic.,11/05/2020,12066869,"1,558.29 ",Private Contractors,Other Agencies
Southend-on-Sea Borough Council,http://www.opendatacommunities.org/id/unitary-authority/southend,ED Adults & Communities,Adult Social Care,1583,Spdns Nurse Care Cic.,11/05/2020,12066869,575.31 ,Private Contractors,Other Agencies
Southend-on-Sea Borough Council,http://www.opendatacommunities.org/id/unitary-authority/southend,ED Children & Public Health,Children And Education Services,3250,Sunbeam Fostering Agency Ltd,11/05/2020,12066869,"3,076.07 ",Private Contractors,Other Agencies
Southend-on-Sea Borough Council,http://www.opendatacommunities.org/id/unitary-authority/southend,ED Children & Public Health,Children And Education Services,3250,Sunbeam Fostering Agency Ltd,11/05/2020,12066869,"3,182.14 ",Private Contractors,Other Agencies
Southend-on-Sea Borough Council,http://www.opendatacommunities.org/id/unitary-authority/southend,ED Adults & Communities,Adult Social Care,1083,The Strathmore Care Group,11/05/2020,12066869,"3,605.42 ",Private Contractors,Other Agencies
Southend-on-Sea Borough Council,http://www.opendatacommunities.org/id/unitary-authority/southend,ED Finance & Resources,Central Services,2156,Ward Hadaway Client Premium Account,11/05/2020,12066869,984.40 ,Professional Fees,Services
Southend-on-Sea Borough Council,http://www.opendatacommunities.org/id/unitary-authority/southend,ED Finance & Resources,Central Services,2156,Ward Hadaway Client Premium Account,11/05/2020,12066869,"3,318.64 ",Professional Fees,Services
Southend-on-Sea Borough Council,http://www.opendatacommunities.org/id/unitary-authority/southend,ED Finance & Resources,Central Services,2156,Ward Hadaway Client Premium Account,11/05/2020,12066869,"1,315.00 ",Court Costs And Legal Fees,Services
Southend-on-Sea Borough Council,http://www.opendatacommunities.org/id/unitary-authority/southend,ED Neighbourhoods & Environment,Highways And Transport Services,5231,(G) Amalgamated Lifts Limited,12/05/2020,12066871,"1,328.00 ",Repairs And Maintenance Lifts,"Repairs, alterations and maintenance of buildings"
Southend-on-Sea Borough Council,http://www.opendatacommunities.org/id/unitary-authority/southend,ED Finance & Resources,Central Services,7140,(G) Boon Edam Ltd,12/05/2020,12066871,801.50 ,Repairs And Maintenance Contracts,"Repairs, alterations and maintenance of buildings"
Southend-on-Sea Borough Council,http://www.opendatacommunities.org/id/unitary-authority/southend,ED Neighbourhoods & Environment,Housing Services,9008,(G) Marlborough Surfacing Limited,12/05/2020,12066871,"260,000.00 ",Main Contractor,Main Contractor
Southend-on-Sea Borough Council,http://www.opendatacommunities.org/id/unitary-authority/southend,ED Neighbourhoods & Environment,Housing Services,9008,(G) Marlborough Surfacing Limited,12/05/2020,12066871,"429,973.84 ",Main Contractor,Main Contractor
Southend-on-Sea Borough Council,http://www.opendatacommunities.org/id/unitary-authority/southend,ED Adults & Communities,Cultural And Related Services,4045,(G) R & A Mechanical Services Ltd,12/05/2020,12066871,"1,535.00 ",Repairs And Maintenance Contracts,"Repairs, alterations and maintenance of buildings"
Southend-on-Sea Borough Council,http://www.opendatacommunities.org/id/unitary-authority/southend,ED Adults & Communities,Adult Social Care,1083,Adalah Residential Home,12/05/2020,12066871,526.89 ,Private Contractors,Other Agencies
Southend-on-Sea Borough Council,http://www.opendatacommunities.org/id/unitary-authority/southend,ED Adults & Communities,Adult Social Care,1083,Adalah Residential Home,12/05/2020,12066871,526.89 ,Private Contractors,Other Agencies
Southend-on-Sea Borough Council,http://www.opendatacommunities.org/id/unitary-authority/southend,ED Adults & Communities,Adult Social Care,1083,Adalah Residential Home,12/05/2020,12066871,526.89 ,Private Contractors,Other Agencies
Southend-on-Sea Borough Council,http://www.opendatacommunities.org/id/unitary-authority/southend,ED Adults & Communities,Adult Social Care,1083,Adalah Residential Home,12/05/2020,12066871,"2,107.56 ",Private Contractors,Other Agencies
Southend-on-Sea Borough Council,http://www.opendatacommunities.org/id/unitary-authority/southend,ED Adults & Communities,Adult Social Care,1105,Alpha Health And Care Services Ltd,12/05/2020,12066871,731.13 ,Private Contractors,Other Agencies
Southend-on-Sea Borough Council,http://www.opendatacommunities.org/id/unitary-authority/southend,ED Adults & Communities,Adult Social Care,1105,Alpha Health And Care Services Ltd,12/05/2020,12066871,585.03 ,Private Contractors,Other Agencies
Southend-on-Sea Borough Council,http://www.opendatacommunities.org/id/unitary-authority/southend,ED Adults & Communities,Adult Social Care,1108,Alpha Health And Care Services Ltd,12/05/2020,12066871,747.69 ,Private Contractors,Other Agencies
Southend-on-Sea Borough Council,http://www.opendatacommunities.org/id/unitary-authority/southend,ED Adults & Communities,Adult Social Care,1105,Alpha Health And Care Services Ltd,12/05/2020,12066871,552.57 ,Private Contractors,Other Agencies
Southend-on-Sea Borough Council,http://www.opendatacommunities.org/id/unitary-authority/southend,ED Adults & Communities,Adult Social Care,1105,Alpha Health And Care Services Ltd,12/05/2020,12066871,949.77 ,Private Contractors,Other Agencies
Southend-on-Sea Borough Council,http://www.opendatacommunities.org/id/unitary-authority/southend,ED Adults & Communities,Adult Social Care,1350,Ambulance Solutions,12/05/2020,12066871,735.00 ,Conveyance of Clients,Contract Hire And Operating Leases
Southend-on-Sea Borough Council,http://www.opendatacommunities.org/id/unitary-authority/southend,ED Adults & Communities,Adult Social Care,1105,Angel Solutions Community Care,12/05/2020,12066871,500.85 ,Private Contractors,Other Agencies
Southend-on-Sea Borough Council,http://www.opendatacommunities.org/id/unitary-authority/southend,ED Adults & Communities,Adult Social Care,1205,Angel Solutions Community Care,12/05/2020,12066871,516.75 ,Private Contractors,Other Agencies
Southend-on-Sea Borough Council,http://www.opendatacommunities.org/id/unitary-authority/southend,ED Adults & Communities,Adult Social Care,1260,Ashgate House Limited,12/05/2020,12066871,"5,774.44 ",Private Contractors,Other Agencies
Southend-on-Sea Borough Council,http://www.opendatacommunities.org/id/unitary-authority/southend,ED Adults & Communities,Adult Social Care,1105,Ashley Community Care Services Ltd T/A Ashley Care,12/05/2020,12066871,"16,499.59 ",Private Contractors,Other Agencies
Southend-on-Sea Borough Council,http://www.opendatacommunities.org/id/unitary-authority/southend,ED Adults & Communities,Adult Social Care,1108,Ashley Community Care Services Ltd T/A Ashley Care,12/05/2020,12066871,850.02 ,Private Contractors,Other Agencies
Southend-on-Sea Borough Council,http://www.opendatacommunities.org/id/unitary-authority/southend,ED Adults & Communities,Adult Social Care,1205,Ashley Community Care Services Ltd T/A Ashley Care,12/05/2020,12066871,"2,430.39 ",Private Contractors,Other Agencies
Southend-on-Sea Borough Council,http://www.opendatacommunities.org/id/unitary-authority/southend,ED Adults & Communities,Adult Social Care,1115,Ashley Community Care Services Ltd T/A Ashley Care,12/05/2020,12066871,"1,933.96 ",Contractor - Programmed Works,Other Agencies
Southend-on-Sea Borough Council,http://www.opendatacommunities.org/id/unitary-authority/southend,ED Adults & Communities,Adult Social Care,1260,Ashtead House Limited,12/05/2020,12066871,"5,931.52 ",Private Contractors,Other Agencies
Southend-on-Sea Borough Council,http://www.opendatacommunities.org/id/unitary-authority/southend,ED Children & Public Health,Children And Education Services,3250,Aspirations Fostering Limited,12/05/2020,12066871,"3,809.12 ",Private Contractors,Other Agencies
Southend-on-Sea Borough Council,http://www.opendatacommunities.org/id/unitary-authority/southend,ED Children & Public Health,Children And Education Services,3250,Aspirations Fostering Limited,12/05/2020,12066871,"2,187.92 ",Private Contractors,Other Agencies
Southend-on-Sea Borough Council,http://www.opendatacommunities.org/id/unitary-authority/southend,ED Children & Public Health,Children And Education Services,3250,Aspirations Fostering Limited,12/05/2020,12066871,"3,355.52 ",Private Contractors,Other Agencies
Southend-on-Sea Borough Council,http://www.opendatacommunities.org/id/unitary-authority/southend,ED Children & Public Health,Children And Education Services,3250,Aspirations Fostering Limited,12/05/2020,12066871,"3,243.52 ",Private Contractors,Other Agencies
Southend-on-Sea Borough Council,http://www.opendatacommunities.org/id/unitary-authority/southend,ED Children & Public Health,Children And Education Services,3250,Aspirations Fostering Limited,12/05/2020,12066871,"3,345.44 ",Private Contractors,Other Agencies
Southend-on-Sea Borough Council,http://www.opendatacommunities.org/id/unitary-authority/southend,ED Children & Public Health,Children And Education Services,3250,Aspirations Fostering Limited,12/05/2020,12066871,"3,243.52 ",Private Contractors,Other Agencies
Southend-on-Sea Borough Council,http://www.opendatacommunities.org/id/unitary-authority/southend,ED Children & Public Health,Children And Education Services,3250,Aspirations Fostering Limited,12/05/2020,12066871,"2,856.00 ",Private Contractors,Other Agencies
Southend-on-Sea Borough Council,http://www.opendatacommunities.org/id/unitary-authority/southend,ED Children & Public Health,Children And Education Services,3307,Avance Ltd,12/05/2020,12066871,"2,250.00 ",Accomodation Payment,Services
Southend-on-Sea Borough Council,http://www.opendatacommunities.org/id/unitary-authority/southend,ED Children & Public Health,Children And Education Services,9009,Baily Garner Llp,12/05/2020,12066871,"5,733.20 ",Main Contractor,Main Contractor
Southend-on-Sea Borough Council,http://www.opendatacommunities.org/id/unitary-authority/southend,ED Children & Public Health,Children And Education Services,3307,Be My Family Fostering Agency Ltd,12/05/2020,12066871,"3,652.04 ",Private Contractors,Other Agencies
Southend-on-Sea Borough Council,http://www.opendatacommunities.org/id/unitary-authority/southend,ED Adults & Communities,Cultural And Related Services,4120,Biffa Waste Services Ltd,12/05/2020,12066871,564.63 ,Waste Management,Cleaning And Domestic Supplies
Southend-on-Sea Borough Council,http://www.opendatacommunities.org/id/unitary-authority/southend,ED Children & Public Health,Children And Education Services,3250,Brighter Futures Foster Care Ltd,12/05/2020,12066871,"4,000.08 ",Private Contractors,Other Agencies
Southend-on-Sea Borough Council,http://www.opendatacommunities.org/id/unitary-authority/southend,ED Children & Public Health,Children And Education Services,3250,Brighter Futures Foster Care Ltd,12/05/2020,12066871,"3,440.08 ",Private Contractors,Other Agencies
Southend-on-Sea Borough Council,http://www.opendatacommunities.org/id/unitary-authority/southend,ED Children & Public Health,Children And Education Services,3250,Brighter Futures Foster Care Ltd,12/05/2020,12066871,"2,735.88 ",Private Contractors,Other Agencies
Southend-on-Sea Borough Council,http://www.opendatacommunities.org/id/unitary-authority/southend,ED Children & Public Health,Children And Education Services,3307,Canary House Care Limited,12/05/2020,12066871,"1,350.00 ",Accomodation Payment,Services
Southend-on-Sea Borough Council,http://www.opendatacommunities.org/id/unitary-authority/southend,ED Adults & Communities,Adult Social Care,9999,Canary House Care Limited,12/05/2020,12066871,"1,800.00 ",Error Account,Error Account
Southend-on-Sea Borough Council,http://www.opendatacommunities.org/id/unitary-authority/southend,ED Adults & Communities,Adult Social Care,1105,Caring Carers Ltd,12/05/2020,12066871,"1,000.26 ",COVID-19 Response,Other Agencies
Southend-on-Sea Borough Council,http://www.opendatacommunities.org/id/unitary-authority/southend,ED Adults & Communities,Adult Social Care,1105,Caring Carers Ltd,12/05/2020,12066871,"1,882.14 ",COVID-19 Response,Other Agencies
Southend-on-Sea Borough Council,http://www.opendatacommunities.org/id/unitary-authority/southend,ED Children & Public Health,Children And Education Services,3396,Creative Support Solutions Ltd,12/05/2020,12066871,"4,842.90 ",Accommodation Costs,Expenses
Southend-on-Sea Borough Council,http://www.opendatacommunities.org/id/unitary-authority/southend,ED Neighbourhoods & Environment,Environmental And Regulatory Services,4501,Dignity Funerals Ltd T/A J W Tate & Son,12/05/2020,12066871,"1,082.00 ",Crematoria And Cemetery Services,Services
Southend-on-Sea Borough Council,http://www.opendatacommunities.org/id/unitary-authority/southend,ED Neighbourhoods & Environment,Environmental And Regulatory Services,4660,Enovert South Limited,12/05/2020,12066871,"7,566.93 ",Waste Management,Cleaning And Domestic Supplies
Southend-on-Sea Borough Council,http://www.opendatacommunities.org/id/unitary-authority/southend,ED Neighbourhoods & Environment,Environmental And Regulatory Services,4661,Enovert South Limited,12/05/2020,12066871,"49,065.37 ",Waste Management,Cleaning And Domestic Supplies
Southend-on-Sea Borough Council,http://www.opendatacommunities.org/id/unitary-authority/southend,ED Adults & Communities,Adult Social Care,1105,Erbil Gulhan T/A Palm2Palm Care And Reablement Services,12/05/2020,12066871,"1,954.54 ",Private Contractors,Other Agencies
Southend-on-Sea Borough Council,http://www.opendatacommunities.org/id/unitary-authority/southend,ED Adults & Communities,Adult Social Care,1105,Golden Keys Care Agency Limited,12/05/2020,12066871,853.44 ,Private Contractors,Other Agencies
Southend-on-Sea Borough Council,http://www.opendatacommunities.org/id/unitary-authority/southend,ED Adults & Communities,Adult Social Care,1105,Golden Keys Care Agency Limited,12/05/2020,12066871,640.08 ,Private Contractors,Other Agencies
Southend-on-Sea Borough Council,http://www.opendatacommunities.org/id/unitary-authority/southend,ED Adults & Communities,Adult Social Care,1105,Golden Keys Care Agency Limited,12/05/2020,12066871,"1,920.24 ",Private Contractors,Other Agencies
Southend-on-Sea Borough Council,http://www.opendatacommunities.org/id/unitary-authority/southend,ED Adults & Communities,Adult Social Care,1105,Golden Keys Care Agency Limited,12/05/2020,12066871,640.08 ,Private Contractors,Other Agencies
Southend-on-Sea Borough Council,http://www.opendatacommunities.org/id/unitary-authority/southend,ED Adults & Communities,Adult Social Care,1105,Golden Keys Care Agency Limited,12/05/2020,12066871,533.40 ,Private Contractors,Other Agencies
Southend-on-Sea Borough Council,http://www.opendatacommunities.org/id/unitary-authority/southend,ED Children & Public Health,Children And Education Services,3290,Griha Care And Support Limited,12/05/2020,12066871,"7,425.00 ",Accomodation Payment,Services
Southend-on-Sea Borough Council,http://www.opendatacommunities.org/id/unitary-authority/southend,ED Children & Public Health,Children And Education Services,3307,Griha Care And Support Limited,12/05/2020,12066871,"3,635.00 ",Accomodation Payment,Services
Southend-on-Sea Borough Council,http://www.opendatacommunities.org/id/unitary-authority/southend,ED Children & Public Health,Children And Education Services,3308,Griha Care And Support Limited,12/05/2020,12066871,"1,910.00 ",Accomodation Payment,Services
Southend-on-Sea Borough Council,http://www.opendatacommunities.org/id/unitary-authority/southend,ED Neighbourhoods & Environment,Environmental And Regulatory Services,4716,Jodi Nelson-Tabor T/A Bnd Mand,12/05/2020,12066871,"1,527.13 ",Consultancy Services,Services
Southend-on-Sea Borough Council,http://www.opendatacommunities.org/id/unitary-authority/southend,ED Children & Public Health,Children And Education Services,3290,Leighview House Ltd,12/05/2020,12066871,"3,653.35 ",Accomodation Payment,Services
Southend-on-Sea Borough Council,http://www.opendatacommunities.org/id/unitary-authority/southend,ED Children & Public Health,Children And Education Services,3290,Leighview House Ltd,12/05/2020,12066871,"3,653.35 ",Accomodation Payment,Services
Southend-on-Sea Borough Council,http://www.opendatacommunities.org/id/unitary-authority/southend,ED Children & Public Health,Children And Education Services,3290,Leighview House Ltd,12/05/2020,12066871,"5,314.62 ",Accomodation Payment,Services
Southend-on-Sea Borough Council,http://www.opendatacommunities.org/id/unitary-authority/southend,ED Children & Public Health,Children And Education Services,3290,Leighview House Ltd,12/05/2020,12066871,"3,985.67 ",Accomodation Payment,Services
Southend-on-Sea Borough Council,http://www.opendatacommunities.org/id/unitary-authority/southend,ED Growth & Housing,Highways And Transport Services,5702,Luther Pendragon Limited,12/05/2020,12066871,"1,880.00 ",Consultancy Services,Services
Southend-on-Sea Borough Council,http://www.opendatacommunities.org/id/unitary-authority/southend,ED Children & Public Health,Children And Education Services,3492,Medical Expert Witness Alliance Llp T/A Mewa,12/05/2020,12066871,"2,680.00 ",Professional Fees,Services
Southend-on-Sea Borough Council,http://www.opendatacommunities.org/id/unitary-authority/southend,ED Children & Public Health,Children And Education Services,3290,Placement Support Ltd,12/05/2020,12066871,"1,530.00 ",Professional Fees,Services
Southend-on-Sea Borough Council,http://www.opendatacommunities.org/id/unitary-authority/southend,ED Children & Public Health,Children And Education Services,3290,Placement Support Ltd,12/05/2020,12066871,"1,926.00 ",Professional Fees,Services
Southend-on-Sea Borough Council,http://www.opendatacommunities.org/id/unitary-authority/southend,ED Children & Public Health,Children And Education Services,3290,Placement Support Ltd,12/05/2020,12066871,990.00 ,Professional Fees,Services
Southend-on-Sea Borough Council,http://www.opendatacommunities.org/id/unitary-authority/southend,ED Children & Public Health,Children And Education Services,3290,Placement Support Ltd,12/05/2020,12066871,"1,647.00 ",Professional Fees,Services
Southend-on-Sea Borough Council,http://www.opendatacommunities.org/id/unitary-authority/southend,ED Children & Public Health,Children And Education Services,3491,Potton Kare Services Ltd T/A Pks Social Care Agency,12/05/2020,12066871,715.80 ,Private Contractors,Other Agencies
Southend-on-Sea Borough Council,http://www.opendatacommunities.org/id/unitary-authority/southend,ED Children & Public Health,Children And Education Services,3250,Quality Foster Care Limited,12/05/2020,12066871,"2,934.52 ",Private Contractors,Other Agencies
Southend-on-Sea Borough Council,http://www.opendatacommunities.org/id/unitary-authority/southend,ED Children & Public Health,Children And Education Services,3250,Quality Foster Care Limited,12/05/2020,12066871,"2,924.04 ",Private Contractors,Other Agencies
Southend-on-Sea Borough Council,http://www.opendatacommunities.org/id/unitary-authority/southend,ED Children & Public Health,Children And Education Services,3265,REDACTED PERSONAL DATA,12/05/2020,12066871,938.37 ,Foster Carer Allowance,Other Agencies
Southend-on-Sea Borough Council,http://www.opendatacommunities.org/id/unitary-authority/southend,ED Children & Public Health,Children And Education Services,3265,REDACTED PERSONAL DATA,12/05/2020,12066871,592.34 ,Foster Carer Allowance,Other Agencies
Southend-on-Sea Borough Council,http://www.opendatacommunities.org/id/unitary-authority/southend,ED Children & Public Health,Children And Education Services,3265,REDACTED PERSONAL DATA,12/05/2020,12066871,"1,362.08 ",Foster Carer Allowance,Other Agencies
Southend-on-Sea Borough Council,http://www.opendatacommunities.org/id/unitary-authority/southend,ED Children & Public Health,Children And Education Services,3265,REDACTED PERSONAL DATA,12/05/2020,12066871,676.20 ,Foster Carer Allowance,Other Agencies
Southend-on-Sea Borough Council,http://www.opendatacommunities.org/id/unitary-authority/southend,ED Children & Public Health,Children And Education Services,3265,REDACTED PERSONAL DATA,12/05/2020,12066871,572.95 ,Foster Carer Allowance,Other Agencies
Southend-on-Sea Borough Council,http://www.opendatacommunities.org/id/unitary-authority/southend,ED Children & Public Health,Children And Education Services,3265,REDACTED PERSONAL DATA,12/05/2020,12066871,536.55 ,Foster Carer Fee Paid,Other Agencies
Southend-on-Sea Borough Council,http://www.opendatacommunities.org/id/unitary-authority/southend,ED Children & Public Health,Children And Education Services,3265,REDACTED PERSONAL DATA,12/05/2020,12066871,814.17 ,Specialist foster carer allowance,Other Agencies
Southend-on-Sea Borough Council,http://www.opendatacommunities.org/id/unitary-authority/southend,ED Children & Public Health,Children And Education Services,3265,REDACTED PERSONAL DATA,12/05/2020,12066871,536.55 ,Foster Carer Specialist,Other Agencies
Southend-on-Sea Borough Council,http://www.opendatacommunities.org/id/unitary-authority/southend,ED Children & Public Health,Children And Education Services,3265,REDACTED PERSONAL DATA,12/05/2020,12066871,"1,680.85 ",Foster Carer Allowance,Other Agencies
Southend-on-Sea Borough Council,http://www.opendatacommunities.org/id/unitary-authority/southend,ED Children & Public Health,Children And Education Services,3265,REDACTED PERSONAL DATA,12/05/2020,12066871,636.23 ,Specialist foster carer allowance,Other Agencies
Southend-on-Sea Borough Council,http://www.opendatacommunities.org/id/unitary-authority/southend,ED Children & Public Health,Children And Education Services,3265,REDACTED PERSONAL DATA,12/05/2020,12066871,536.55 ,Foster Carer Specialist,Other Agencies
Southend-on-Sea Borough Council,http://www.opendatacommunities.org/id/unitary-authority/southend,ED Children & Public Health,Children And Education Services,3265,REDACTED PERSONAL DATA,12/05/2020,12066871,676.20 ,Foster Carer Allowance,Other Agencies
Southend-on-Sea Borough Council,http://www.opendatacommunities.org/id/unitary-authority/southend,ED Children & Public Health,Children And Education Services,3265,REDACTED PERSONAL DATA,12/05/2020,12066871,763.14 ,Foster Carer Allowance,Other Agencies
Southend-on-Sea Borough Council,http://www.opendatacommunities.org/id/unitary-authority/southend,ED Children & Public Health,Children And Education Services,3265,REDACTED PERSONAL DATA,12/05/2020,12066871,536.55 ,Foster Carer Specialist,Other Agencies
Southend-on-Sea Borough Council,http://www.opendatacommunities.org/id/unitary-authority/southend,ED Children & Public Health,Children And Education Services,3265,REDACTED PERSONAL DATA,12/05/2020,12066871,763.14 ,Foster Carer Allowance,Other Agencies
Southend-on-Sea Borough Council,http://www.opendatacommunities.org/id/unitary-authority/southend,ED Children & Public Health,Children And Education Services,3265,REDACTED PERSONAL DATA,12/05/2020,12066871,665.00 ,Foster Carer Allowance,Other Agencies
Southend-on-Sea Borough Council,http://www.opendatacommunities.org/id/unitary-authority/southend,ED Children & Public Health,Children And Education Services,3265,REDACTED PERSONAL DATA,12/05/2020,12066871,536.55 ,Foster Carer Fee Paid,Other Agencies
Southend-on-Sea Borough Council,http://www.opendatacommunities.org/id/unitary-authority/southend,ED Children & Public Health,Children And Education Services,3265,REDACTED PERSONAL DATA,12/05/2020,12066871,536.55 ,Foster Carer Fee Paid,Other Agencies
Southend-on-Sea Borough Council,http://www.opendatacommunities.org/id/unitary-authority/southend,ED Children & Public Health,Children And Education Services,3265,REDACTED PERSONAL DATA,12/05/2020,12066871,536.55 ,Foster Carer Fee Paid,Other Agencies
Southend-on-Sea Borough Council,http://www.opendatacommunities.org/id/unitary-authority/southend,ED Finance & Resources,Housing Services,6165,REDACTED PERSONAL DATA,12/05/2020,12066871,"10,000.00 ",Catering Food And Beverages,Catering
Southend-on-Sea Borough Council,http://www.opendatacommunities.org/id/unitary-authority/southend,ED Children & Public Health,Children And Education Services,3265,REDACTED PERSONAL DATA,12/05/2020,12066871,676.20 ,Foster Carer Allowance,Other Agencies
Southend-on-Sea Borough Council,http://www.opendatacommunities.org/id/unitary-authority/southend,ED Children & Public Health,Children And Education Services,3265,REDACTED PERSONAL DATA,12/05/2020,12066871,720.09 ,Specialist foster carer allowance,Other Agencies
Southend-on-Sea Borough Council,http://www.opendatacommunities.org/id/unitary-authority/southend,ED Children & Public Health,Children And Education Services,3265,REDACTED PERSONAL DATA,12/05/2020,12066871,536.55 ,Foster Carer Specialist,Other Agencies
Southend-on-Sea Borough Council,http://www.opendatacommunities.org/id/unitary-authority/southend,ED Children & Public Health,Children And Education Services,3265,REDACTED PERSONAL DATA,12/05/2020,12066871,536.55 ,Foster Carer Fee Paid,Other Agencies
Southend-on-Sea Borough Council,http://www.opendatacommunities.org/id/unitary-authority/southend,ED Children & Public Health,Children And Education Services,3265,REDACTED PERSONAL DATA,12/05/2020,12066871,552.37 ,Foster Carer Allowance,Other Agencies
Southend-on-Sea Borough Council,http://www.opendatacommunities.org/id/unitary-authority/southend,ED Children & Public Health,Children And Education Services,3265,REDACTED PERSONAL DATA,12/05/2020,12066871,536.55 ,Foster Carer Fee Paid,Other Agencies
Southend-on-Sea Borough Council,http://www.opendatacommunities.org/id/unitary-authority/southend,ED Adults & Communities,Adult Social Care,1105,Royale Carers Limited,12/05/2020,12066871,973.29 ,Private Contractors,Other Agencies
Southend-on-Sea Borough Council,http://www.opendatacommunities.org/id/unitary-authority/southend,ED Adults & Communities,Adult Social Care,1105,Royale Carers Limited,12/05/2020,12066871,762.93 ,Private Contractors,Other Agencies
Southend-on-Sea Borough Council,http://www.opendatacommunities.org/id/unitary-authority/southend,ED Adults & Communities,Adult Social Care,1105,Royale Carers Limited,12/05/2020,12066871,762.93 ,Private Contractors,Other Agencies
Southend-on-Sea Borough Council,http://www.opendatacommunities.org/id/unitary-authority/southend,ED Children & Public Health,Children And Education Services,3290,Safe Haven Services Ltd,12/05/2020,12066871,"1,910.00 ",Accomodation Payment,Services
Southend-on-Sea Borough Council,http://www.opendatacommunities.org/id/unitary-authority/southend,ED Children & Public Health,Children And Education Services,3308,Safe Haven Services Ltd,12/05/2020,12066871,"1,537.50 ",Accomodation Payment,Services
Southend-on-Sea Borough Council,http://www.opendatacommunities.org/id/unitary-authority/southend,ED Children & Public Health,Children And Education Services,3491,Sanctuary Housing Association,12/05/2020,12066871,"1,100.16 ",Accomodation Payment,Services
Southend-on-Sea Borough Council,http://www.opendatacommunities.org/id/unitary-authority/southend,ED Adults & Communities,Adult Social Care,1105,Seven Day Care (Uk) Ltd T/A Surecare Southend,12/05/2020,12066871,"13,027.45 ",Private Contractors,Other Agencies
Southend-on-Sea Borough Council,http://www.opendatacommunities.org/id/unitary-authority/southend,ED Adults & Communities,Adult Social Care,1108,Seven Day Care (Uk) Ltd T/A Surecare Southend,12/05/2020,12066871,577.07 ,Private Contractors,Other Agencies
Southend-on-Sea Borough Council,http://www.opendatacommunities.org/id/unitary-authority/southend,ED Adults & Communities,Adult Social Care,1205,Seven Day Care (Uk) Ltd T/A Surecare Southend,12/05/2020,12066871,822.95 ,Private Contractors,Other Agencies
Southend-on-Sea Borough Council,http://www.opendatacommunities.org/id/unitary-authority/southend,ED Adults & Communities,Adult Social Care,1115,Seven Day Care (Uk) Ltd T/A Surecare Southend,12/05/2020,12066871,"1,389.62 ",Contractor - Programmed Works,Other Agencies
Southend-on-Sea Borough Council,http://www.opendatacommunities.org/id/unitary-authority/southend,ED Adults & Communities,Adult Social Care,1205,Seven Day Care (Uk) Ltd T/A Surecare Southend,12/05/2020,12066871,"-15,900.00 ",Private Contractors,Other Agencies
Southend-on-Sea Borough Council,http://www.opendatacommunities.org/id/unitary-authority/southend,ED Adults & Communities,Cultural And Related Services,4115,Skyguard Limited,12/05/2020,12066871,"1,360.80 ",Tools And Equipment Purchase,Equipment Furniture And Materials
Southend-on-Sea Borough Council,http://www.opendatacommunities.org/id/unitary-authority/southend,ED Neighbourhoods & Environment,Housing Services,9008,Tmp (Uk) Ltd T/A Tmp Worldwide,12/05/2020,12066871,"9,603.68 ",Main Contractor,Main Contractor
Southend-on-Sea Borough Council,http://www.opendatacommunities.org/id/unitary-authority/southend,ED Neighbourhoods & Environment,Housing Services,9008,Tmp (Uk) Ltd T/A Tmp Worldwide,12/05/2020,12066871,"13,950.80 ",Main Contractor,Main Contractor
Southend-on-Sea Borough Council,http://www.opendatacommunities.org/id/unitary-authority/southend,ED Neighbourhoods & Environment,Housing Services,9008,Tmp (Uk) Ltd T/A Tmp Worldwide,12/05/2020,12066871,"1,613.96 ",Main Contractor,Main Contractor
Southend-on-Sea Borough Council,http://www.opendatacommunities.org/id/unitary-authority/southend,ED Neighbourhoods & Environment,Housing Services,9008,Tmp (Uk) Ltd T/A Tmp Worldwide,12/05/2020,12066871,"5,546.32 ",Main Contractor,Main Contractor
Southend-on-Sea Borough Council,http://www.opendatacommunities.org/id/unitary-authority/southend,ED Neighbourhoods & Environment,Housing Services,9008,Tmp (Uk) Ltd T/A Tmp Worldwide,12/05/2020,12066871,"3,517.68 ",Main Contractor,Main Contractor
Southend-on-Sea Borough Council,http://www.opendatacommunities.org/id/unitary-authority/southend,ED Adults & Communities,Adult Social Care,9010,(G) Arj Construction Ltd,13/05/2020,12066880,"942,028.72 ",Main Contractor,Main Contractor
Southend-on-Sea Borough Council,http://www.opendatacommunities.org/id/unitary-authority/southend,ED Neighbourhoods & Environment,Cultural and Related Services,7515,(G) R & A Mechanical Services Ltd,13/05/2020,12066880,"2,639.60 ",Repairs And Maintenance Contracts,"Repairs, alterations and maintenance of buildings"
Southend-on-Sea Borough Council,http://www.opendatacommunities.org/id/unitary-authority/southend,ED Children & Public Health,Children And Education Services,3186,24X7 Ltd,13/05/2020,12066880,"36,864.75 ",Private Contractors,Other Agencies
Southend-on-Sea Borough Council,http://www.opendatacommunities.org/id/unitary-authority/southend,ED Adults & Communities,Adult Social Care,1083,Adalah Residential Home,13/05/2020,12066880,515.06 ,Private Contractors,Other Agencies
Southend-on-Sea Borough Council,http://www.opendatacommunities.org/id/unitary-authority/southend,ED Adults & Communities,Adult Social Care,1105,Alpha Health And Care Services Ltd,13/05/2020,12066880,993.09 ,Private Contractors,Other Agencies
Southend-on-Sea Borough Council,http://www.opendatacommunities.org/id/unitary-authority/southend,ED Adults & Communities,Adult Social Care,1205,Alpha Health And Care Services Ltd,13/05/2020,12066880,969.90 ,Private Contractors,Other Agencies
Southend-on-Sea Borough Council,http://www.opendatacommunities.org/id/unitary-authority/southend,ED Adults & Communities,Adult Social Care,1105,Alpha Health And Care Services Ltd,13/05/2020,12066880,"1,446.90 ",Private Contractors,Other Agencies
Southend-on-Sea Borough Council,http://www.opendatacommunities.org/id/unitary-authority/southend,ED Adults & Communities,Adult Social Care,1105,Alpha Health And Care Services Ltd,13/05/2020,12066880,778.44 ,Private Contractors,Other Agencies
Southend-on-Sea Borough Council,http://www.opendatacommunities.org/id/unitary-authority/southend,ED Adults & Communities,Adult Social Care,1105,Alpha Health And Care Services Ltd,13/05/2020,12066880,723.45 ,Private Contractors,Other Agencies
Southend-on-Sea Borough Council,http://www.opendatacommunities.org/id/unitary-authority/southend,ED Adults & Communities,Adult Social Care,1105,Alpha Health And Care Services Ltd,13/05/2020,12066880,747.30 ,Private Contractors,Other Agencies
Southend-on-Sea Borough Council,http://www.opendatacommunities.org/id/unitary-authority/southend,ED Adults & Communities,Adult Social Care,1145,Artability,13/05/2020,12066880,"3,622.28 ",COVID-19 Response,Other Agencies
Southend-on-Sea Borough Council,http://www.opendatacommunities.org/id/unitary-authority/southend,ED Adults & Communities,Adult Social Care,1105,Ashley Community Care Services Ltd T/A Ashley Care,13/05/2020,12066880,900.00 ,Private Contractors,Other Agencies
Southend-on-Sea Borough Council,http://www.opendatacommunities.org/id/unitary-authority/southend,ED Neighbourhoods & Environment,Housing Services,9008,Atkins Limited,13/05/2020,12066880,"1,376.64 ",Consultant Fees,Consultant Fees
Southend-on-Sea Borough Council,http://www.opendatacommunities.org/id/unitary-authority/southend,ED Neighbourhoods & Environment,Housing Services,9008,Atkins Limited,13/05/2020,12066880,"3,921.72 ",Consultant Fees,Consultant Fees
Southend-on-Sea Borough Council,http://www.opendatacommunities.org/id/unitary-authority/southend,ED Transformation,Central Services,2045,Bang The Table (Uk) Pty Ltd,13/05/2020,12066880,"10,500.00 ",Corporate IT Applications,Communications And Computing
Southend-on-Sea Borough Council,http://www.opendatacommunities.org/id/unitary-authority/southend,ED Transformation,Central Services,8602,Bt Payment Services Ltd,13/05/2020,12066880,"6,597.81 ",Communications Telephone Rental,Communications And Computing
Southend-on-Sea Borough Council,http://www.opendatacommunities.org/id/unitary-authority/southend,ED Children & Public Health,Children And Education Services,3250,Care Afloat Ltd,13/05/2020,12066880,"25,784.08 ",Private Contractors,Other Agencies
Southend-on-Sea Borough Council,http://www.opendatacommunities.org/id/unitary-authority/southend,ED Children & Public Health,Children And Education Services,3491,Cast Communities And Sanctuary Seekers Together,13/05/2020,12066880,808.00 ,Accomodation Payment,Services
Southend-on-Sea Borough Council,http://www.opendatacommunities.org/id/unitary-authority/southend,ED Transformation,Central Services,7131,Cdw Limited,13/05/2020,12066880,500.33 ,Corporate IT Applications,Communications And Computing
Southend-on-Sea Borough Council,http://www.opendatacommunities.org/id/unitary-authority/southend,ED Adults & Communities,Adult Social Care,1205,Choices Healthcare Ltd,13/05/2020,12066880,725.76 ,Private Contractors,Other Agencies
Southend-on-Sea Borough Council,http://www.opendatacommunities.org/id/unitary-authority/southend,ED Adults & Communities,Housing Services,6011,Coastal Living Southend Ltd,13/05/2020,12066880,"4,450.00 ",COVID-19 Response,Other Agencies
Southend-on-Sea Borough Council,http://www.opendatacommunities.org/id/unitary-authority/southend,ED Adults & Communities,Housing Services,6011,Coastal Living Southend Ltd,13/05/2020,12066880,"1,500.00 ",COVID-19 Response,Other Agencies
Southend-on-Sea Borough Council,http://www.opendatacommunities.org/id/unitary-authority/southend,ED Adults & Communities,Housing Services,6130,Countrywide Plc T/A Bairstow Eves Lettings,13/05/2020,12066880,"1,407.00 ",Loans,Services
Southend-on-Sea Borough Council,http://www.opendatacommunities.org/id/unitary-authority/southend,ED Children & Public Health,Children And Education Services,3481,Eco Wings,13/05/2020,12066880,"1,350.00 ",Childrens outings,Services
Southend-on-Sea Borough Council,http://www.opendatacommunities.org/id/unitary-authority/southend,ED Children & Public Health,Children And Education Services,3307,Great Future Support Ltd,13/05/2020,12066880,"3,800.00 ",Accomodation Payment,Services
Southend-on-Sea Borough Council,http://www.opendatacommunities.org/id/unitary-authority/southend,ED Adults & Communities,Housing Services,6011,Harp,13/05/2020,12066880,520.20 ,Accomodation Payment,Services
Southend-on-Sea Borough Council,http://www.opendatacommunities.org/id/unitary-authority/southend,ED Adults & Communities,Adult Social Care,1294,Inner Resources Ltd,13/05/2020,12066880,853.20 ,Private Contractors,Other Agencies
Southend-on-Sea Borough Council,http://www.opendatacommunities.org/id/unitary-authority/southend,ED Legal & Democratic Services,Central Services,7105,Marston (Holdings) Limited T/A Burlington Group,13/05/2020,12066880,"1,365.00 ",Court Costs And Legal Fees,Services
